Workbook

Sheet Base (hidden)

Sheet FORS
A4: STATISTIKK
A7: FOR
A10: MÅLEVIRKSOMHETEN
A14: 2022
A15: NB: Alle timefortjenester er før eventuelt trekk av målegebyr

Sheet ÅRSTOT
A2: ="MÅLESTATISTIKK ALLE BYGGFAG - 1. HALVÅR "&FORS!$A$14 -> MÅLESTATISTIKK ALLE BYGGFAG - 1. HALVÅR 2022
B4: Målesum i kroner | D4: Timer | F4: ="Fortjeneste 1. halvår "&FORS!$A$14-0 -> Fortjeneste 1. halvår 2022 | I4: =" 1. halvår "&FORS!$A$14-1 -> 1. halvår 2021 | L4: Endringer i %
B5: Innmålt m/ | C5: Innmålt m/ | D5: Innmålt m/ | E5: Innmålt m/ | F5: Innmålt m/ | G5: Innmålt m/ | H5: Gjennom- | I5: Innmålt m/ | J5: Innmålt m/ | K5: Gjen.snitt | L5: Innmålt m/ | M5: Gjen.snitt
B6: overskudd | C6: underskudd | D6: overskudd | E6: underskudd | F6: overskudd | G6: underskudd | H6: snitt | I6: overskudd | J6: underskudd | K6: fortjeneste | L6: overskudd | M6: fortjeneste
A7: Agder | B7: =SUMIFS(BETONG!B$7:B$18,BETONG!$A$7:$A$18,ÅRSTOT!$A7)+SUMIFS(TØMRERE!B$7:B$18,TØMRERE!$A$7:$A$18,ÅRSTOT!$A7)+SUMIFS(RØRLEGGERE!B$7:B$18,RØRLEGGERE!$A$7:$A$18,ÅRSTOT!$A7)+SUMIFS(MURERE!B$7:B$18,MURERE!$A$7:$A$18,ÅRSTOT!$A7)+SUMIFS('BLIKK OG VENTILASJON'!B$7:B$18,'BLIKK OG VENTILASJON'!$A$7:$A$18,ÅRSTOT!$A7)+SUMIFS(ISOLATØR!B$7:B$18,ISOLATØR!$A$7:$A$18,ÅRSTOT!$A7)+SUMIFS(MALERE!B$7:B$18,MALERE!$A$7:$A$18,ÅRSTOT!$A7)+SUMIFS(TAKTEKKERE!B$7:B$18,TAKTEKKERE!$A$7:$A$18,ÅRSTOT!$A7) -> 5919937 | C7: =SUMIFS(BETONG!C$7:C$18,BETONG!$A$7:$A$18,ÅRSTOT!$A7)+SUMIFS(TØMRERE!C$7:C$18,TØMRERE!$A$7:$A$18,ÅRSTOT!$A7)+SUMIFS(RØRLEGGERE!C$7:C$18,RØRLEGGERE!$A$7:$A$18,ÅRSTOT!$A7)+SUMIFS(MURERE!C$7:C$18,MURERE!$A$7:$A$18,ÅRSTOT!$A7)+SUMIFS('BLIKK OG VENTILASJON'!C$7:C$18,'BLIKK OG VENTILASJON'!$A$7:$A$18,ÅRSTOT!$A7)+SUMIFS(ISOLATØR!C$7:C$18,ISOLATØR!$A$7:$A$18,ÅRSTOT!$A7)+SUMIFS(MALERE!C$7:C$18,MALERE!$A$7:$A$18,ÅRSTOT!$A7)+SUMIFS(TAKTEKKERE!C$7:C$18,TAKTEKKERE!$A$7:$A$18,ÅRSTOT!$A7) -> 0 | D7: =SUMIFS(BETONG!D$7:D$18,BETONG!$A$7:$A$18,ÅRSTOT!$A7)+SUMIFS(TØMRERE!D$7:D$18,TØMRERE!$A$7:$A$18,ÅRSTOT!$A7)+SUMIFS(RØRLEGGERE!D$7:D$18,RØRLEGGERE!$A$7:$A$18,ÅRSTOT!$A7)+SUMIFS(MURERE!D$7:D$18,MURERE!$A$7:$A$18,ÅRSTOT!$A7)+SUMIFS('BLIKK OG VENTILASJON'!D$7:D$18,'BLIKK OG VENTILASJON'!$A$7:$A$18,ÅRSTOT!$A7)+SUMIFS(ISOLATØR!D$7:D$18,ISOLATØR!$A$7:$A$18,ÅRSTOT!$A7)+SUMIFS(MALERE!D$7:D$18,MALERE!$A$7:$A$18,ÅRSTOT!$A7)+SUMIFS(TAKTEKKERE!D$7:D$18,TAKTEKKERE!$A$7:$A$18,ÅRSTOT!$A7) -> 18547 | E7: =SUMIFS(BETONG!E$7:E$18,BETONG!$A$7:$A$18,ÅRSTOT!$A7)+SUMIFS(TØMRERE!E$7:E$18,TØMRERE!$A$7:$A$18,ÅRSTOT!$A7)+SUMIFS(RØRLEGGERE!E$7:E$18,RØRLEGGERE!$A$7:$A$18,ÅRSTOT!$A7)+SUMIFS(MURERE!E$7:E$18,MURERE!$A$7:$A$18,ÅRSTOT!$A7)+SUMIFS('BLIKK OG VENTILASJON'!E$7:E$18,'BLIKK OG VENTILASJON'!$A$7:$A$18,ÅRSTOT!$A7)+SUMIFS(ISOLATØR!E$7:E$18,ISOLATØR!$A$7:$A$18,ÅRSTOT!$A7)+SUMIFS(MALERE!E$7:E$18,MALERE!$A$7:$A$18,ÅRSTOT!$A7)+SUMIFS(TAKTEKKERE!E$7:E$18,TAKTEKKERE!$A$7:$A$18,ÅRSTOT!$A7) -> 0 | F7: =IF(D7=0,0,B7/D7) -> 319.1856904 | G7: =IF(E7=0,0,C7/E7) -> 0 | H7: =IF(D7+E7=0,0,(B7+C7)/(D7+E7)) -> 319.1856904 | I7: =SUMIFS(BETONG!I$7:I$18,BETONG!$A$7:$A$18,ÅRSTOT!$A7)+SUMIFS(TØMRERE!I$7:I$18,TØMRERE!$A$7:$A$18,ÅRSTOT!$A7)+SUMIFS(RØRLEGGERE!I$7:I$18,RØRLEGGERE!$A$7:$A$18,ÅRSTOT!$A7)+SUMIFS(MURERE!I$7:I$18,MURERE!$A$7:$A$18,ÅRSTOT!$A7)+SUMIFS('BLIKK OG VENTILASJON'!I$7:I$18,'BLIKK OG VENTILASJON'!$A$7:$A$18,ÅRSTOT!$A7)+SUMIFS(ISOLATØR!I$7:I$18,ISOLATØR!$A$7:$A$18,ÅRSTOT!$A7)+SUMIFS(MALERE!I$7:I$18,MALERE!$A$7:$A$18,ÅRSTOT!$A7)+SUMIFS(TAKTEKKERE!I$7:I$18,TAKTEKKERE!$A$7:$A$18,ÅRSTOT!$A7) -> 13659888 | J7: =SUMIFS(BETONG!J$7:J$18,BETONG!$A$7:$A$18,ÅRSTOT!$A7)+SUMIFS(TØMRERE!J$7:J$18,TØMRERE!$A$7:$A$18,ÅRSTOT!$A7)+SUMIFS(RØRLEGGERE!J$7:J$18,RØRLEGGERE!$A$7:$A$18,ÅRSTOT!$A7)+SUMIFS(MURERE!J$7:J$18,MURERE!$A$7:$A$18,ÅRSTOT!$A7)+SUMIFS('BLIKK OG VENTILASJON'!J$7:J$18,'BLIKK OG VENTILASJON'!$A$7:$A$18,ÅRSTOT!$A7)+SUMIFS(ISOLATØR!J$7:J$18,ISOLATØR!$A$7:$A$18,ÅRSTOT!$A7)+SUMIFS(MALERE!J$7:J$18,MALERE!$A$7:$A$18,ÅRSTOT!$A7)+SUMIFS(TAKTEKKERE!J$7:J$18,TAKTEKKERE!$A$7:$A$18,ÅRSTOT!$A7) -> 0 | K7: 292.789931 | L7: =IF(I7=0,0,(B7-I7)/I7) -> -0.566618921 | M7: =IF(K7=0,0,(H7-K7)/K7) -> 0.09015255168
A8: Bergen | B8: =SUMIFS(BETONG!B$7:B$18,BETONG!$A$7:$A$18,ÅRSTOT!$A8)+SUMIFS(TØMRERE!B$7:B$18,TØMRERE!$A$7:$A$18,ÅRSTOT!$A8)+SUMIFS(RØRLEGGERE!B$7:B$18,RØRLEGGERE!$A$7:$A$18,ÅRSTOT!$A8)+SUMIFS(MURERE!B$7:B$18,MURERE!$A$7:$A$18,ÅRSTOT!$A8)+SUMIFS('BLIKK OG VENTILASJON'!B$7:B$18,'BLIKK OG VENTILASJON'!$A$7:$A$18,ÅRSTOT!$A8)+SUMIFS(ISOLATØR!B$7:B$18,ISOLATØR!$A$7:$A$18,ÅRSTOT!$A8)+SUMIFS(MALERE!B$7:B$18,MALERE!$A$7:$A$18,ÅRSTOT!$A8)+SUMIFS(TAKTEKKERE!B$7:B$18,TAKTEKKERE!$A$7:$A$18,ÅRSTOT!$A8) -> 15942625.08 | C8: =SUMIFS(BETONG!C$7:C$18,BETONG!$A$7:$A$18,ÅRSTOT!$A8)+SUMIFS(TØMRERE!C$7:C$18,TØMRERE!$A$7:$A$18,ÅRSTOT!$A8)+SUMIFS(RØRLEGGERE!C$7:C$18,RØRLEGGERE!$A$7:$A$18,ÅRSTOT!$A8)+SUMIFS(MURERE!C$7:C$18,MURERE!$A$7:$A$18,ÅRSTOT!$A8)+SUMIFS('BLIKK OG VENTILASJON'!C$7:C$18,'BLIKK OG VENTILASJON'!$A$7:$A$18,ÅRSTOT!$A8)+SUMIFS(ISOLATØR!C$7:C$18,ISOLATØR!$A$7:$A$18,ÅRSTOT!$A8)+SUMIFS(MALERE!C$7:C$18,MALERE!$A$7:$A$18,ÅRSTOT!$A8)+SUMIFS(TAKTEKKERE!C$7:C$18,TAKTEKKERE!$A$7:$A$18,ÅRSTOT!$A8) -> 0 | D8: =SUMIFS(BETONG!D$7:D$18,BETONG!$A$7:$A$18,ÅRSTOT!$A8)+SUMIFS(TØMRERE!D$7:D$18,TØMRERE!$A$7:$A$18,ÅRSTOT!$A8)+SUMIFS(RØRLEGGERE!D$7:D$18,RØRLEGGERE!$A$7:$A$18,ÅRSTOT!$A8)+SUMIFS(MURERE!D$7:D$18,MURERE!$A$7:$A$18,ÅRSTOT!$A8)+SUMIFS('BLIKK OG VENTILASJON'!D$7:D$18,'BLIKK OG VENTILASJON'!$A$7:$A$18,ÅRSTOT!$A8)+SUMIFS(ISOLATØR!D$7:D$18,ISOLATØR!$A$7:$A$18,ÅRSTOT!$A8)+SUMIFS(MALERE!D$7:D$18,MALERE!$A$7:$A$18,ÅRSTOT!$A8)+SUMIFS(TAKTEKKERE!D$7:D$18,TAKTEKKERE!$A$7:$A$18,ÅRSTOT!$A8) -> 48701.03 | E8: =SUMIFS(BETONG!E$7:E$18,BETONG!$A$7:$A$18,ÅRSTOT!$A8)+SUMIFS(TØMRERE!E$7:E$18,TØMRERE!$A$7:$A$18,ÅRSTOT!$A8)+SUMIFS(RØRLEGGERE!E$7:E$18,RØRLEGGERE!$A$7:$A$18,ÅRSTOT!$A8)+SUMIFS(MURERE!E$7:E$18,MURERE!$A$7:$A$18,ÅRSTOT!$A8)+SUMIFS('BLIKK OG VENTILASJON'!E$7:E$18,'BLIKK OG VENTILASJON'!$A$7:$A$18,ÅRSTOT!$A8)+SUMIFS(ISOLATØR!E$7:E$18,ISOLATØR!$A$7:$A$18,ÅRSTOT!$A8)+SUMIFS(MALERE!E$7:E$18,MALERE!$A$7:$A$18,ÅRSTOT!$A8)+SUMIFS(TAKTEKKERE!E$7:E$18,TAKTEKKERE!$A$7:$A$18,ÅRSTOT!$A8) -> 0 | F8: =IF(D8=0,0,B8/D8) -> 327.3570411 | G8: =IF(E8=0,0,C8/E8) -> 0 | H8: =IF(D8+E8=0,0,(B8+C8)/(D8+E8)) -> 327.3570411 | I8: =SUMIFS(BETONG!I$7:I$18,BETONG!$A$7:$A$18,ÅRSTOT!$A8)+SUMIFS(TØMRERE!I$7:I$18,TØMRERE!$A$7:$A$18,ÅRSTOT!$A8)+SUMIFS(RØRLEGGERE!I$7:I$18,RØRLEGGERE!$A$7:$A$18,ÅRSTOT!$A8)+SUMIFS(MURERE!I$7:I$18,MURERE!$A$7:$A$18,ÅRSTOT!$A8)+SUMIFS('BLIKK OG VENTILASJON'!I$7:I$18,'BLIKK OG VENTILASJON'!$A$7:$A$18,ÅRSTOT!$A8)+SUMIFS(ISOLATØR!I$7:I$18,ISOLATØR!$A$7:$A$18,ÅRSTOT!$A8)+SUMIFS(MALERE!I$7:I$18,MALERE!$A$7:$A$18,ÅRSTOT!$A8)+SUMIFS(TAKTEKKERE!I$7:I$18,TAKTEKKERE!$A$7:$A$18,ÅRSTOT!$A8) -> 32137289.92 | J8: =SUMIFS(BETONG!J$7:J$18,BETONG!$A$7:$A$18,ÅRSTOT!$A8)+SUMIFS(TØMRERE!J$7:J$18,TØMRERE!$A$7:$A$18,ÅRSTOT!$A8)+SUMIFS(RØRLEGGERE!J$7:J$18,RØRLEGGERE!$A$7:$A$18,ÅRSTOT!$A8)+SUMIFS(MURERE!J$7:J$18,MURERE!$A$7:$A$18,ÅRSTOT!$A8)+SUMIFS('BLIKK OG VENTILASJON'!J$7:J$18,'BLIKK OG VENTILASJON'!$A$7:$A$18,ÅRSTOT!$A8)+SUMIFS(ISOLATØR!J$7:J$18,ISOLATØR!$A$7:$A$18,ÅRSTOT!$A8)+SUMIFS(MALERE!J$7:J$18,MALERE!$A$7:$A$18,ÅRSTOT!$A8)+SUMIFS(TAKTEKKERE!J$7:J$18,TAKTEKKERE!$A$7:$A$18,ÅRSTOT!$A8) -> 0 | K8: 299.8339082 | L8: =IF(I8=0,0,(B8-I8)/I8) -> -0.5039212977 | M8: =IF(K8=0,0,(H8-K8)/K8) -> 0.09179459763
A9: Nordland | B9: =SUMIFS(BETONG!B$7:B$18,BETONG!$A$7:$A$18,ÅRSTOT!$A9)+SUMIFS(TØMRERE!B$7:B$18,TØMRERE!$A$7:$A$18,ÅRSTOT!$A9)+SUMIFS(RØRLEGGERE!B$7:B$18,RØRLEGGERE!$A$7:$A$18,ÅRSTOT!$A9)+SUMIFS(MURERE!B$7:B$18,MURERE!$A$7:$A$18,ÅRSTOT!$A9)+SUMIFS('BLIKK OG VENTILASJON'!B$7:B$18,'BLIKK OG VENTILASJON'!$A$7:$A$18,ÅRSTOT!$A9)+SUMIFS(ISOLATØR!B$7:B$18,ISOLATØR!$A$7:$A$18,ÅRSTOT!$A9)+SUMIFS(MALERE!B$7:B$18,MALERE!$A$7:$A$18,ÅRSTOT!$A9)+SUMIFS(TAKTEKKERE!B$7:B$18,TAKTEKKERE!$A$7:$A$18,ÅRSTOT!$A9) -> 0 | C9: =SUMIFS(BETONG!C$7:C$18,BETONG!$A$7:$A$18,ÅRSTOT!$A9)+SUMIFS(TØMRERE!C$7:C$18,TØMRERE!$A$7:$A$18,ÅRSTOT!$A9)+SUMIFS(RØRLEGGERE!C$7:C$18,RØRLEGGERE!$A$7:$A$18,ÅRSTOT!$A9)+SUMIFS(MURERE!C$7:C$18,MURERE!$A$7:$A$18,ÅRSTOT!$A9)+SUMIFS('BLIKK OG VENTILASJON'!C$7:C$18,'BLIKK OG VENTILASJON'!$A$7:$A$18,ÅRSTOT!$A9)+SUMIFS(ISOLATØR!C$7:C$18,ISOLATØR!$A$7:$A$18,ÅRSTOT!$A9)+SUMIFS(MALERE!C$7:C$18,MALERE!$A$7:$A$18,ÅRSTOT!$A9)+SUMIFS(TAKTEKKERE!C$7:C$18,TAKTEKKERE!$A$7:$A$18,ÅRSTOT!$A9) -> 0 | D9: =SUMIFS(BETONG!D$7:D$18,BETONG!$A$7:$A$18,ÅRSTOT!$A9)+SUMIFS(TØMRERE!D$7:D$18,TØMRERE!$A$7:$A$18,ÅRSTOT!$A9)+SUMIFS(RØRLEGGERE!D$7:D$18,RØRLEGGERE!$A$7:$A$18,ÅRSTOT!$A9)+SUMIFS(MURERE!D$7:D$18,MURERE!$A$7:$A$18,ÅRSTOT!$A9)+SUMIFS('BLIKK OG VENTILASJON'!D$7:D$18,'BLIKK OG VENTILASJON'!$A$7:$A$18,ÅRSTOT!$A9)+SUMIFS(ISOLATØR!D$7:D$18,ISOLATØR!$A$7:$A$18,ÅRSTOT!$A9)+SUMIFS(MALERE!D$7:D$18,MALERE!$A$7:$A$18,ÅRSTOT!$A9)+SUMIFS(TAKTEKKERE!D$7:D$18,TAKTEKKERE!$A$7:$A$18,ÅRSTOT!$A9) -> 0 | E9: =SUMIFS(BETONG!E$7:E$18,BETONG!$A$7:$A$18,ÅRSTOT!$A9)+SUMIFS(TØMRERE!E$7:E$18,TØMRERE!$A$7:$A$18,ÅRSTOT!$A9)+SUMIFS(RØRLEGGERE!E$7:E$18,RØRLEGGERE!$A$7:$A$18,ÅRSTOT!$A9)+SUMIFS(MURERE!E$7:E$18,MURERE!$A$7:$A$18,ÅRSTOT!$A9)+SUMIFS('BLIKK OG VENTILASJON'!E$7:E$18,'BLIKK OG VENTILASJON'!$A$7:$A$18,ÅRSTOT!$A9)+SUMIFS(ISOLATØR!E$7:E$18,ISOLATØR!$A$7:$A$18,ÅRSTOT!$A9)+SUMIFS(MALERE!E$7:E$18,MALERE!$A$7:$A$18,ÅRSTOT!$A9)+SUMIFS(TAKTEKKERE!E$7:E$18,TAKTEKKERE!$A$7:$A$18,ÅRSTOT!$A9) -> 0 | F9: =IF(D9=0,0,B9/D9) -> 0 | G9: =IF(E9=0,0,C9/E9) -> 0 | H9: =IF(D9+E9=0,0,(B9+C9)/(D9+E9)) -> 0 | I9: =SUMIFS(BETONG!I$7:I$18,BETONG!$A$7:$A$18,ÅRSTOT!$A9)+SUMIFS(TØMRERE!I$7:I$18,TØMRERE!$A$7:$A$18,ÅRSTOT!$A9)+SUMIFS(RØRLEGGERE!I$7:I$18,RØRLEGGERE!$A$7:$A$18,ÅRSTOT!$A9)+SUMIFS(MURERE!I$7:I$18,MURERE!$A$7:$A$18,ÅRSTOT!$A9)+SUMIFS('BLIKK OG VENTILASJON'!I$7:I$18,'BLIKK OG VENTILASJON'!$A$7:$A$18,ÅRSTOT!$A9)+SUMIFS(ISOLATØR!I$7:I$18,ISOLATØR!$A$7:$A$18,ÅRSTOT!$A9)+SUMIFS(MALERE!I$7:I$18,MALERE!$A$7:$A$18,ÅRSTOT!$A9)+SUMIFS(TAKTEKKERE!I$7:I$18,TAKTEKKERE!$A$7:$A$18,ÅRSTOT!$A9) -> 0 | J9: =SUMIFS(BETONG!J$7:J$18,BETONG!$A$7:$A$18,ÅRSTOT!$A9)+SUMIFS(TØMRERE!J$7:J$18,TØMRERE!$A$7:$A$18,ÅRSTOT!$A9)+SUMIFS(RØRLEGGERE!J$7:J$18,RØRLEGGERE!$A$7:$A$18,ÅRSTOT!$A9)+SUMIFS(MURERE!J$7:J$18,MURERE!$A$7:$A$18,ÅRSTOT!$A9)+SUMIFS('BLIKK OG VENTILASJON'!J$7:J$18,'BLIKK OG VENTILASJON'!$A$7:$A$18,ÅRSTOT!$A9)+SUMIFS(ISOLATØR!J$7:J$18,ISOLATØR!$A$7:$A$18,ÅRSTOT!$A9)+SUMIFS(MALERE!J$7:J$18,MALERE!$A$7:$A$18,ÅRSTOT!$A9)+SUMIFS(TAKTEKKERE!J$7:J$18,TAKTEKKERE!$A$7:$A$18,ÅRSTOT!$A9) -> 0 | K9: 0 | L9: =IF(I9=0,0,(B9-I9)/I9) -> 0 | M9: =IF(K9=0,0,(H9-K9)/K9) -> 0
A10: Drammen - Bærum | B10: =SUMIFS(BETONG!B$7:B$18,BETONG!$A$7:$A$18,ÅRSTOT!$A10)+SUMIFS(TØMRERE!B$7:B$18,TØMRERE!$A$7:$A$18,ÅRSTOT!$A10)+SUMIFS(RØRLEGGERE!B$7:B$18,RØRLEGGERE!$A$7:$A$18,ÅRSTOT!$A10)+SUMIFS(MURERE!B$7:B$18,MURERE!$A$7:$A$18,ÅRSTOT!$A10)+SUMIFS('BLIKK OG VENTILASJON'!B$7:B$18,'BLIKK OG VENTILASJON'!$A$7:$A$18,ÅRSTOT!$A10)+SUMIFS(ISOLATØR!B$7:B$18,ISOLATØR!$A$7:$A$18,ÅRSTOT!$A10)+SUMIFS(MALERE!B$7:B$18,MALERE!$A$7:$A$18,ÅRSTOT!$A10)+SUMIFS(TAKTEKKERE!B$7:B$18,TAKTEKKERE!$A$7:$A$18,ÅRSTOT!$A10) -> 0 | C10: =SUMIFS(BETONG!C$7:C$18,BETONG!$A$7:$A$18,ÅRSTOT!$A10)+SUMIFS(TØMRERE!C$7:C$18,TØMRERE!$A$7:$A$18,ÅRSTOT!$A10)+SUMIFS(RØRLEGGERE!C$7:C$18,RØRLEGGERE!$A$7:$A$18,ÅRSTOT!$A10)+SUMIFS(MURERE!C$7:C$18,MURERE!$A$7:$A$18,ÅRSTOT!$A10)+SUMIFS('BLIKK OG VENTILASJON'!C$7:C$18,'BLIKK OG VENTILASJON'!$A$7:$A$18,ÅRSTOT!$A10)+SUMIFS(ISOLATØR!C$7:C$18,ISOLATØR!$A$7:$A$18,ÅRSTOT!$A10)+SUMIFS(MALERE!C$7:C$18,MALERE!$A$7:$A$18,ÅRSTOT!$A10)+SUMIFS(TAKTEKKERE!C$7:C$18,TAKTEKKERE!$A$7:$A$18,ÅRSTOT!$A10) -> 0 | D10: =SUMIFS(BETONG!D$7:D$18,BETONG!$A$7:$A$18,ÅRSTOT!$A10)+SUMIFS(TØMRERE!D$7:D$18,TØMRERE!$A$7:$A$18,ÅRSTOT!$A10)+SUMIFS(RØRLEGGERE!D$7:D$18,RØRLEGGERE!$A$7:$A$18,ÅRSTOT!$A10)+SUMIFS(MURERE!D$7:D$18,MURERE!$A$7:$A$18,ÅRSTOT!$A10)+SUMIFS('BLIKK OG VENTILASJON'!D$7:D$18,'BLIKK OG VENTILASJON'!$A$7:$A$18,ÅRSTOT!$A10)+SUMIFS(ISOLATØR!D$7:D$18,ISOLATØR!$A$7:$A$18,ÅRSTOT!$A10)+SUMIFS(MALERE!D$7:D$18,MALERE!$A$7:$A$18,ÅRSTOT!$A10)+SUMIFS(TAKTEKKERE!D$7:D$18,TAKTEKKERE!$A$7:$A$18,ÅRSTOT!$A10) -> 0 | E10: =SUMIFS(BETONG!E$7:E$18,BETONG!$A$7:$A$18,ÅRSTOT!$A10)+SUMIFS(TØMRERE!E$7:E$18,TØMRERE!$A$7:$A$18,ÅRSTOT!$A10)+SUMIFS(RØRLEGGERE!E$7:E$18,RØRLEGGERE!$A$7:$A$18,ÅRSTOT!$A10)+SUMIFS(MURERE!E$7:E$18,MURERE!$A$7:$A$18,ÅRSTOT!$A10)+SUMIFS('BLIKK OG VENTILASJON'!E$7:E$18,'BLIKK OG VENTILASJON'!$A$7:$A$18,ÅRSTOT!$A10)+SUMIFS(ISOLATØR!E$7:E$18,ISOLATØR!$A$7:$A$18,ÅRSTOT!$A10)+SUMIFS(MALERE!E$7:E$18,MALERE!$A$7:$A$18,ÅRSTOT!$A10)+SUMIFS(TAKTEKKERE!E$7:E$18,TAKTEKKERE!$A$7:$A$18,ÅRSTOT!$A10) -> 0 | F10: =IF(D10=0,0,B10/D10) -> 0 | G10: 0 | H10: =IF(D10+E10=0,0,(B10+C10)/(D10+E10)) -> 0 | I10: =SUMIFS(BETONG!I$7:I$18,BETONG!$A$7:$A$18,ÅRSTOT!$A10)+SUMIFS(TØMRERE!I$7:I$18,TØMRERE!$A$7:$A$18,ÅRSTOT!$A10)+SUMIFS(RØRLEGGERE!I$7:I$18,RØRLEGGERE!$A$7:$A$18,ÅRSTOT!$A10)+SUMIFS(MURERE!I$7:I$18,MURERE!$A$7:$A$18,ÅRSTOT!$A10)+SUMIFS('BLIKK OG VENTILASJON'!I$7:I$18,'BLIKK OG VENTILASJON'!$A$7:$A$18,ÅRSTOT!$A10)+SUMIFS(ISOLATØR!I$7:I$18,ISOLATØR!$A$7:$A$18,ÅRSTOT!$A10)+SUMIFS(MALERE!I$7:I$18,MALERE!$A$7:$A$18,ÅRSTOT!$A10)+SUMIFS(TAKTEKKERE!I$7:I$18,TAKTEKKERE!$A$7:$A$18,ÅRSTOT!$A10) -> 0 | J10: =SUMIFS(BETONG!J$7:J$18,BETONG!$A$7:$A$18,ÅRSTOT!$A10)+SUMIFS(TØMRERE!J$7:J$18,TØMRERE!$A$7:$A$18,ÅRSTOT!$A10)+SUMIFS(RØRLEGGERE!J$7:J$18,RØRLEGGERE!$A$7:$A$18,ÅRSTOT!$A10)+SUMIFS(MURERE!J$7:J$18,MURERE!$A$7:$A$18,ÅRSTOT!$A10)+SUMIFS('BLIKK OG VENTILASJON'!J$7:J$18,'BLIKK OG VENTILASJON'!$A$7:$A$18,ÅRSTOT!$A10)+SUMIFS(ISOLATØR!J$7:J$18,ISOLATØR!$A$7:$A$18,ÅRSTOT!$A10)+SUMIFS(MALERE!J$7:J$18,MALERE!$A$7:$A$18,ÅRSTOT!$A10)+SUMIFS(TAKTEKKERE!J$7:J$18,TAKTEKKERE!$A$7:$A$18,ÅRSTOT!$A10) -> 0 | K10: 0 | L10: 0 | M10: 0
A11: Haugesund | B11: =SUMIFS(BETONG!B$7:B$18,BETONG!$A$7:$A$18,ÅRSTOT!$A11)+SUMIFS(TØMRERE!B$7:B$18,TØMRERE!$A$7:$A$18,ÅRSTOT!$A11)+SUMIFS(RØRLEGGERE!B$7:B$18,RØRLEGGERE!$A$7:$A$18,ÅRSTOT!$A11)+SUMIFS(MURERE!B$7:B$18,MURERE!$A$7:$A$18,ÅRSTOT!$A11)+SUMIFS('BLIKK OG VENTILASJON'!B$7:B$18,'BLIKK OG VENTILASJON'!$A$7:$A$18,ÅRSTOT!$A11)+SUMIFS(ISOLATØR!B$7:B$18,ISOLATØR!$A$7:$A$18,ÅRSTOT!$A11)+SUMIFS(MALERE!B$7:B$18,MALERE!$A$7:$A$18,ÅRSTOT!$A11)+SUMIFS(TAKTEKKERE!B$7:B$18,TAKTEKKERE!$A$7:$A$18,ÅRSTOT!$A11) -> 0 | C11: =SUMIFS(BETONG!C$7:C$18,BETONG!$A$7:$A$18,ÅRSTOT!$A11)+SUMIFS(TØMRERE!C$7:C$18,TØMRERE!$A$7:$A$18,ÅRSTOT!$A11)+SUMIFS(RØRLEGGERE!C$7:C$18,RØRLEGGERE!$A$7:$A$18,ÅRSTOT!$A11)+SUMIFS(MURERE!C$7:C$18,MURERE!$A$7:$A$18,ÅRSTOT!$A11)+SUMIFS('BLIKK OG VENTILASJON'!C$7:C$18,'BLIKK OG VENTILASJON'!$A$7:$A$18,ÅRSTOT!$A11)+SUMIFS(ISOLATØR!C$7:C$18,ISOLATØR!$A$7:$A$18,ÅRSTOT!$A11)+SUMIFS(MALERE!C$7:C$18,MALERE!$A$7:$A$18,ÅRSTOT!$A11)+SUMIFS(TAKTEKKERE!C$7:C$18,TAKTEKKERE!$A$7:$A$18,ÅRSTOT!$A11) -> 0 | D11: =SUMIFS(BETONG!D$7:D$18,BETONG!$A$7:$A$18,ÅRSTOT!$A11)+SUMIFS(TØMRERE!D$7:D$18,TØMRERE!$A$7:$A$18,ÅRSTOT!$A11)+SUMIFS(RØRLEGGERE!D$7:D$18,RØRLEGGERE!$A$7:$A$18,ÅRSTOT!$A11)+SUMIFS(MURERE!D$7:D$18,MURERE!$A$7:$A$18,ÅRSTOT!$A11)+SUMIFS('BLIKK OG VENTILASJON'!D$7:D$18,'BLIKK OG VENTILASJON'!$A$7:$A$18,ÅRSTOT!$A11)+SUMIFS(ISOLATØR!D$7:D$18,ISOLATØR!$A$7:$A$18,ÅRSTOT!$A11)+SUMIFS(MALERE!D$7:D$18,MALERE!$A$7:$A$18,ÅRSTOT!$A11)+SUMIFS(TAKTEKKERE!D$7:D$18,TAKTEKKERE!$A$7:$A$18,ÅRSTOT!$A11) -> 0 | E11: =SUMIFS(BETONG!E$7:E$18,BETONG!$A$7:$A$18,ÅRSTOT!$A11)+SUMIFS(TØMRERE!E$7:E$18,TØMRERE!$A$7:$A$18,ÅRSTOT!$A11)+SUMIFS(RØRLEGGERE!E$7:E$18,RØRLEGGERE!$A$7:$A$18,ÅRSTOT!$A11)+SUMIFS(MURERE!E$7:E$18,MURERE!$A$7:$A$18,ÅRSTOT!$A11)+SUMIFS('BLIKK OG VENTILASJON'!E$7:E$18,'BLIKK OG VENTILASJON'!$A$7:$A$18,ÅRSTOT!$A11)+SUMIFS(ISOLATØR!E$7:E$18,ISOLATØR!$A$7:$A$18,ÅRSTOT!$A11)+SUMIFS(MALERE!E$7:E$18,MALERE!$A$7:$A$18,ÅRSTOT!$A11)+SUMIFS(TAKTEKKERE!E$7:E$18,TAKTEKKERE!$A$7:$A$18,ÅRSTOT!$A11) -> 0 | F11: 0 | G11: 0 | H11: 0 | I11: =SUMIFS(BETONG!I$7:I$18,BETONG!$A$7:$A$18,ÅRSTOT!$A11)+SUMIFS(TØMRERE!I$7:I$18,TØMRERE!$A$7:$A$18,ÅRSTOT!$A11)+SUMIFS(RØRLEGGERE!I$7:I$18,RØRLEGGERE!$A$7:$A$18,ÅRSTOT!$A11)+SUMIFS(MURERE!I$7:I$18,MURERE!$A$7:$A$18,ÅRSTOT!$A11)+SUMIFS('BLIKK OG VENTILASJON'!I$7:I$18,'BLIKK OG VENTILASJON'!$A$7:$A$18,ÅRSTOT!$A11)+SUMIFS(ISOLATØR!I$7:I$18,ISOLATØR!$A$7:$A$18,ÅRSTOT!$A11)+SUMIFS(MALERE!I$7:I$18,MALERE!$A$7:$A$18,ÅRSTOT!$A11)+SUMIFS(TAKTEKKERE!I$7:I$18,TAKTEKKERE!$A$7:$A$18,ÅRSTOT!$A11) -> 7139951 | J11: =SUMIFS(BETONG!J$7:J$18,BETONG!$A$7:$A$18,ÅRSTOT!$A11)+SUMIFS(TØMRERE!J$7:J$18,TØMRERE!$A$7:$A$18,ÅRSTOT!$A11)+SUMIFS(RØRLEGGERE!J$7:J$18,RØRLEGGERE!$A$7:$A$18,ÅRSTOT!$A11)+SUMIFS(MURERE!J$7:J$18,MURERE!$A$7:$A$18,ÅRSTOT!$A11)+SUMIFS('BLIKK OG VENTILASJON'!J$7:J$18,'BLIKK OG VENTILASJON'!$A$7:$A$18,ÅRSTOT!$A11)+SUMIFS(ISOLATØR!J$7:J$18,ISOLATØR!$A$7:$A$18,ÅRSTOT!$A11)+SUMIFS(MALERE!J$7:J$18,MALERE!$A$7:$A$18,ÅRSTOT!$A11)+SUMIFS(TAKTEKKERE!J$7:J$18,TAKTEKKERE!$A$7:$A$18,ÅRSTOT!$A11) -> 0 | K11: 284.259608 | L11: -1 | M11: -1
A12: Hamar og Omegn | B12: =SUMIFS(BETONG!B$7:B$18,BETONG!$A$7:$A$18,ÅRSTOT!$A12)+SUMIFS(TØMRERE!B$7:B$18,TØMRERE!$A$7:$A$18,ÅRSTOT!$A12)+SUMIFS(RØRLEGGERE!B$7:B$18,RØRLEGGERE!$A$7:$A$18,ÅRSTOT!$A12)+SUMIFS(MURERE!B$7:B$18,MURERE!$A$7:$A$18,ÅRSTOT!$A12)+SUMIFS('BLIKK OG VENTILASJON'!B$7:B$18,'BLIKK OG VENTILASJON'!$A$7:$A$18,ÅRSTOT!$A12)+SUMIFS(ISOLATØR!B$7:B$18,ISOLATØR!$A$7:$A$18,ÅRSTOT!$A12)+SUMIFS(MALERE!B$7:B$18,MALERE!$A$7:$A$18,ÅRSTOT!$A12)+SUMIFS(TAKTEKKERE!B$7:B$18,TAKTEKKERE!$A$7:$A$18,ÅRSTOT!$A12) -> 26957645.47 | C12: =SUMIFS(BETONG!C$7:C$18,BETONG!$A$7:$A$18,ÅRSTOT!$A12)+SUMIFS(TØMRERE!C$7:C$18,TØMRERE!$A$7:$A$18,ÅRSTOT!$A12)+SUMIFS(RØRLEGGERE!C$7:C$18,RØRLEGGERE!$A$7:$A$18,ÅRSTOT!$A12)+SUMIFS(MURERE!C$7:C$18,MURERE!$A$7:$A$18,ÅRSTOT!$A12)+SUMIFS('BLIKK OG VENTILASJON'!C$7:C$18,'BLIKK OG VENTILASJON'!$A$7:$A$18,ÅRSTOT!$A12)+SUMIFS(ISOLATØR!C$7:C$18,ISOLATØR!$A$7:$A$18,ÅRSTOT!$A12)+SUMIFS(MALERE!C$7:C$18,MALERE!$A$7:$A$18,ÅRSTOT!$A12)+SUMIFS(TAKTEKKERE!C$7:C$18,TAKTEKKERE!$A$7:$A$18,ÅRSTOT!$A12) -> 55635.68 | D12: =SUMIFS(BETONG!D$7:D$18,BETONG!$A$7:$A$18,ÅRSTOT!$A12)+SUMIFS(TØMRERE!D$7:D$18,TØMRERE!$A$7:$A$18,ÅRSTOT!$A12)+SUMIFS(RØRLEGGERE!D$7:D$18,RØRLEGGERE!$A$7:$A$18,ÅRSTOT!$A12)+SUMIFS(MURERE!D$7:D$18,MURERE!$A$7:$A$18,ÅRSTOT!$A12)+SUMIFS('BLIKK OG VENTILASJON'!D$7:D$18,'BLIKK OG VENTILASJON'!$A$7:$A$18,ÅRSTOT!$A12)+SUMIFS(ISOLATØR!D$7:D$18,ISOLATØR!$A$7:$A$18,ÅRSTOT!$A12)+SUMIFS(MALERE!D$7:D$18,MALERE!$A$7:$A$18,ÅRSTOT!$A12)+SUMIFS(TAKTEKKERE!D$7:D$18,TAKTEKKERE!$A$7:$A$18,ÅRSTOT!$A12) -> 82243.45 | E12: =SUMIFS(BETONG!E$7:E$18,BETONG!$A$7:$A$18,ÅRSTOT!$A12)+SUMIFS(TØMRERE!E$7:E$18,TØMRERE!$A$7:$A$18,ÅRSTOT!$A12)+SUMIFS(RØRLEGGERE!E$7:E$18,RØRLEGGERE!$A$7:$A$18,ÅRSTOT!$A12)+SUMIFS(MURERE!E$7:E$18,MURERE!$A$7:$A$18,ÅRSTOT!$A12)+SUMIFS('BLIKK OG VENTILASJON'!E$7:E$18,'BLIKK OG VENTILASJON'!$A$7:$A$18,ÅRSTOT!$A12)+SUMIFS(ISOLATØR!E$7:E$18,ISOLATØR!$A$7:$A$18,ÅRSTOT!$A12)+SUMIFS(MALERE!E$7:E$18,MALERE!$A$7:$A$18,ÅRSTOT!$A12)+SUMIFS(TAKTEKKERE!E$7:E$18,TAKTEKKERE!$A$7:$A$18,ÅRSTOT!$A12) -> 298.2 | F12: 327.7786312 | G12: 186.5716968 | H12: 327.2684899 | I12: =SUMIFS(BETONG!I$7:I$18,BETONG!$A$7:$A$18,ÅRSTOT!$A12)+SUMIFS(TØMRERE!I$7:I$18,TØMRERE!$A$7:$A$18,ÅRSTOT!$A12)+SUMIFS(RØRLEGGERE!I$7:I$18,RØRLEGGERE!$A$7:$A$18,ÅRSTOT!$A12)+SUMIFS(MURERE!I$7:I$18,MURERE!$A$7:$A$18,ÅRSTOT!$A12)+SUMIFS('BLIKK OG VENTILASJON'!I$7:I$18,'BLIKK OG VENTILASJON'!$A$7:$A$18,ÅRSTOT!$A12)+SUMIFS(ISOLATØR!I$7:I$18,ISOLATØR!$A$7:$A$18,ÅRSTOT!$A12)+SUMIFS(MALERE!I$7:I$18,MALERE!$A$7:$A$18,ÅRSTOT!$A12)+SUMIFS(TAKTEKKERE!I$7:I$18,TAKTEKKERE!$A$7:$A$18,ÅRSTOT!$A12) -> 11796373 | J12: =SUMIFS(BETONG!J$7:J$18,BETONG!$A$7:$A$18,ÅRSTOT!$A12)+SUMIFS(TØMRERE!J$7:J$18,TØMRERE!$A$7:$A$18,ÅRSTOT!$A12)+SUMIFS(RØRLEGGERE!J$7:J$18,RØRLEGGERE!$A$7:$A$18,ÅRSTOT!$A12)+SUMIFS(MURERE!J$7:J$18,MURERE!$A$7:$A$18,ÅRSTOT!$A12)+SUMIFS('BLIKK OG VENTILASJON'!J$7:J$18,'BLIKK OG VENTILASJON'!$A$7:$A$18,ÅRSTOT!$A12)+SUMIFS(ISOLATØR!J$7:J$18,ISOLATØR!$A$7:$A$18,ÅRSTOT!$A12)+SUMIFS(MALERE!J$7:J$18,MALERE!$A$7:$A$18,ÅRSTOT!$A12)+SUMIFS(TAKTEKKERE!J$7:J$18,TAKTEKKERE!$A$7:$A$18,ÅRSTOT!$A12) -> 438619 | K12: 331.9572547 | L12: 1.28524865 | M12: -0.01412460401
A13: Sandnes | B13: =SUMIFS(BETONG!B$7:B$18,BETONG!$A$7:$A$18,ÅRSTOT!$A13)+SUMIFS(TØMRERE!B$7:B$18,TØMRERE!$A$7:$A$18,ÅRSTOT!$A13)+SUMIFS(RØRLEGGERE!B$7:B$18,RØRLEGGERE!$A$7:$A$18,ÅRSTOT!$A13)+SUMIFS(MURERE!B$7:B$18,MURERE!$A$7:$A$18,ÅRSTOT!$A13)+SUMIFS('BLIKK OG VENTILASJON'!B$7:B$18,'BLIKK OG VENTILASJON'!$A$7:$A$18,ÅRSTOT!$A13)+SUMIFS(ISOLATØR!B$7:B$18,ISOLATØR!$A$7:$A$18,ÅRSTOT!$A13)+SUMIFS(MALERE!B$7:B$18,MALERE!$A$7:$A$18,ÅRSTOT!$A13)+SUMIFS(TAKTEKKERE!B$7:B$18,TAKTEKKERE!$A$7:$A$18,ÅRSTOT!$A13) -> 16119606.69 | C13: =SUMIFS(BETONG!C$7:C$18,BETONG!$A$7:$A$18,ÅRSTOT!$A13)+SUMIFS(TØMRERE!C$7:C$18,TØMRERE!$A$7:$A$18,ÅRSTOT!$A13)+SUMIFS(RØRLEGGERE!C$7:C$18,RØRLEGGERE!$A$7:$A$18,ÅRSTOT!$A13)+SUMIFS(MURERE!C$7:C$18,MURERE!$A$7:$A$18,ÅRSTOT!$A13)+SUMIFS('BLIKK OG VENTILASJON'!C$7:C$18,'BLIKK OG VENTILASJON'!$A$7:$A$18,ÅRSTOT!$A13)+SUMIFS(ISOLATØR!C$7:C$18,ISOLATØR!$A$7:$A$18,ÅRSTOT!$A13)+SUMIFS(MALERE!C$7:C$18,MALERE!$A$7:$A$18,ÅRSTOT!$A13)+SUMIFS(TAKTEKKERE!C$7:C$18,TAKTEKKERE!$A$7:$A$18,ÅRSTOT!$A13) -> 0 | D13: =SUMIFS(BETONG!D$7:D$18,BETONG!$A$7:$A$18,ÅRSTOT!$A13)+SUMIFS(TØMRERE!D$7:D$18,TØMRERE!$A$7:$A$18,ÅRSTOT!$A13)+SUMIFS(RØRLEGGERE!D$7:D$18,RØRLEGGERE!$A$7:$A$18,ÅRSTOT!$A13)+SUMIFS(MURERE!D$7:D$18,MURERE!$A$7:$A$18,ÅRSTOT!$A13)+SUMIFS('BLIKK OG VENTILASJON'!D$7:D$18,'BLIKK OG VENTILASJON'!$A$7:$A$18,ÅRSTOT!$A13)+SUMIFS(ISOLATØR!D$7:D$18,ISOLATØR!$A$7:$A$18,ÅRSTOT!$A13)+SUMIFS(MALERE!D$7:D$18,MALERE!$A$7:$A$18,ÅRSTOT!$A13)+SUMIFS(TAKTEKKERE!D$7:D$18,TAKTEKKERE!$A$7:$A$18,ÅRSTOT!$A13) -> 47026.92 | E13: =SUMIFS(BETONG!E$7:E$18,BETONG!$A$7:$A$18,ÅRSTOT!$A13)+SUMIFS(TØMRERE!E$7:E$18,TØMRERE!$A$7:$A$18,ÅRSTOT!$A13)+SUMIFS(RØRLEGGERE!E$7:E$18,RØRLEGGERE!$A$7:$A$18,ÅRSTOT!$A13)+SUMIFS(MURERE!E$7:E$18,MURERE!$A$7:$A$18,ÅRSTOT!$A13)+SUMIFS('BLIKK OG VENTILASJON'!E$7:E$18,'BLIKK OG VENTILASJON'!$A$7:$A$18,ÅRSTOT!$A13)+SUMIFS(ISOLATØR!E$7:E$18,ISOLATØR!$A$7:$A$18,ÅRSTOT!$A13)+SUMIFS(MALERE!E$7:E$18,MALERE!$A$7:$A$18,ÅRSTOT!$A13)+SUMIFS(TAKTEKKERE!E$7:E$18,TAKTEKKERE!$A$7:$A$18,ÅRSTOT!$A13) -> 0 | F13: 342.7740258 | G13: 0 | H13: 342.7740258 | I13: =SUMIFS(BETONG!I$7:I$18,BETONG!$A$7:$A$18,ÅRSTOT!$A13)+SUMIFS(TØMRERE!I$7:I$18,TØMRERE!$A$7:$A$18,ÅRSTOT!$A13)+SUMIFS(RØRLEGGERE!I$7:I$18,RØRLEGGERE!$A$7:$A$18,ÅRSTOT!$A13)+SUMIFS(MURERE!I$7:I$18,MURERE!$A$7:$A$18,ÅRSTOT!$A13)+SUMIFS('BLIKK OG VENTILASJON'!I$7:I$18,'BLIKK OG VENTILASJON'!$A$7:$A$18,ÅRSTOT!$A13)+SUMIFS(ISOLATØR!I$7:I$18,ISOLATØR!$A$7:$A$18,ÅRSTOT!$A13)+SUMIFS(MALERE!I$7:I$18,MALERE!$A$7:$A$18,ÅRSTOT!$A13)+SUMIFS(TAKTEKKERE!I$7:I$18,TAKTEKKERE!$A$7:$A$18,ÅRSTOT!$A13) -> 37531606.55 | J13: =SUMIFS(BETONG!J$7:J$18,BETONG!$A$7:$A$18,ÅRSTOT!$A13)+SUMIFS(TØMRERE!J$7:J$18,TØMRERE!$A$7:$A$18,ÅRSTOT!$A13)+SUMIFS(RØRLEGGERE!J$7:J$18,RØRLEGGERE!$A$7:$A$18,ÅRSTOT!$A13)+SUMIFS(MURERE!J$7:J$18,MURERE!$A$7:$A$18,ÅRSTOT!$A13)+SUMIFS('BLIKK OG VENTILASJON'!J$7:J$18,'BLIKK OG VENTILASJON'!$A$7:$A$18,ÅRSTOT!$A13)+SUMIFS(ISOLATØR!J$7:J$18,ISOLATØR!$A$7:$A$18,ÅRSTOT!$A13)+SUMIFS(MALERE!J$7:J$18,MALERE!$A$7:$A$18,ÅRSTOT!$A13)+SUMIFS(TAKTEKKERE!J$7:J$18,TAKTEKKERE!$A$7:$A$18,ÅRSTOT!$A13) -> 0 | K13: 333.3502569 | L13: -0.570505817 | M13: 0.02826987153
A14: Stavanger | B14: =SUMIFS(BETONG!B$7:B$18,BETONG!$A$7:$A$18,ÅRSTOT!$A14)+SUMIFS(TØMRERE!B$7:B$18,TØMRERE!$A$7:$A$18,ÅRSTOT!$A14)+SUMIFS(RØRLEGGERE!B$7:B$18,RØRLEGGERE!$A$7:$A$18,ÅRSTOT!$A14)+SUMIFS(MURERE!B$7:B$18,MURERE!$A$7:$A$18,ÅRSTOT!$A14)+SUMIFS('BLIKK OG VENTILASJON'!B$7:B$18,'BLIKK OG VENTILASJON'!$A$7:$A$18,ÅRSTOT!$A14)+SUMIFS(ISOLATØR!B$7:B$18,ISOLATØR!$A$7:$A$18,ÅRSTOT!$A14)+SUMIFS(MALERE!B$7:B$18,MALERE!$A$7:$A$18,ÅRSTOT!$A14)+SUMIFS(TAKTEKKERE!B$7:B$18,TAKTEKKERE!$A$7:$A$18,ÅRSTOT!$A14) -> 4264119.43 | C14: =SUMIFS(BETONG!C$7:C$18,BETONG!$A$7:$A$18,ÅRSTOT!$A14)+SUMIFS(TØMRERE!C$7:C$18,TØMRERE!$A$7:$A$18,ÅRSTOT!$A14)+SUMIFS(RØRLEGGERE!C$7:C$18,RØRLEGGERE!$A$7:$A$18,ÅRSTOT!$A14)+SUMIFS(MURERE!C$7:C$18,MURERE!$A$7:$A$18,ÅRSTOT!$A14)+SUMIFS('BLIKK OG VENTILASJON'!C$7:C$18,'BLIKK OG VENTILASJON'!$A$7:$A$18,ÅRSTOT!$A14)+SUMIFS(ISOLATØR!C$7:C$18,ISOLATØR!$A$7:$A$18,ÅRSTOT!$A14)+SUMIFS(MALERE!C$7:C$18,MALERE!$A$7:$A$18,ÅRSTOT!$A14)+SUMIFS(TAKTEKKERE!C$7:C$18,TAKTEKKERE!$A$7:$A$18,ÅRSTOT!$A14) -> 0 | D14: =SUMIFS(BETONG!D$7:D$18,BETONG!$A$7:$A$18,ÅRSTOT!$A14)+SUMIFS(TØMRERE!D$7:D$18,TØMRERE!$A$7:$A$18,ÅRSTOT!$A14)+SUMIFS(RØRLEGGERE!D$7:D$18,RØRLEGGERE!$A$7:$A$18,ÅRSTOT!$A14)+SUMIFS(MURERE!D$7:D$18,MURERE!$A$7:$A$18,ÅRSTOT!$A14)+SUMIFS('BLIKK OG VENTILASJON'!D$7:D$18,'BLIKK OG VENTILASJON'!$A$7:$A$18,ÅRSTOT!$A14)+SUMIFS(ISOLATØR!D$7:D$18,ISOLATØR!$A$7:$A$18,ÅRSTOT!$A14)+SUMIFS(MALERE!D$7:D$18,MALERE!$A$7:$A$18,ÅRSTOT!$A14)+SUMIFS(TAKTEKKERE!D$7:D$18,TAKTEKKERE!$A$7:$A$18,ÅRSTOT!$A14) -> 14430 | E14: =SUMIFS(BETONG!E$7:E$18,BETONG!$A$7:$A$18,ÅRSTOT!$A14)+SUMIFS(TØMRERE!E$7:E$18,TØMRERE!$A$7:$A$18,ÅRSTOT!$A14)+SUMIFS(RØRLEGGERE!E$7:E$18,RØRLEGGERE!$A$7:$A$18,ÅRSTOT!$A14)+SUMIFS(MURERE!E$7:E$18,MURERE!$A$7:$A$18,ÅRSTOT!$A14)+SUMIFS('BLIKK OG VENTILASJON'!E$7:E$18,'BLIKK OG VENTILASJON'!$A$7:$A$18,ÅRSTOT!$A14)+SUMIFS(ISOLATØR!E$7:E$18,ISOLATØR!$A$7:$A$18,ÅRSTOT!$A14)+SUMIFS(MALERE!E$7:E$18,MALERE!$A$7:$A$18,ÅRSTOT!$A14)+SUMIFS(TAKTEKKERE!E$7:E$18,TAKTEKKERE!$A$7:$A$18,ÅRSTOT!$A14) -> 0 | F14: 295.503772 | G14: 0 | H14: 295.503772 | I14: =SUMIFS(BETONG!I$7:I$18,BETONG!$A$7:$A$18,ÅRSTOT!$A14)+SUMIFS(TØMRERE!I$7:I$18,TØMRERE!$A$7:$A$18,ÅRSTOT!$A14)+SUMIFS(RØRLEGGERE!I$7:I$18,RØRLEGGERE!$A$7:$A$18,ÅRSTOT!$A14)+SUMIFS(MURERE!I$7:I$18,MURERE!$A$7:$A$18,ÅRSTOT!$A14)+SUMIFS('BLIKK OG VENTILASJON'!I$7:I$18,'BLIKK OG VENTILASJON'!$A$7:$A$18,ÅRSTOT!$A14)+SUMIFS(ISOLATØR!I$7:I$18,ISOLATØR!$A$7:$A$18,ÅRSTOT!$A14)+SUMIFS(MALERE!I$7:I$18,MALERE!$A$7:$A$18,ÅRSTOT!$A14)+SUMIFS(TAKTEKKERE!I$7:I$18,TAKTEKKERE!$A$7:$A$18,ÅRSTOT!$A14) -> 4461131.5 | J14: =SUMIFS(BETONG!J$7:J$18,BETONG!$A$7:$A$18,ÅRSTOT!$A14)+SUMIFS(TØMRERE!J$7:J$18,TØMRERE!$A$7:$A$18,ÅRSTOT!$A14)+SUMIFS(RØRLEGGERE!J$7:J$18,RØRLEGGERE!$A$7:$A$18,ÅRSTOT!$A14)+SUMIFS(MURERE!J$7:J$18,MURERE!$A$7:$A$18,ÅRSTOT!$A14)+SUMIFS('BLIKK OG VENTILASJON'!J$7:J$18,'BLIKK OG VENTILASJON'!$A$7:$A$18,ÅRSTOT!$A14)+SUMIFS(ISOLATØR!J$7:J$18,ISOLATØR!$A$7:$A$18,ÅRSTOT!$A14)+SUMIFS(MALERE!J$7:J$18,MALERE!$A$7:$A$18,ÅRSTOT!$A14)+SUMIFS(TAKTEKKERE!J$7:J$18,TAKTEKKERE!$A$7:$A$18,ÅRSTOT!$A14) -> 0 | K14: 293.0786058 | L14: -0.04416190601 | M14: 0.008274797839
A15: Telemark | B15: =SUMIFS(BETONG!B$7:B$18,BETONG!$A$7:$A$18,ÅRSTOT!$A15)+SUMIFS(TØMRERE!B$7:B$18,TØMRERE!$A$7:$A$18,ÅRSTOT!$A15)+SUMIFS(RØRLEGGERE!B$7:B$18,RØRLEGGERE!$A$7:$A$18,ÅRSTOT!$A15)+SUMIFS(MURERE!B$7:B$18,MURERE!$A$7:$A$18,ÅRSTOT!$A15)+SUMIFS('BLIKK OG VENTILASJON'!B$7:B$18,'BLIKK OG VENTILASJON'!$A$7:$A$18,ÅRSTOT!$A15)+SUMIFS(ISOLATØR!B$7:B$18,ISOLATØR!$A$7:$A$18,ÅRSTOT!$A15)+SUMIFS(MALERE!B$7:B$18,MALERE!$A$7:$A$18,ÅRSTOT!$A15)+SUMIFS(TAKTEKKERE!B$7:B$18,TAKTEKKERE!$A$7:$A$18,ÅRSTOT!$A15) -> 21394768.93 | C15: =SUMIFS(BETONG!C$7:C$18,BETONG!$A$7:$A$18,ÅRSTOT!$A15)+SUMIFS(TØMRERE!C$7:C$18,TØMRERE!$A$7:$A$18,ÅRSTOT!$A15)+SUMIFS(RØRLEGGERE!C$7:C$18,RØRLEGGERE!$A$7:$A$18,ÅRSTOT!$A15)+SUMIFS(MURERE!C$7:C$18,MURERE!$A$7:$A$18,ÅRSTOT!$A15)+SUMIFS('BLIKK OG VENTILASJON'!C$7:C$18,'BLIKK OG VENTILASJON'!$A$7:$A$18,ÅRSTOT!$A15)+SUMIFS(ISOLATØR!C$7:C$18,ISOLATØR!$A$7:$A$18,ÅRSTOT!$A15)+SUMIFS(MALERE!C$7:C$18,MALERE!$A$7:$A$18,ÅRSTOT!$A15)+SUMIFS(TAKTEKKERE!C$7:C$18,TAKTEKKERE!$A$7:$A$18,ÅRSTOT!$A15) -> 0 | D15: =SUMIFS(BETONG!D$7:D$18,BETONG!$A$7:$A$18,ÅRSTOT!$A15)+SUMIFS(TØMRERE!D$7:D$18,TØMRERE!$A$7:$A$18,ÅRSTOT!$A15)+SUMIFS(RØRLEGGERE!D$7:D$18,RØRLEGGERE!$A$7:$A$18,ÅRSTOT!$A15)+SUMIFS(MURERE!D$7:D$18,MURERE!$A$7:$A$18,ÅRSTOT!$A15)+SUMIFS('BLIKK OG VENTILASJON'!D$7:D$18,'BLIKK OG VENTILASJON'!$A$7:$A$18,ÅRSTOT!$A15)+SUMIFS(ISOLATØR!D$7:D$18,ISOLATØR!$A$7:$A$18,ÅRSTOT!$A15)+SUMIFS(MALERE!D$7:D$18,MALERE!$A$7:$A$18,ÅRSTOT!$A15)+SUMIFS(TAKTEKKERE!D$7:D$18,TAKTEKKERE!$A$7:$A$18,ÅRSTOT!$A15) -> 63194 | E15: =SUMIFS(BETONG!E$7:E$18,BETONG!$A$7:$A$18,ÅRSTOT!$A15)+SUMIFS(TØMRERE!E$7:E$18,TØMRERE!$A$7:$A$18,ÅRSTOT!$A15)+SUMIFS(RØRLEGGERE!E$7:E$18,RØRLEGGERE!$A$7:$A$18,ÅRSTOT!$A15)+SUMIFS(MURERE!E$7:E$18,MURERE!$A$7:$A$18,ÅRSTOT!$A15)+SUMIFS('BLIKK OG VENTILASJON'!E$7:E$18,'BLIKK OG VENTILASJON'!$A$7:$A$18,ÅRSTOT!$A15)+SUMIFS(ISOLATØR!E$7:E$18,ISOLATØR!$A$7:$A$18,ÅRSTOT!$A15)+SUMIFS(MALERE!E$7:E$18,MALERE!$A$7:$A$18,ÅRSTOT!$A15)+SUMIFS(TAKTEKKERE!E$7:E$18,TAKTEKKERE!$A$7:$A$18,ÅRSTOT!$A15) -> 0 | F15: 338.5569663 | G15: 0 | H15: 338.5569663 | I15: =SUMIFS(BETONG!I$7:I$18,BETONG!$A$7:$A$18,ÅRSTOT!$A15)+SUMIFS(TØMRERE!I$7:I$18,TØMRERE!$A$7:$A$18,ÅRSTOT!$A15)+SUMIFS(RØRLEGGERE!I$7:I$18,RØRLEGGERE!$A$7:$A$18,ÅRSTOT!$A15)+SUMIFS(MURERE!I$7:I$18,MURERE!$A$7:$A$18,ÅRSTOT!$A15)+SUMIFS('BLIKK OG VENTILASJON'!I$7:I$18,'BLIKK OG VENTILASJON'!$A$7:$A$18,ÅRSTOT!$A15)+SUMIFS(ISOLATØR!I$7:I$18,ISOLATØR!$A$7:$A$18,ÅRSTOT!$A15)+SUMIFS(MALERE!I$7:I$18,MALERE!$A$7:$A$18,ÅRSTOT!$A15)+SUMIFS(TAKTEKKERE!I$7:I$18,TAKTEKKERE!$A$7:$A$18,ÅRSTOT!$A15) -> 14382440.64 | J15: =SUMIFS(BETONG!J$7:J$18,BETONG!$A$7:$A$18,ÅRSTOT!$A15)+SUMIFS(TØMRERE!J$7:J$18,TØMRERE!$A$7:$A$18,ÅRSTOT!$A15)+SUMIFS(RØRLEGGERE!J$7:J$18,RØRLEGGERE!$A$7:$A$18,ÅRSTOT!$A15)+SUMIFS(MURERE!J$7:J$18,MURERE!$A$7:$A$18,ÅRSTOT!$A15)+SUMIFS('BLIKK OG VENTILASJON'!J$7:J$18,'BLIKK OG VENTILASJON'!$A$7:$A$18,ÅRSTOT!$A15)+SUMIFS(ISOLATØR!J$7:J$18,ISOLATØR!$A$7:$A$18,ÅRSTOT!$A15)+SUMIFS(MALERE!J$7:J$18,MALERE!$A$7:$A$18,ÅRSTOT!$A15)+SUMIFS(TAKTEKKERE!J$7:J$18,TAKTEKKERE!$A$7:$A$18,ÅRSTOT!$A15) -> 2568097 | K15: 305.0498159 | L15: 0.4875617752 | M15: 0.1098415693
A16: Trondheim | B16: =SUMIFS(BETONG!B$7:B$18,BETONG!$A$7:$A$18,ÅRSTOT!$A16)+SUMIFS(TØMRERE!B$7:B$18,TØMRERE!$A$7:$A$18,ÅRSTOT!$A16)+SUMIFS(RØRLEGGERE!B$7:B$18,RØRLEGGERE!$A$7:$A$18,ÅRSTOT!$A16)+SUMIFS(MURERE!B$7:B$18,MURERE!$A$7:$A$18,ÅRSTOT!$A16)+SUMIFS('BLIKK OG VENTILASJON'!B$7:B$18,'BLIKK OG VENTILASJON'!$A$7:$A$18,ÅRSTOT!$A16)+SUMIFS(ISOLATØR!B$7:B$18,ISOLATØR!$A$7:$A$18,ÅRSTOT!$A16)+SUMIFS(MALERE!B$7:B$18,MALERE!$A$7:$A$18,ÅRSTOT!$A16)+SUMIFS(TAKTEKKERE!B$7:B$18,TAKTEKKERE!$A$7:$A$18,ÅRSTOT!$A16) -> 128409100.6 | C16: =SUMIFS(BETONG!C$7:C$18,BETONG!$A$7:$A$18,ÅRSTOT!$A16)+SUMIFS(TØMRERE!C$7:C$18,TØMRERE!$A$7:$A$18,ÅRSTOT!$A16)+SUMIFS(RØRLEGGERE!C$7:C$18,RØRLEGGERE!$A$7:$A$18,ÅRSTOT!$A16)+SUMIFS(MURERE!C$7:C$18,MURERE!$A$7:$A$18,ÅRSTOT!$A16)+SUMIFS('BLIKK OG VENTILASJON'!C$7:C$18,'BLIKK OG VENTILASJON'!$A$7:$A$18,ÅRSTOT!$A16)+SUMIFS(ISOLATØR!C$7:C$18,ISOLATØR!$A$7:$A$18,ÅRSTOT!$A16)+SUMIFS(MALERE!C$7:C$18,MALERE!$A$7:$A$18,ÅRSTOT!$A16)+SUMIFS(TAKTEKKERE!C$7:C$18,TAKTEKKERE!$A$7:$A$18,ÅRSTOT!$A16) -> 11540575.77 | D16: =SUMIFS(BETONG!D$7:D$18,BETONG!$A$7:$A$18,ÅRSTOT!$A16)+SUMIFS(TØMRERE!D$7:D$18,TØMRERE!$A$7:$A$18,ÅRSTOT!$A16)+SUMIFS(RØRLEGGERE!D$7:D$18,RØRLEGGERE!$A$7:$A$18,ÅRSTOT!$A16)+SUMIFS(MURERE!D$7:D$18,MURERE!$A$7:$A$18,ÅRSTOT!$A16)+SUMIFS('BLIKK OG VENTILASJON'!D$7:D$18,'BLIKK OG VENTILASJON'!$A$7:$A$18,ÅRSTOT!$A16)+SUMIFS(ISOLATØR!D$7:D$18,ISOLATØR!$A$7:$A$18,ÅRSTOT!$A16)+SUMIFS(MALERE!D$7:D$18,MALERE!$A$7:$A$18,ÅRSTOT!$A16)+SUMIFS(TAKTEKKERE!D$7:D$18,TAKTEKKERE!$A$7:$A$18,ÅRSTOT!$A16) -> 392837.38 | E16: =SUMIFS(BETONG!E$7:E$18,BETONG!$A$7:$A$18,ÅRSTOT!$A16)+SUMIFS(TØMRERE!E$7:E$18,TØMRERE!$A$7:$A$18,ÅRSTOT!$A16)+SUMIFS(RØRLEGGERE!E$7:E$18,RØRLEGGERE!$A$7:$A$18,ÅRSTOT!$A16)+SUMIFS(MURERE!E$7:E$18,MURERE!$A$7:$A$18,ÅRSTOT!$A16)+SUMIFS('BLIKK OG VENTILASJON'!E$7:E$18,'BLIKK OG VENTILASJON'!$A$7:$A$18,ÅRSTOT!$A16)+SUMIFS(ISOLATØR!E$7:E$18,ISOLATØR!$A$7:$A$18,ÅRSTOT!$A16)+SUMIFS(MALERE!E$7:E$18,MALERE!$A$7:$A$18,ÅRSTOT!$A16)+SUMIFS(TAKTEKKERE!E$7:E$18,TAKTEKKERE!$A$7:$A$18,ÅRSTOT!$A16) -> 54916.45 | F16: =IF(D16=0,0,B16/D16) -> 326.8759725 | G16: 210.1478841 | H16: =IF(D16+E16=0,0,(B16+C16)/(D16+E16)) -> 312.5594177 | I16: =SUMIFS(BETONG!I$7:I$18,BETONG!$A$7:$A$18,ÅRSTOT!$A16)+SUMIFS(TØMRERE!I$7:I$18,TØMRERE!$A$7:$A$18,ÅRSTOT!$A16)+SUMIFS(RØRLEGGERE!I$7:I$18,RØRLEGGERE!$A$7:$A$18,ÅRSTOT!$A16)+SUMIFS(MURERE!I$7:I$18,MURERE!$A$7:$A$18,ÅRSTOT!$A16)+SUMIFS('BLIKK OG VENTILASJON'!I$7:I$18,'BLIKK OG VENTILASJON'!$A$7:$A$18,ÅRSTOT!$A16)+SUMIFS(ISOLATØR!I$7:I$18,ISOLATØR!$A$7:$A$18,ÅRSTOT!$A16)+SUMIFS(MALERE!I$7:I$18,MALERE!$A$7:$A$18,ÅRSTOT!$A16)+SUMIFS(TAKTEKKERE!I$7:I$18,TAKTEKKERE!$A$7:$A$18,ÅRSTOT!$A16) -> 158804706.4 | J16: =SUMIFS(BETONG!J$7:J$18,BETONG!$A$7:$A$18,ÅRSTOT!$A16)+SUMIFS(TØMRERE!J$7:J$18,TØMRERE!$A$7:$A$18,ÅRSTOT!$A16)+SUMIFS(RØRLEGGERE!J$7:J$18,RØRLEGGERE!$A$7:$A$18,ÅRSTOT!$A16)+SUMIFS(MURERE!J$7:J$18,MURERE!$A$7:$A$18,ÅRSTOT!$A16)+SUMIFS('BLIKK OG VENTILASJON'!J$7:J$18,'BLIKK OG VENTILASJON'!$A$7:$A$18,ÅRSTOT!$A16)+SUMIFS(ISOLATØR!J$7:J$18,ISOLATØR!$A$7:$A$18,ÅRSTOT!$A16)+SUMIFS(MALERE!J$7:J$18,MALERE!$A$7:$A$18,ÅRSTOT!$A16)+SUMIFS(TAKTEKKERE!J$7:J$18,TAKTEKKERE!$A$7:$A$18,ÅRSTOT!$A16) -> 21229822.51 | K16: 298.5266997 | L16: -0.1914024239 | M16: 0.04700657611
A17: Vestfold | B17: =SUMIFS(BETONG!B$7:B$18,BETONG!$A$7:$A$18,ÅRSTOT!$A17)+SUMIFS(TØMRERE!B$7:B$18,TØMRERE!$A$7:$A$18,ÅRSTOT!$A17)+SUMIFS(RØRLEGGERE!B$7:B$18,RØRLEGGERE!$A$7:$A$18,ÅRSTOT!$A17)+SUMIFS(MURERE!B$7:B$18,MURERE!$A$7:$A$18,ÅRSTOT!$A17)+SUMIFS('BLIKK OG VENTILASJON'!B$7:B$18,'BLIKK OG VENTILASJON'!$A$7:$A$18,ÅRSTOT!$A17)+SUMIFS(ISOLATØR!B$7:B$18,ISOLATØR!$A$7:$A$18,ÅRSTOT!$A17)+SUMIFS(MALERE!B$7:B$18,MALERE!$A$7:$A$18,ÅRSTOT!$A17)+SUMIFS(TAKTEKKERE!B$7:B$18,TAKTEKKERE!$A$7:$A$18,ÅRSTOT!$A17) -> 790021 | C17: =SUMIFS(BETONG!C$7:C$18,BETONG!$A$7:$A$18,ÅRSTOT!$A17)+SUMIFS(TØMRERE!C$7:C$18,TØMRERE!$A$7:$A$18,ÅRSTOT!$A17)+SUMIFS(RØRLEGGERE!C$7:C$18,RØRLEGGERE!$A$7:$A$18,ÅRSTOT!$A17)+SUMIFS(MURERE!C$7:C$18,MURERE!$A$7:$A$18,ÅRSTOT!$A17)+SUMIFS('BLIKK OG VENTILASJON'!C$7:C$18,'BLIKK OG VENTILASJON'!$A$7:$A$18,ÅRSTOT!$A17)+SUMIFS(ISOLATØR!C$7:C$18,ISOLATØR!$A$7:$A$18,ÅRSTOT!$A17)+SUMIFS(MALERE!C$7:C$18,MALERE!$A$7:$A$18,ÅRSTOT!$A17)+SUMIFS(TAKTEKKERE!C$7:C$18,TAKTEKKERE!$A$7:$A$18,ÅRSTOT!$A17) -> 0 | D17: =SUMIFS(BETONG!D$7:D$18,BETONG!$A$7:$A$18,ÅRSTOT!$A17)+SUMIFS(TØMRERE!D$7:D$18,TØMRERE!$A$7:$A$18,ÅRSTOT!$A17)+SUMIFS(RØRLEGGERE!D$7:D$18,RØRLEGGERE!$A$7:$A$18,ÅRSTOT!$A17)+SUMIFS(MURERE!D$7:D$18,MURERE!$A$7:$A$18,ÅRSTOT!$A17)+SUMIFS('BLIKK OG VENTILASJON'!D$7:D$18,'BLIKK OG VENTILASJON'!$A$7:$A$18,ÅRSTOT!$A17)+SUMIFS(ISOLATØR!D$7:D$18,ISOLATØR!$A$7:$A$18,ÅRSTOT!$A17)+SUMIFS(MALERE!D$7:D$18,MALERE!$A$7:$A$18,ÅRSTOT!$A17)+SUMIFS(TAKTEKKERE!D$7:D$18,TAKTEKKERE!$A$7:$A$18,ÅRSTOT!$A17) -> 2810.5 | E17: =SUMIFS(BETONG!E$7:E$18,BETONG!$A$7:$A$18,ÅRSTOT!$A17)+SUMIFS(TØMRERE!E$7:E$18,TØMRERE!$A$7:$A$18,ÅRSTOT!$A17)+SUMIFS(RØRLEGGERE!E$7:E$18,RØRLEGGERE!$A$7:$A$18,ÅRSTOT!$A17)+SUMIFS(MURERE!E$7:E$18,MURERE!$A$7:$A$18,ÅRSTOT!$A17)+SUMIFS('BLIKK OG VENTILASJON'!E$7:E$18,'BLIKK OG VENTILASJON'!$A$7:$A$18,ÅRSTOT!$A17)+SUMIFS(ISOLATØR!E$7:E$18,ISOLATØR!$A$7:$A$18,ÅRSTOT!$A17)+SUMIFS(MALERE!E$7:E$18,MALERE!$A$7:$A$18,ÅRSTOT!$A17)+SUMIFS(TAKTEKKERE!E$7:E$18,TAKTEKKERE!$A$7:$A$18,ÅRSTOT!$A17) -> 0 | F17: 281.0962462 | G17: 0 | H17: 281.0962462 | I17: =SUMIFS(BETONG!I$7:I$18,BETONG!$A$7:$A$18,ÅRSTOT!$A17)+SUMIFS(TØMRERE!I$7:I$18,TØMRERE!$A$7:$A$18,ÅRSTOT!$A17)+SUMIFS(RØRLEGGERE!I$7:I$18,RØRLEGGERE!$A$7:$A$18,ÅRSTOT!$A17)+SUMIFS(MURERE!I$7:I$18,MURERE!$A$7:$A$18,ÅRSTOT!$A17)+SUMIFS('BLIKK OG VENTILASJON'!I$7:I$18,'BLIKK OG VENTILASJON'!$A$7:$A$18,ÅRSTOT!$A17)+SUMIFS(ISOLATØR!I$7:I$18,ISOLATØR!$A$7:$A$18,ÅRSTOT!$A17)+SUMIFS(MALERE!I$7:I$18,MALERE!$A$7:$A$18,ÅRSTOT!$A17)+SUMIFS(TAKTEKKERE!I$7:I$18,TAKTEKKERE!$A$7:$A$18,ÅRSTOT!$A17) -> 4819741.7 | J17: =SUMIFS(BETONG!J$7:J$18,BETONG!$A$7:$A$18,ÅRSTOT!$A17)+SUMIFS(TØMRERE!J$7:J$18,TØMRERE!$A$7:$A$18,ÅRSTOT!$A17)+SUMIFS(RØRLEGGERE!J$7:J$18,RØRLEGGERE!$A$7:$A$18,ÅRSTOT!$A17)+SUMIFS(MURERE!J$7:J$18,MURERE!$A$7:$A$18,ÅRSTOT!$A17)+SUMIFS('BLIKK OG VENTILASJON'!J$7:J$18,'BLIKK OG VENTILASJON'!$A$7:$A$18,ÅRSTOT!$A17)+SUMIFS(ISOLATØR!J$7:J$18,ISOLATØR!$A$7:$A$18,ÅRSTOT!$A17)+SUMIFS(MALERE!J$7:J$18,MALERE!$A$7:$A$18,ÅRSTOT!$A17)+SUMIFS(TAKTEKKERE!J$7:J$18,TAKTEKKERE!$A$7:$A$18,ÅRSTOT!$A17) -> 0 | K17: 450.4143701 | L17: -0.8360864442 | M17: -0.3759163452
A18: Østfold | B18: =SUMIFS(BETONG!B$7:B$18,BETONG!$A$7:$A$18,ÅRSTOT!$A18)+SUMIFS(TØMRERE!B$7:B$18,TØMRERE!$A$7:$A$18,ÅRSTOT!$A18)+SUMIFS(RØRLEGGERE!B$7:B$18,RØRLEGGERE!$A$7:$A$18,ÅRSTOT!$A18)+SUMIFS(MURERE!B$7:B$18,MURERE!$A$7:$A$18,ÅRSTOT!$A18)+SUMIFS('BLIKK OG VENTILASJON'!B$7:B$18,'BLIKK OG VENTILASJON'!$A$7:$A$18,ÅRSTOT!$A18)+SUMIFS(ISOLATØR!B$7:B$18,ISOLATØR!$A$7:$A$18,ÅRSTOT!$A18)+SUMIFS(MALERE!B$7:B$18,MALERE!$A$7:$A$18,ÅRSTOT!$A18)+SUMIFS(TAKTEKKERE!B$7:B$18,TAKTEKKERE!$A$7:$A$18,ÅRSTOT!$A18) -> 15024754 | C18: =SUMIFS(BETONG!C$7:C$18,BETONG!$A$7:$A$18,ÅRSTOT!$A18)+SUMIFS(TØMRERE!C$7:C$18,TØMRERE!$A$7:$A$18,ÅRSTOT!$A18)+SUMIFS(RØRLEGGERE!C$7:C$18,RØRLEGGERE!$A$7:$A$18,ÅRSTOT!$A18)+SUMIFS(MURERE!C$7:C$18,MURERE!$A$7:$A$18,ÅRSTOT!$A18)+SUMIFS('BLIKK OG VENTILASJON'!C$7:C$18,'BLIKK OG VENTILASJON'!$A$7:$A$18,ÅRSTOT!$A18)+SUMIFS(ISOLATØR!C$7:C$18,ISOLATØR!$A$7:$A$18,ÅRSTOT!$A18)+SUMIFS(MALERE!C$7:C$18,MALERE!$A$7:$A$18,ÅRSTOT!$A18)+SUMIFS(TAKTEKKERE!C$7:C$18,TAKTEKKERE!$A$7:$A$18,ÅRSTOT!$A18) -> 0 | D18: =SUMIFS(BETONG!D$7:D$18,BETONG!$A$7:$A$18,ÅRSTOT!$A18)+SUMIFS(TØMRERE!D$7:D$18,TØMRERE!$A$7:$A$18,ÅRSTOT!$A18)+SUMIFS(RØRLEGGERE!D$7:D$18,RØRLEGGERE!$A$7:$A$18,ÅRSTOT!$A18)+SUMIFS(MURERE!D$7:D$18,MURERE!$A$7:$A$18,ÅRSTOT!$A18)+SUMIFS('BLIKK OG VENTILASJON'!D$7:D$18,'BLIKK OG VENTILASJON'!$A$7:$A$18,ÅRSTOT!$A18)+SUMIFS(ISOLATØR!D$7:D$18,ISOLATØR!$A$7:$A$18,ÅRSTOT!$A18)+SUMIFS(MALERE!D$7:D$18,MALERE!$A$7:$A$18,ÅRSTOT!$A18)+SUMIFS(TAKTEKKERE!D$7:D$18,TAKTEKKERE!$A$7:$A$18,ÅRSTOT!$A18) -> 48347.5 | E18: =SUMIFS(BETONG!E$7:E$18,BETONG!$A$7:$A$18,ÅRSTOT!$A18)+SUMIFS(TØMRERE!E$7:E$18,TØMRERE!$A$7:$A$18,ÅRSTOT!$A18)+SUMIFS(RØRLEGGERE!E$7:E$18,RØRLEGGERE!$A$7:$A$18,ÅRSTOT!$A18)+SUMIFS(MURERE!E$7:E$18,MURERE!$A$7:$A$18,ÅRSTOT!$A18)+SUMIFS('BLIKK OG VENTILASJON'!E$7:E$18,'BLIKK OG VENTILASJON'!$A$7:$A$18,ÅRSTOT!$A18)+SUMIFS(ISOLATØR!E$7:E$18,ISOLATØR!$A$7:$A$18,ÅRSTOT!$A18)+SUMIFS(MALERE!E$7:E$18,MALERE!$A$7:$A$18,ÅRSTOT!$A18)+SUMIFS(TAKTEKKERE!E$7:E$18,TAKTEKKERE!$A$7:$A$18,ÅRSTOT!$A18) -> 0 | F18: 310.7658928 | G18: 0 | H18: 310.7658928 | I18: =SUMIFS(BETONG!I$7:I$18,BETONG!$A$7:$A$18,ÅRSTOT!$A18)+SUMIFS(TØMRERE!I$7:I$18,TØMRERE!$A$7:$A$18,ÅRSTOT!$A18)+SUMIFS(RØRLEGGERE!I$7:I$18,RØRLEGGERE!$A$7:$A$18,ÅRSTOT!$A18)+SUMIFS(MURERE!I$7:I$18,MURERE!$A$7:$A$18,ÅRSTOT!$A18)+SUMIFS('BLIKK OG VENTILASJON'!I$7:I$18,'BLIKK OG VENTILASJON'!$A$7:$A$18,ÅRSTOT!$A18)+SUMIFS(ISOLATØR!I$7:I$18,ISOLATØR!$A$7:$A$18,ÅRSTOT!$A18)+SUMIFS(MALERE!I$7:I$18,MALERE!$A$7:$A$18,ÅRSTOT!$A18)+SUMIFS(TAKTEKKERE!I$7:I$18,TAKTEKKERE!$A$7:$A$18,ÅRSTOT!$A18) -> 13918078 | J18: =SUMIFS(BETONG!J$7:J$18,BETONG!$A$7:$A$18,ÅRSTOT!$A18)+SUMIFS(TØMRERE!J$7:J$18,TØMRERE!$A$7:$A$18,ÅRSTOT!$A18)+SUMIFS(RØRLEGGERE!J$7:J$18,RØRLEGGERE!$A$7:$A$18,ÅRSTOT!$A18)+SUMIFS(MURERE!J$7:J$18,MURERE!$A$7:$A$18,ÅRSTOT!$A18)+SUMIFS('BLIKK OG VENTILASJON'!J$7:J$18,'BLIKK OG VENTILASJON'!$A$7:$A$18,ÅRSTOT!$A18)+SUMIFS(ISOLATØR!J$7:J$18,ISOLATØR!$A$7:$A$18,ÅRSTOT!$A18)+SUMIFS(MALERE!J$7:J$18,MALERE!$A$7:$A$18,ÅRSTOT!$A18)+SUMIFS(TAKTEKKERE!J$7:J$18,TAKTEKKERE!$A$7:$A$18,ÅRSTOT!$A18) -> 2949901 | K18: 286.6620758 | L18: 0.07951356502 | M18: 0.08408442881
A19: Oslo | B19: =SUMIFS(BETONG!B$7:B$18,BETONG!$A$7:$A$18,ÅRSTOT!$A19)+SUMIFS(TØMRERE!B$7:B$18,TØMRERE!$A$7:$A$18,ÅRSTOT!$A19)+SUMIFS(RØRLEGGERE!B$7:B$18,RØRLEGGERE!$A$7:$A$18,ÅRSTOT!$A19)+SUMIFS(MURERE!B$7:B$18,MURERE!$A$7:$A$18,ÅRSTOT!$A19)+SUMIFS('BLIKK OG VENTILASJON'!B$7:B$18,'BLIKK OG VENTILASJON'!$A$7:$A$18,ÅRSTOT!$A19)+SUMIFS(ISOLATØR!B$7:B$18,ISOLATØR!$A$7:$A$18,ÅRSTOT!$A19)+SUMIFS(MALERE!B$7:B$18,MALERE!$A$7:$A$18,ÅRSTOT!$A19)+SUMIFS(TAKTEKKERE!B$7:B$18,TAKTEKKERE!$A$7:$A$18,ÅRSTOT!$A19) -> 144211258 | C19: =SUMIFS(BETONG!C$7:C$18,BETONG!$A$7:$A$18,ÅRSTOT!$A19)+SUMIFS(TØMRERE!C$7:C$18,TØMRERE!$A$7:$A$18,ÅRSTOT!$A19)+SUMIFS(RØRLEGGERE!C$7:C$18,RØRLEGGERE!$A$7:$A$18,ÅRSTOT!$A19)+SUMIFS(MURERE!C$7:C$18,MURERE!$A$7:$A$18,ÅRSTOT!$A19)+SUMIFS('BLIKK OG VENTILASJON'!C$7:C$18,'BLIKK OG VENTILASJON'!$A$7:$A$18,ÅRSTOT!$A19)+SUMIFS(ISOLATØR!C$7:C$18,ISOLATØR!$A$7:$A$18,ÅRSTOT!$A19)+SUMIFS(MALERE!C$7:C$18,MALERE!$A$7:$A$18,ÅRSTOT!$A19)+SUMIFS(TAKTEKKERE!C$7:C$18,TAKTEKKERE!$A$7:$A$18,ÅRSTOT!$A19) -> 1561955.64 | D19: =SUMIFS(BETONG!D$7:D$18,BETONG!$A$7:$A$18,ÅRSTOT!$A19)+SUMIFS(TØMRERE!D$7:D$18,TØMRERE!$A$7:$A$18,ÅRSTOT!$A19)+SUMIFS(RØRLEGGERE!D$7:D$18,RØRLEGGERE!$A$7:$A$18,ÅRSTOT!$A19)+SUMIFS(MURERE!D$7:D$18,MURERE!$A$7:$A$18,ÅRSTOT!$A19)+SUMIFS('BLIKK OG VENTILASJON'!D$7:D$18,'BLIKK OG VENTILASJON'!$A$7:$A$18,ÅRSTOT!$A19)+SUMIFS(ISOLATØR!D$7:D$18,ISOLATØR!$A$7:$A$18,ÅRSTOT!$A19)+SUMIFS(MALERE!D$7:D$18,MALERE!$A$7:$A$18,ÅRSTOT!$A19)+SUMIFS(TAKTEKKERE!D$7:D$18,TAKTEKKERE!$A$7:$A$18,ÅRSTOT!$A19) -> 416110.5 | E19: =SUMIFS(BETONG!E$7:E$18,BETONG!$A$7:$A$18,ÅRSTOT!$A19)+SUMIFS(TØMRERE!E$7:E$18,TØMRERE!$A$7:$A$18,ÅRSTOT!$A19)+SUMIFS(RØRLEGGERE!E$7:E$18,RØRLEGGERE!$A$7:$A$18,ÅRSTOT!$A19)+SUMIFS(MURERE!E$7:E$18,MURERE!$A$7:$A$18,ÅRSTOT!$A19)+SUMIFS('BLIKK OG VENTILASJON'!E$7:E$18,'BLIKK OG VENTILASJON'!$A$7:$A$18,ÅRSTOT!$A19)+SUMIFS(ISOLATØR!E$7:E$18,ISOLATØR!$A$7:$A$18,ÅRSTOT!$A19)+SUMIFS(MALERE!E$7:E$18,MALERE!$A$7:$A$18,ÅRSTOT!$A19)+SUMIFS(TAKTEKKERE!E$7:E$18,TAKTEKKERE!$A$7:$A$18,ÅRSTOT!$A19) -> 9005 | F19: 346.5696202 | G19: 173.4542632 | H19: 342.9026079 | I19: =SUMIFS(BETONG!I$7:I$18,BETONG!$A$7:$A$18,ÅRSTOT!$A19)+SUMIFS(TØMRERE!I$7:I$18,TØMRERE!$A$7:$A$18,ÅRSTOT!$A19)+SUMIFS(RØRLEGGERE!I$7:I$18,RØRLEGGERE!$A$7:$A$18,ÅRSTOT!$A19)+SUMIFS(MURERE!I$7:I$18,MURERE!$A$7:$A$18,ÅRSTOT!$A19)+SUMIFS('BLIKK OG VENTILASJON'!I$7:I$18,'BLIKK OG VENTILASJON'!$A$7:$A$18,ÅRSTOT!$A19)+SUMIFS(ISOLATØR!I$7:I$18,ISOLATØR!$A$7:$A$18,ÅRSTOT!$A19)+SUMIFS(MALERE!I$7:I$18,MALERE!$A$7:$A$18,ÅRSTOT!$A19)+SUMIFS(TAKTEKKERE!I$7:I$18,TAKTEKKERE!$A$7:$A$18,ÅRSTOT!$A19) -> 146003922.1 | J19: =SUMIFS(BETONG!J$7:J$18,BETONG!$A$7:$A$18,ÅRSTOT!$A19)+SUMIFS(TØMRERE!J$7:J$18,TØMRERE!$A$7:$A$18,ÅRSTOT!$A19)+SUMIFS(RØRLEGGERE!J$7:J$18,RØRLEGGERE!$A$7:$A$18,ÅRSTOT!$A19)+SUMIFS(MURERE!J$7:J$18,MURERE!$A$7:$A$18,ÅRSTOT!$A19)+SUMIFS('BLIKK OG VENTILASJON'!J$7:J$18,'BLIKK OG VENTILASJON'!$A$7:$A$18,ÅRSTOT!$A19)+SUMIFS(ISOLATØR!J$7:J$18,ISOLATØR!$A$7:$A$18,ÅRSTOT!$A19)+SUMIFS(MALERE!J$7:J$18,MALERE!$A$7:$A$18,ÅRSTOT!$A19)+SUMIFS(TAKTEKKERE!J$7:J$18,TAKTEKKERE!$A$7:$A$18,ÅRSTOT!$A19) -> 4522933.07 | K19: 332.000097 | L19: -0.01227819167 | M19: 0.03283887846
A20: Landet i alt | B20: =SUM(B7:B19) -> 379033836.2 | C20: =SUM(C7:C19) -> 13158167.09 | D20: =SUM(D7:D19) -> 1134248.28 | E20: =SUM(E7:E19) -> 64219.65 | F20: =IF(D20=0,0,B20/D20) -> 334.1718413 | G20: =IF(E20=0,0,C20/E20) -> 204.893161 | H20: =IF(D20+E20=0,0,(B20+C20)/(D20+E20)) -> 327.2444706 | I20: =SUM(I7:I19) -> 444655128.8 | J20: =SUM(J7:J19) -> 31709372.58 | K20: 309.7984977 | L20: =IF(I20=0,0,(B20-I20)/I20) -> -0.1475779505 | M20: =IF(K20=0,0,(H20-K20)/K20) -> 0.05631393655
A23: ="MÅLESTATISTIKK FOR ALLE BYGGFAG - 2. HALVÅR "&FORS!$A$14 -> MÅLESTATISTIKK FOR ALLE BYGGFAG - 2. HALVÅR 2022
B25: Målesum i kroner | D25: Timer | F25: ="Fortjeneste 2. halvår "&FORS!$A$14-0 -> Fortjeneste 2. halvår 2022 | I25: =" 2. halvår "&FORS!$A$14-1 -> 2. halvår 2021 | L25: Endringer i %
B26: Innmålt m/ | C26: Innmålt m/ | D26: Innmålt m/ | E26: Innmålt m/ | F26: Innmålt m/ | G26: Innmålt m/ | H26: Gjennom- | I26: Innmålt m/ | J26: Innmålt m/ | K26: Gjen.snitt | L26: Innmålt m/ | M26: Gjen.snitt
B27: overskudd | C27: underskudd | D27: overskudd | E27: underskudd | F27: overskudd | G27: underskudd | H27: snitt | I27: overskudd | J27: underskudd | K27: fortjeneste | L27: overskudd | M27: fortjeneste
A28: Agder | B28: =SUMIFS(BETONG!B$27:B$38,BETONG!$A$27:$A$38,ÅRSTOT!$A28)+SUMIFS(TØMRERE!B$27:B$38,TØMRERE!$A$27:$A$38,ÅRSTOT!$A28)+SUMIFS(RØRLEGGERE!B$27:B$38,RØRLEGGERE!$A$27:$A$38,ÅRSTOT!$A28)+SUMIFS(MURERE!B$27:B$38,MURERE!$A$27:$A$38,ÅRSTOT!$A28)+SUMIFS('BLIKK OG VENTILASJON'!B$27:B$38,'BLIKK OG VENTILASJON'!$A$27:$A$38,ÅRSTOT!$A28)+SUMIFS(ISOLATØR!B$27:B$38,ISOLATØR!$A$27:$A$38,ÅRSTOT!$A28)+SUMIFS(MALERE!B$27:B$38,MALERE!$A$27:$A$38,ÅRSTOT!$A28)+SUMIFS(TAKTEKKERE!B$27:B$38,TAKTEKKERE!$A$27:$A$38,ÅRSTOT!$A28) -> 3533298 | C28: =SUMIFS(BETONG!C$27:C$38,BETONG!$A$27:$A$38,ÅRSTOT!$A28)+SUMIFS(TØMRERE!C$27:C$38,TØMRERE!$A$27:$A$38,ÅRSTOT!$A28)+SUMIFS(RØRLEGGERE!C$27:C$38,RØRLEGGERE!$A$27:$A$38,ÅRSTOT!$A28)+SUMIFS(MURERE!C$27:C$38,MURERE!$A$27:$A$38,ÅRSTOT!$A28)+SUMIFS('BLIKK OG VENTILASJON'!C$27:C$38,'BLIKK OG VENTILASJON'!$A$27:$A$38,ÅRSTOT!$A28)+SUMIFS(ISOLATØR!C$27:C$38,ISOLATØR!$A$27:$A$38,ÅRSTOT!$A28)+SUMIFS(MALERE!C$27:C$38,MALERE!$A$27:$A$38,ÅRSTOT!$A28)+SUMIFS(TAKTEKKERE!C$27:C$38,TAKTEKKERE!$A$27:$A$38,ÅRSTOT!$A28) -> 0 | D28: =SUMIFS(BETONG!D$27:D$38,BETONG!$A$27:$A$38,ÅRSTOT!$A28)+SUMIFS(TØMRERE!D$27:D$38,TØMRERE!$A$27:$A$38,ÅRSTOT!$A28)+SUMIFS(RØRLEGGERE!D$27:D$38,RØRLEGGERE!$A$27:$A$38,ÅRSTOT!$A28)+SUMIFS(MURERE!D$27:D$38,MURERE!$A$27:$A$38,ÅRSTOT!$A28)+SUMIFS('BLIKK OG VENTILASJON'!D$27:D$38,'BLIKK OG VENTILASJON'!$A$27:$A$38,ÅRSTOT!$A28)+SUMIFS(ISOLATØR!D$27:D$38,ISOLATØR!$A$27:$A$38,ÅRSTOT!$A28)+SUMIFS(MALERE!D$27:D$38,MALERE!$A$27:$A$38,ÅRSTOT!$A28)+SUMIFS(TAKTEKKERE!D$27:D$38,TAKTEKKERE!$A$27:$A$38,ÅRSTOT!$A28) -> 10196.5 | E28: =SUMIFS(BETONG!E$27:E$38,BETONG!$A$27:$A$38,ÅRSTOT!$A28)+SUMIFS(TØMRERE!E$27:E$38,TØMRERE!$A$27:$A$38,ÅRSTOT!$A28)+SUMIFS(RØRLEGGERE!E$27:E$38,RØRLEGGERE!$A$27:$A$38,ÅRSTOT!$A28)+SUMIFS(MURERE!E$27:E$38,MURERE!$A$27:$A$38,ÅRSTOT!$A28)+SUMIFS('BLIKK OG VENTILASJON'!E$27:E$38,'BLIKK OG VENTILASJON'!$A$27:$A$38,ÅRSTOT!$A28)+SUMIFS(ISOLATØR!E$27:E$38,ISOLATØR!$A$27:$A$38,ÅRSTOT!$A28)+SUMIFS(MALERE!E$27:E$38,MALERE!$A$27:$A$38,ÅRSTOT!$A28)+SUMIFS(TAKTEKKERE!E$27:E$38,TAKTEKKERE!$A$27:$A$38,ÅRSTOT!$A28) -> 0 | F28: =IF(D28=0,0,B28/D28) -> 346.5206689 | G28: =IF(E28=0,0,C28/E28) -> 0 | H28: =IF(D28+E28=0,0,(B28+C28)/(D28+E28)) -> 346.5206689 | I28: =SUMIFS(BETONG!I$27:I$38,BETONG!$A$27:$A$38,ÅRSTOT!$A28)+SUMIFS(TØMRERE!I$27:I$38,TØMRERE!$A$27:$A$38,ÅRSTOT!$A28)+SUMIFS(RØRLEGGERE!I$27:I$38,RØRLEGGERE!$A$27:$A$38,ÅRSTOT!$A28)+SUMIFS(MURERE!I$27:I$38,MURERE!$A$27:$A$38,ÅRSTOT!$A28)+SUMIFS('BLIKK OG VENTILASJON'!I$27:I$38,'BLIKK OG VENTILASJON'!$A$27:$A$38,ÅRSTOT!$A28)+SUMIFS(ISOLATØR!I$27:I$38,ISOLATØR!$A$27:$A$38,ÅRSTOT!$A28)+SUMIFS(MALERE!I$27:I$38,MALERE!$A$27:$A$38,ÅRSTOT!$A28)+SUMIFS(TAKTEKKERE!I$27:I$38,TAKTEKKERE!$A$27:$A$38,ÅRSTOT!$A28) -> 10963288 | J28: =SUMIFS(BETONG!J$27:J$38,BETONG!$A$27:$A$38,ÅRSTOT!$A28)+SUMIFS(TØMRERE!J$27:J$38,TØMRERE!$A$27:$A$38,ÅRSTOT!$A28)+SUMIFS(RØRLEGGERE!J$27:J$38,RØRLEGGERE!$A$27:$A$38,ÅRSTOT!$A28)+SUMIFS(MURERE!J$27:J$38,MURERE!$A$27:$A$38,ÅRSTOT!$A28)+SUMIFS('BLIKK OG VENTILASJON'!J$27:J$38,'BLIKK OG VENTILASJON'!$A$27:$A$38,ÅRSTOT!$A28)+SUMIFS(ISOLATØR!J$27:J$38,ISOLATØR!$A$27:$A$38,ÅRSTOT!$A28)+SUMIFS(MALERE!J$27:J$38,MALERE!$A$27:$A$38,ÅRSTOT!$A28)+SUMIFS(TAKTEKKERE!J$27:J$38,TAKTEKKERE!$A$27:$A$38,ÅRSTOT!$A28) -> 0 | K28: 307.8464547 | L28: =IF(I28=0,0,(B28-I28)/I28) -> -0.677715481 | M28: =IF(K28=0,0,(H28-K28)/K28) -> 0.1256282589
A29: Bergen | B29: =SUMIFS(BETONG!B$27:B$38,BETONG!$A$27:$A$38,ÅRSTOT!$A29)+SUMIFS(TØMRERE!B$27:B$38,TØMRERE!$A$27:$A$38,ÅRSTOT!$A29)+SUMIFS(RØRLEGGERE!B$27:B$38,RØRLEGGERE!$A$27:$A$38,ÅRSTOT!$A29)+SUMIFS(MURERE!B$27:B$38,MURERE!$A$27:$A$38,ÅRSTOT!$A29)+SUMIFS('BLIKK OG VENTILASJON'!B$27:B$38,'BLIKK OG VENTILASJON'!$A$27:$A$38,ÅRSTOT!$A29)+SUMIFS(ISOLATØR!B$27:B$38,ISOLATØR!$A$27:$A$38,ÅRSTOT!$A29)+SUMIFS(MALERE!B$27:B$38,MALERE!$A$27:$A$38,ÅRSTOT!$A29)+SUMIFS(TAKTEKKERE!B$27:B$38,TAKTEKKERE!$A$27:$A$38,ÅRSTOT!$A29) -> 24232798.08 | C29: =SUMIFS(BETONG!C$27:C$38,BETONG!$A$27:$A$38,ÅRSTOT!$A29)+SUMIFS(TØMRERE!C$27:C$38,TØMRERE!$A$27:$A$38,ÅRSTOT!$A29)+SUMIFS(RØRLEGGERE!C$27:C$38,RØRLEGGERE!$A$27:$A$38,ÅRSTOT!$A29)+SUMIFS(MURERE!C$27:C$38,MURERE!$A$27:$A$38,ÅRSTOT!$A29)+SUMIFS('BLIKK OG VENTILASJON'!C$27:C$38,'BLIKK OG VENTILASJON'!$A$27:$A$38,ÅRSTOT!$A29)+SUMIFS(ISOLATØR!C$27:C$38,ISOLATØR!$A$27:$A$38,ÅRSTOT!$A29)+SUMIFS(MALERE!C$27:C$38,MALERE!$A$27:$A$38,ÅRSTOT!$A29)+SUMIFS(TAKTEKKERE!C$27:C$38,TAKTEKKERE!$A$27:$A$38,ÅRSTOT!$A29) -> 0 | D29: =SUMIFS(BETONG!D$27:D$38,BETONG!$A$27:$A$38,ÅRSTOT!$A29)+SUMIFS(TØMRERE!D$27:D$38,TØMRERE!$A$27:$A$38,ÅRSTOT!$A29)+SUMIFS(RØRLEGGERE!D$27:D$38,RØRLEGGERE!$A$27:$A$38,ÅRSTOT!$A29)+SUMIFS(MURERE!D$27:D$38,MURERE!$A$27:$A$38,ÅRSTOT!$A29)+SUMIFS('BLIKK OG VENTILASJON'!D$27:D$38,'BLIKK OG VENTILASJON'!$A$27:$A$38,ÅRSTOT!$A29)+SUMIFS(ISOLATØR!D$27:D$38,ISOLATØR!$A$27:$A$38,ÅRSTOT!$A29)+SUMIFS(MALERE!D$27:D$38,MALERE!$A$27:$A$38,ÅRSTOT!$A29)+SUMIFS(TAKTEKKERE!D$27:D$38,TAKTEKKERE!$A$27:$A$38,ÅRSTOT!$A29) -> 73741.62 | E29: =SUMIFS(BETONG!E$27:E$38,BETONG!$A$27:$A$38,ÅRSTOT!$A29)+SUMIFS(TØMRERE!E$27:E$38,TØMRERE!$A$27:$A$38,ÅRSTOT!$A29)+SUMIFS(RØRLEGGERE!E$27:E$38,RØRLEGGERE!$A$27:$A$38,ÅRSTOT!$A29)+SUMIFS(MURERE!E$27:E$38,MURERE!$A$27:$A$38,ÅRSTOT!$A29)+SUMIFS('BLIKK OG VENTILASJON'!E$27:E$38,'BLIKK OG VENTILASJON'!$A$27:$A$38,ÅRSTOT!$A29)+SUMIFS(ISOLATØR!E$27:E$38,ISOLATØR!$A$27:$A$38,ÅRSTOT!$A29)+SUMIFS(MALERE!E$27:E$38,MALERE!$A$27:$A$38,ÅRSTOT!$A29)+SUMIFS(TAKTEKKERE!E$27:E$38,TAKTEKKERE!$A$27:$A$38,ÅRSTOT!$A29) -> 0 | F29: 328.6176528 | G29: 0 | H29: 328.6176528 | I29: =SUMIFS(BETONG!I$27:I$38,BETONG!$A$27:$A$38,ÅRSTOT!$A29)+SUMIFS(TØMRERE!I$27:I$38,TØMRERE!$A$27:$A$38,ÅRSTOT!$A29)+SUMIFS(RØRLEGGERE!I$27:I$38,RØRLEGGERE!$A$27:$A$38,ÅRSTOT!$A29)+SUMIFS(MURERE!I$27:I$38,MURERE!$A$27:$A$38,ÅRSTOT!$A29)+SUMIFS('BLIKK OG VENTILASJON'!I$27:I$38,'BLIKK OG VENTILASJON'!$A$27:$A$38,ÅRSTOT!$A29)+SUMIFS(ISOLATØR!I$27:I$38,ISOLATØR!$A$27:$A$38,ÅRSTOT!$A29)+SUMIFS(MALERE!I$27:I$38,MALERE!$A$27:$A$38,ÅRSTOT!$A29)+SUMIFS(TAKTEKKERE!I$27:I$38,TAKTEKKERE!$A$27:$A$38,ÅRSTOT!$A29) -> 17703504.13 | J29: =SUMIFS(BETONG!J$27:J$38,BETONG!$A$27:$A$38,ÅRSTOT!$A29)+SUMIFS(TØMRERE!J$27:J$38,TØMRERE!$A$27:$A$38,ÅRSTOT!$A29)+SUMIFS(RØRLEGGERE!J$27:J$38,RØRLEGGERE!$A$27:$A$38,ÅRSTOT!$A29)+SUMIFS(MURERE!J$27:J$38,MURERE!$A$27:$A$38,ÅRSTOT!$A29)+SUMIFS('BLIKK OG VENTILASJON'!J$27:J$38,'BLIKK OG VENTILASJON'!$A$27:$A$38,ÅRSTOT!$A29)+SUMIFS(ISOLATØR!J$27:J$38,ISOLATØR!$A$27:$A$38,ÅRSTOT!$A29)+SUMIFS(MALERE!J$27:J$38,MALERE!$A$27:$A$38,ÅRSTOT!$A29)+SUMIFS(TAKTEKKERE!J$27:J$38,TAKTEKKERE!$A$27:$A$38,ÅRSTOT!$A29) -> 0 | K29: 287.1070517 | L29: =IF(I29=0,0,(B29-I29)/I29) -> 0.3688136485 | M29: 0.1445823113
A30: Nordland | B30: =SUMIFS(BETONG!B$27:B$38,BETONG!$A$27:$A$38,ÅRSTOT!$A30)+SUMIFS(TØMRERE!B$27:B$38,TØMRERE!$A$27:$A$38,ÅRSTOT!$A30)+SUMIFS(RØRLEGGERE!B$27:B$38,RØRLEGGERE!$A$27:$A$38,ÅRSTOT!$A30)+SUMIFS(MURERE!B$27:B$38,MURERE!$A$27:$A$38,ÅRSTOT!$A30)+SUMIFS('BLIKK OG VENTILASJON'!B$27:B$38,'BLIKK OG VENTILASJON'!$A$27:$A$38,ÅRSTOT!$A30)+SUMIFS(ISOLATØR!B$27:B$38,ISOLATØR!$A$27:$A$38,ÅRSTOT!$A30)+SUMIFS(MALERE!B$27:B$38,MALERE!$A$27:$A$38,ÅRSTOT!$A30)+SUMIFS(TAKTEKKERE!B$27:B$38,TAKTEKKERE!$A$27:$A$38,ÅRSTOT!$A30) -> 0 | C30: =SUMIFS(BETONG!C$27:C$38,BETONG!$A$27:$A$38,ÅRSTOT!$A30)+SUMIFS(TØMRERE!C$27:C$38,TØMRERE!$A$27:$A$38,ÅRSTOT!$A30)+SUMIFS(RØRLEGGERE!C$27:C$38,RØRLEGGERE!$A$27:$A$38,ÅRSTOT!$A30)+SUMIFS(MURERE!C$27:C$38,MURERE!$A$27:$A$38,ÅRSTOT!$A30)+SUMIFS('BLIKK OG VENTILASJON'!C$27:C$38,'BLIKK OG VENTILASJON'!$A$27:$A$38,ÅRSTOT!$A30)+SUMIFS(ISOLATØR!C$27:C$38,ISOLATØR!$A$27:$A$38,ÅRSTOT!$A30)+SUMIFS(MALERE!C$27:C$38,MALERE!$A$27:$A$38,ÅRSTOT!$A30)+SUMIFS(TAKTEKKERE!C$27:C$38,TAKTEKKERE!$A$27:$A$38,ÅRSTOT!$A30) -> 0 | D30: =SUMIFS(BETONG!D$27:D$38,BETONG!$A$27:$A$38,ÅRSTOT!$A30)+SUMIFS(TØMRERE!D$27:D$38,TØMRERE!$A$27:$A$38,ÅRSTOT!$A30)+SUMIFS(RØRLEGGERE!D$27:D$38,RØRLEGGERE!$A$27:$A$38,ÅRSTOT!$A30)+SUMIFS(MURERE!D$27:D$38,MURERE!$A$27:$A$38,ÅRSTOT!$A30)+SUMIFS('BLIKK OG VENTILASJON'!D$27:D$38,'BLIKK OG VENTILASJON'!$A$27:$A$38,ÅRSTOT!$A30)+SUMIFS(ISOLATØR!D$27:D$38,ISOLATØR!$A$27:$A$38,ÅRSTOT!$A30)+SUMIFS(MALERE!D$27:D$38,MALERE!$A$27:$A$38,ÅRSTOT!$A30)+SUMIFS(TAKTEKKERE!D$27:D$38,TAKTEKKERE!$A$27:$A$38,ÅRSTOT!$A30) -> 0 | E30: =SUMIFS(BETONG!E$27:E$38,BETONG!$A$27:$A$38,ÅRSTOT!$A30)+SUMIFS(TØMRERE!E$27:E$38,TØMRERE!$A$27:$A$38,ÅRSTOT!$A30)+SUMIFS(RØRLEGGERE!E$27:E$38,RØRLEGGERE!$A$27:$A$38,ÅRSTOT!$A30)+SUMIFS(MURERE!E$27:E$38,MURERE!$A$27:$A$38,ÅRSTOT!$A30)+SUMIFS('BLIKK OG VENTILASJON'!E$27:E$38,'BLIKK OG VENTILASJON'!$A$27:$A$38,ÅRSTOT!$A30)+SUMIFS(ISOLATØR!E$27:E$38,ISOLATØR!$A$27:$A$38,ÅRSTOT!$A30)+SUMIFS(MALERE!E$27:E$38,MALERE!$A$27:$A$38,ÅRSTOT!$A30)+SUMIFS(TAKTEKKERE!E$27:E$38,TAKTEKKERE!$A$27:$A$38,ÅRSTOT!$A30) -> 0 | F30: 0 | G30: 0 | H30: 0 | I30: =SUMIFS(BETONG!I$27:I$38,BETONG!$A$27:$A$38,ÅRSTOT!$A30)+SUMIFS(TØMRERE!I$27:I$38,TØMRERE!$A$27:$A$38,ÅRSTOT!$A30)+SUMIFS(RØRLEGGERE!I$27:I$38,RØRLEGGERE!$A$27:$A$38,ÅRSTOT!$A30)+SUMIFS(MURERE!I$27:I$38,MURERE!$A$27:$A$38,ÅRSTOT!$A30)+SUMIFS('BLIKK OG VENTILASJON'!I$27:I$38,'BLIKK OG VENTILASJON'!$A$27:$A$38,ÅRSTOT!$A30)+SUMIFS(ISOLATØR!I$27:I$38,ISOLATØR!$A$27:$A$38,ÅRSTOT!$A30)+SUMIFS(MALERE!I$27:I$38,MALERE!$A$27:$A$38,ÅRSTOT!$A30)+SUMIFS(TAKTEKKERE!I$27:I$38,TAKTEKKERE!$A$27:$A$38,ÅRSTOT!$A30) -> 0 | J30: =SUMIFS(BETONG!J$27:J$38,BETONG!$A$27:$A$38,ÅRSTOT!$A30)+SUMIFS(TØMRERE!J$27:J$38,TØMRERE!$A$27:$A$38,ÅRSTOT!$A30)+SUMIFS(RØRLEGGERE!J$27:J$38,RØRLEGGERE!$A$27:$A$38,ÅRSTOT!$A30)+SUMIFS(MURERE!J$27:J$38,MURERE!$A$27:$A$38,ÅRSTOT!$A30)+SUMIFS('BLIKK OG VENTILASJON'!J$27:J$38,'BLIKK OG VENTILASJON'!$A$27:$A$38,ÅRSTOT!$A30)+SUMIFS(ISOLATØR!J$27:J$38,ISOLATØR!$A$27:$A$38,ÅRSTOT!$A30)+SUMIFS(MALERE!J$27:J$38,MALERE!$A$27:$A$38,ÅRSTOT!$A30)+SUMIFS(TAKTEKKERE!J$27:J$38,TAKTEKKERE!$A$27:$A$38,ÅRSTOT!$A30) -> 424816.48 | K30: 201.7651294 | L30: 0 | M30: -1
A31: Drammen - Bærum | B31: =SUMIFS(BETONG!B$27:B$38,BETONG!$A$27:$A$38,ÅRSTOT!$A31)+SUMIFS(TØMRERE!B$27:B$38,TØMRERE!$A$27:$A$38,ÅRSTOT!$A31)+SUMIFS(RØRLEGGERE!B$27:B$38,RØRLEGGERE!$A$27:$A$38,ÅRSTOT!$A31)+SUMIFS(MURERE!B$27:B$38,MURERE!$A$27:$A$38,ÅRSTOT!$A31)+SUMIFS('BLIKK OG VENTILASJON'!B$27:B$38,'BLIKK OG VENTILASJON'!$A$27:$A$38,ÅRSTOT!$A31)+SUMIFS(ISOLATØR!B$27:B$38,ISOLATØR!$A$27:$A$38,ÅRSTOT!$A31)+SUMIFS(MALERE!B$27:B$38,MALERE!$A$27:$A$38,ÅRSTOT!$A31)+SUMIFS(TAKTEKKERE!B$27:B$38,TAKTEKKERE!$A$27:$A$38,ÅRSTOT!$A31) -> 0 | C31: =SUMIFS(BETONG!C$27:C$38,BETONG!$A$27:$A$38,ÅRSTOT!$A31)+SUMIFS(TØMRERE!C$27:C$38,TØMRERE!$A$27:$A$38,ÅRSTOT!$A31)+SUMIFS(RØRLEGGERE!C$27:C$38,RØRLEGGERE!$A$27:$A$38,ÅRSTOT!$A31)+SUMIFS(MURERE!C$27:C$38,MURERE!$A$27:$A$38,ÅRSTOT!$A31)+SUMIFS('BLIKK OG VENTILASJON'!C$27:C$38,'BLIKK OG VENTILASJON'!$A$27:$A$38,ÅRSTOT!$A31)+SUMIFS(ISOLATØR!C$27:C$38,ISOLATØR!$A$27:$A$38,ÅRSTOT!$A31)+SUMIFS(MALERE!C$27:C$38,MALERE!$A$27:$A$38,ÅRSTOT!$A31)+SUMIFS(TAKTEKKERE!C$27:C$38,TAKTEKKERE!$A$27:$A$38,ÅRSTOT!$A31) -> 0 | D31: =SUMIFS(BETONG!D$27:D$38,BETONG!$A$27:$A$38,ÅRSTOT!$A31)+SUMIFS(TØMRERE!D$27:D$38,TØMRERE!$A$27:$A$38,ÅRSTOT!$A31)+SUMIFS(RØRLEGGERE!D$27:D$38,RØRLEGGERE!$A$27:$A$38,ÅRSTOT!$A31)+SUMIFS(MURERE!D$27:D$38,MURERE!$A$27:$A$38,ÅRSTOT!$A31)+SUMIFS('BLIKK OG VENTILASJON'!D$27:D$38,'BLIKK OG VENTILASJON'!$A$27:$A$38,ÅRSTOT!$A31)+SUMIFS(ISOLATØR!D$27:D$38,ISOLATØR!$A$27:$A$38,ÅRSTOT!$A31)+SUMIFS(MALERE!D$27:D$38,MALERE!$A$27:$A$38,ÅRSTOT!$A31)+SUMIFS(TAKTEKKERE!D$27:D$38,TAKTEKKERE!$A$27:$A$38,ÅRSTOT!$A31) -> 0 | E31: =SUMIFS(BETONG!E$27:E$38,BETONG!$A$27:$A$38,ÅRSTOT!$A31)+SUMIFS(TØMRERE!E$27:E$38,TØMRERE!$A$27:$A$38,ÅRSTOT!$A31)+SUMIFS(RØRLEGGERE!E$27:E$38,RØRLEGGERE!$A$27:$A$38,ÅRSTOT!$A31)+SUMIFS(MURERE!E$27:E$38,MURERE!$A$27:$A$38,ÅRSTOT!$A31)+SUMIFS('BLIKK OG VENTILASJON'!E$27:E$38,'BLIKK OG VENTILASJON'!$A$27:$A$38,ÅRSTOT!$A31)+SUMIFS(ISOLATØR!E$27:E$38,ISOLATØR!$A$27:$A$38,ÅRSTOT!$A31)+SUMIFS(MALERE!E$27:E$38,MALERE!$A$27:$A$38,ÅRSTOT!$A31)+SUMIFS(TAKTEKKERE!E$27:E$38,TAKTEKKERE!$A$27:$A$38,ÅRSTOT!$A31) -> 0 | F31: 0 | G31: 0 | H31: 0 | I31: =SUMIFS(BETONG!I$27:I$38,BETONG!$A$27:$A$38,ÅRSTOT!$A31)+SUMIFS(TØMRERE!I$27:I$38,TØMRERE!$A$27:$A$38,ÅRSTOT!$A31)+SUMIFS(RØRLEGGERE!I$27:I$38,RØRLEGGERE!$A$27:$A$38,ÅRSTOT!$A31)+SUMIFS(MURERE!I$27:I$38,MURERE!$A$27:$A$38,ÅRSTOT!$A31)+SUMIFS('BLIKK OG VENTILASJON'!I$27:I$38,'BLIKK OG VENTILASJON'!$A$27:$A$38,ÅRSTOT!$A31)+SUMIFS(ISOLATØR!I$27:I$38,ISOLATØR!$A$27:$A$38,ÅRSTOT!$A31)+SUMIFS(MALERE!I$27:I$38,MALERE!$A$27:$A$38,ÅRSTOT!$A31)+SUMIFS(TAKTEKKERE!I$27:I$38,TAKTEKKERE!$A$27:$A$38,ÅRSTOT!$A31) -> 0 | J31: =SUMIFS(BETONG!J$27:J$38,BETONG!$A$27:$A$38,ÅRSTOT!$A31)+SUMIFS(TØMRERE!J$27:J$38,TØMRERE!$A$27:$A$38,ÅRSTOT!$A31)+SUMIFS(RØRLEGGERE!J$27:J$38,RØRLEGGERE!$A$27:$A$38,ÅRSTOT!$A31)+SUMIFS(MURERE!J$27:J$38,MURERE!$A$27:$A$38,ÅRSTOT!$A31)+SUMIFS('BLIKK OG VENTILASJON'!J$27:J$38,'BLIKK OG VENTILASJON'!$A$27:$A$38,ÅRSTOT!$A31)+SUMIFS(ISOLATØR!J$27:J$38,ISOLATØR!$A$27:$A$38,ÅRSTOT!$A31)+SUMIFS(MALERE!J$27:J$38,MALERE!$A$27:$A$38,ÅRSTOT!$A31)+SUMIFS(TAKTEKKERE!J$27:J$38,TAKTEKKERE!$A$27:$A$38,ÅRSTOT!$A31) -> 0 | K31: 0 | L31: 0 | M31: 0
A32: Haugesund | B32: =SUMIFS(BETONG!B$27:B$38,BETONG!$A$27:$A$38,ÅRSTOT!$A32)+SUMIFS(TØMRERE!B$27:B$38,TØMRERE!$A$27:$A$38,ÅRSTOT!$A32)+SUMIFS(RØRLEGGERE!B$27:B$38,RØRLEGGERE!$A$27:$A$38,ÅRSTOT!$A32)+SUMIFS(MURERE!B$27:B$38,MURERE!$A$27:$A$38,ÅRSTOT!$A32)+SUMIFS('BLIKK OG VENTILASJON'!B$27:B$38,'BLIKK OG VENTILASJON'!$A$27:$A$38,ÅRSTOT!$A32)+SUMIFS(ISOLATØR!B$27:B$38,ISOLATØR!$A$27:$A$38,ÅRSTOT!$A32)+SUMIFS(MALERE!B$27:B$38,MALERE!$A$27:$A$38,ÅRSTOT!$A32)+SUMIFS(TAKTEKKERE!B$27:B$38,TAKTEKKERE!$A$27:$A$38,ÅRSTOT!$A32) -> 0 | C32: =SUMIFS(BETONG!C$27:C$38,BETONG!$A$27:$A$38,ÅRSTOT!$A32)+SUMIFS(TØMRERE!C$27:C$38,TØMRERE!$A$27:$A$38,ÅRSTOT!$A32)+SUMIFS(RØRLEGGERE!C$27:C$38,RØRLEGGERE!$A$27:$A$38,ÅRSTOT!$A32)+SUMIFS(MURERE!C$27:C$38,MURERE!$A$27:$A$38,ÅRSTOT!$A32)+SUMIFS('BLIKK OG VENTILASJON'!C$27:C$38,'BLIKK OG VENTILASJON'!$A$27:$A$38,ÅRSTOT!$A32)+SUMIFS(ISOLATØR!C$27:C$38,ISOLATØR!$A$27:$A$38,ÅRSTOT!$A32)+SUMIFS(MALERE!C$27:C$38,MALERE!$A$27:$A$38,ÅRSTOT!$A32)+SUMIFS(TAKTEKKERE!C$27:C$38,TAKTEKKERE!$A$27:$A$38,ÅRSTOT!$A32) -> 0 | D32: =SUMIFS(BETONG!D$27:D$38,BETONG!$A$27:$A$38,ÅRSTOT!$A32)+SUMIFS(TØMRERE!D$27:D$38,TØMRERE!$A$27:$A$38,ÅRSTOT!$A32)+SUMIFS(RØRLEGGERE!D$27:D$38,RØRLEGGERE!$A$27:$A$38,ÅRSTOT!$A32)+SUMIFS(MURERE!D$27:D$38,MURERE!$A$27:$A$38,ÅRSTOT!$A32)+SUMIFS('BLIKK OG VENTILASJON'!D$27:D$38,'BLIKK OG VENTILASJON'!$A$27:$A$38,ÅRSTOT!$A32)+SUMIFS(ISOLATØR!D$27:D$38,ISOLATØR!$A$27:$A$38,ÅRSTOT!$A32)+SUMIFS(MALERE!D$27:D$38,MALERE!$A$27:$A$38,ÅRSTOT!$A32)+SUMIFS(TAKTEKKERE!D$27:D$38,TAKTEKKERE!$A$27:$A$38,ÅRSTOT!$A32) -> 0 | E32: =SUMIFS(BETONG!E$27:E$38,BETONG!$A$27:$A$38,ÅRSTOT!$A32)+SUMIFS(TØMRERE!E$27:E$38,TØMRERE!$A$27:$A$38,ÅRSTOT!$A32)+SUMIFS(RØRLEGGERE!E$27:E$38,RØRLEGGERE!$A$27:$A$38,ÅRSTOT!$A32)+SUMIFS(MURERE!E$27:E$38,MURERE!$A$27:$A$38,ÅRSTOT!$A32)+SUMIFS('BLIKK OG VENTILASJON'!E$27:E$38,'BLIKK OG VENTILASJON'!$A$27:$A$38,ÅRSTOT!$A32)+SUMIFS(ISOLATØR!E$27:E$38,ISOLATØR!$A$27:$A$38,ÅRSTOT!$A32)+SUMIFS(MALERE!E$27:E$38,MALERE!$A$27:$A$38,ÅRSTOT!$A32)+SUMIFS(TAKTEKKERE!E$27:E$38,TAKTEKKERE!$A$27:$A$38,ÅRSTOT!$A32) -> 0 | F32: 0 | G32: 0 | H32: 0 | I32: =SUMIFS(BETONG!I$27:I$38,BETONG!$A$27:$A$38,ÅRSTOT!$A32)+SUMIFS(TØMRERE!I$27:I$38,TØMRERE!$A$27:$A$38,ÅRSTOT!$A32)+SUMIFS(RØRLEGGERE!I$27:I$38,RØRLEGGERE!$A$27:$A$38,ÅRSTOT!$A32)+SUMIFS(MURERE!I$27:I$38,MURERE!$A$27:$A$38,ÅRSTOT!$A32)+SUMIFS('BLIKK OG VENTILASJON'!I$27:I$38,'BLIKK OG VENTILASJON'!$A$27:$A$38,ÅRSTOT!$A32)+SUMIFS(ISOLATØR!I$27:I$38,ISOLATØR!$A$27:$A$38,ÅRSTOT!$A32)+SUMIFS(MALERE!I$27:I$38,MALERE!$A$27:$A$38,ÅRSTOT!$A32)+SUMIFS(TAKTEKKERE!I$27:I$38,TAKTEKKERE!$A$27:$A$38,ÅRSTOT!$A32) -> 4682448 | J32: =SUMIFS(BETONG!J$27:J$38,BETONG!$A$27:$A$38,ÅRSTOT!$A32)+SUMIFS(TØMRERE!J$27:J$38,TØMRERE!$A$27:$A$38,ÅRSTOT!$A32)+SUMIFS(RØRLEGGERE!J$27:J$38,RØRLEGGERE!$A$27:$A$38,ÅRSTOT!$A32)+SUMIFS(MURERE!J$27:J$38,MURERE!$A$27:$A$38,ÅRSTOT!$A32)+SUMIFS('BLIKK OG VENTILASJON'!J$27:J$38,'BLIKK OG VENTILASJON'!$A$27:$A$38,ÅRSTOT!$A32)+SUMIFS(ISOLATØR!J$27:J$38,ISOLATØR!$A$27:$A$38,ÅRSTOT!$A32)+SUMIFS(MALERE!J$27:J$38,MALERE!$A$27:$A$38,ÅRSTOT!$A32)+SUMIFS(TAKTEKKERE!J$27:J$38,TAKTEKKERE!$A$27:$A$38,ÅRSTOT!$A32) -> 0 | K32: 280.6804778 | L32: -1 | M32: -1
A33: Hamar og Omegn | B33: =SUMIFS(BETONG!B$27:B$38,BETONG!$A$27:$A$38,ÅRSTOT!$A33)+SUMIFS(TØMRERE!B$27:B$38,TØMRERE!$A$27:$A$38,ÅRSTOT!$A33)+SUMIFS(RØRLEGGERE!B$27:B$38,RØRLEGGERE!$A$27:$A$38,ÅRSTOT!$A33)+SUMIFS(MURERE!B$27:B$38,MURERE!$A$27:$A$38,ÅRSTOT!$A33)+SUMIFS('BLIKK OG VENTILASJON'!B$27:B$38,'BLIKK OG VENTILASJON'!$A$27:$A$38,ÅRSTOT!$A33)+SUMIFS(ISOLATØR!B$27:B$38,ISOLATØR!$A$27:$A$38,ÅRSTOT!$A33)+SUMIFS(MALERE!B$27:B$38,MALERE!$A$27:$A$38,ÅRSTOT!$A33)+SUMIFS(TAKTEKKERE!B$27:B$38,TAKTEKKERE!$A$27:$A$38,ÅRSTOT!$A33) -> 17314358.7 | C33: =SUMIFS(BETONG!C$27:C$38,BETONG!$A$27:$A$38,ÅRSTOT!$A33)+SUMIFS(TØMRERE!C$27:C$38,TØMRERE!$A$27:$A$38,ÅRSTOT!$A33)+SUMIFS(RØRLEGGERE!C$27:C$38,RØRLEGGERE!$A$27:$A$38,ÅRSTOT!$A33)+SUMIFS(MURERE!C$27:C$38,MURERE!$A$27:$A$38,ÅRSTOT!$A33)+SUMIFS('BLIKK OG VENTILASJON'!C$27:C$38,'BLIKK OG VENTILASJON'!$A$27:$A$38,ÅRSTOT!$A33)+SUMIFS(ISOLATØR!C$27:C$38,ISOLATØR!$A$27:$A$38,ÅRSTOT!$A33)+SUMIFS(MALERE!C$27:C$38,MALERE!$A$27:$A$38,ÅRSTOT!$A33)+SUMIFS(TAKTEKKERE!C$27:C$38,TAKTEKKERE!$A$27:$A$38,ÅRSTOT!$A33) -> 2685511.97 | D33: =SUMIFS(BETONG!D$27:D$38,BETONG!$A$27:$A$38,ÅRSTOT!$A33)+SUMIFS(TØMRERE!D$27:D$38,TØMRERE!$A$27:$A$38,ÅRSTOT!$A33)+SUMIFS(RØRLEGGERE!D$27:D$38,RØRLEGGERE!$A$27:$A$38,ÅRSTOT!$A33)+SUMIFS(MURERE!D$27:D$38,MURERE!$A$27:$A$38,ÅRSTOT!$A33)+SUMIFS('BLIKK OG VENTILASJON'!D$27:D$38,'BLIKK OG VENTILASJON'!$A$27:$A$38,ÅRSTOT!$A33)+SUMIFS(ISOLATØR!D$27:D$38,ISOLATØR!$A$27:$A$38,ÅRSTOT!$A33)+SUMIFS(MALERE!D$27:D$38,MALERE!$A$27:$A$38,ÅRSTOT!$A33)+SUMIFS(TAKTEKKERE!D$27:D$38,TAKTEKKERE!$A$27:$A$38,ÅRSTOT!$A33) -> 55568.64 | E33: =SUMIFS(BETONG!E$27:E$38,BETONG!$A$27:$A$38,ÅRSTOT!$A33)+SUMIFS(TØMRERE!E$27:E$38,TØMRERE!$A$27:$A$38,ÅRSTOT!$A33)+SUMIFS(RØRLEGGERE!E$27:E$38,RØRLEGGERE!$A$27:$A$38,ÅRSTOT!$A33)+SUMIFS(MURERE!E$27:E$38,MURERE!$A$27:$A$38,ÅRSTOT!$A33)+SUMIFS('BLIKK OG VENTILASJON'!E$27:E$38,'BLIKK OG VENTILASJON'!$A$27:$A$38,ÅRSTOT!$A33)+SUMIFS(ISOLATØR!E$27:E$38,ISOLATØR!$A$27:$A$38,ÅRSTOT!$A33)+SUMIFS(MALERE!E$27:E$38,MALERE!$A$27:$A$38,ÅRSTOT!$A33)+SUMIFS(TAKTEKKERE!E$27:E$38,TAKTEKKERE!$A$27:$A$38,ÅRSTOT!$A33) -> 12797 | F33: 311.5850721 | G33: 209.8548074 | H33: 292.5427257 | I33: =SUMIFS(BETONG!I$27:I$38,BETONG!$A$27:$A$38,ÅRSTOT!$A33)+SUMIFS(TØMRERE!I$27:I$38,TØMRERE!$A$27:$A$38,ÅRSTOT!$A33)+SUMIFS(RØRLEGGERE!I$27:I$38,RØRLEGGERE!$A$27:$A$38,ÅRSTOT!$A33)+SUMIFS(MURERE!I$27:I$38,MURERE!$A$27:$A$38,ÅRSTOT!$A33)+SUMIFS('BLIKK OG VENTILASJON'!I$27:I$38,'BLIKK OG VENTILASJON'!$A$27:$A$38,ÅRSTOT!$A33)+SUMIFS(ISOLATØR!I$27:I$38,ISOLATØR!$A$27:$A$38,ÅRSTOT!$A33)+SUMIFS(MALERE!I$27:I$38,MALERE!$A$27:$A$38,ÅRSTOT!$A33)+SUMIFS(TAKTEKKERE!I$27:I$38,TAKTEKKERE!$A$27:$A$38,ÅRSTOT!$A33) -> 13660961 | J33: =SUMIFS(BETONG!J$27:J$38,BETONG!$A$27:$A$38,ÅRSTOT!$A33)+SUMIFS(TØMRERE!J$27:J$38,TØMRERE!$A$27:$A$38,ÅRSTOT!$A33)+SUMIFS(RØRLEGGERE!J$27:J$38,RØRLEGGERE!$A$27:$A$38,ÅRSTOT!$A33)+SUMIFS(MURERE!J$27:J$38,MURERE!$A$27:$A$38,ÅRSTOT!$A33)+SUMIFS('BLIKK OG VENTILASJON'!J$27:J$38,'BLIKK OG VENTILASJON'!$A$27:$A$38,ÅRSTOT!$A33)+SUMIFS(ISOLATØR!J$27:J$38,ISOLATØR!$A$27:$A$38,ÅRSTOT!$A33)+SUMIFS(MALERE!J$27:J$38,MALERE!$A$27:$A$38,ÅRSTOT!$A33)+SUMIFS(TAKTEKKERE!J$27:J$38,TAKTEKKERE!$A$27:$A$38,ÅRSTOT!$A33) -> 1530936 | K33: 303.2979356 | L33: 0.2674334331 | M33: -0.03546087398
A34: Sandnes | B34: =SUMIFS(BETONG!B$27:B$38,BETONG!$A$27:$A$38,ÅRSTOT!$A34)+SUMIFS(TØMRERE!B$27:B$38,TØMRERE!$A$27:$A$38,ÅRSTOT!$A34)+SUMIFS(RØRLEGGERE!B$27:B$38,RØRLEGGERE!$A$27:$A$38,ÅRSTOT!$A34)+SUMIFS(MURERE!B$27:B$38,MURERE!$A$27:$A$38,ÅRSTOT!$A34)+SUMIFS('BLIKK OG VENTILASJON'!B$27:B$38,'BLIKK OG VENTILASJON'!$A$27:$A$38,ÅRSTOT!$A34)+SUMIFS(ISOLATØR!B$27:B$38,ISOLATØR!$A$27:$A$38,ÅRSTOT!$A34)+SUMIFS(MALERE!B$27:B$38,MALERE!$A$27:$A$38,ÅRSTOT!$A34)+SUMIFS(TAKTEKKERE!B$27:B$38,TAKTEKKERE!$A$27:$A$38,ÅRSTOT!$A34) -> 11925224.39 | C34: =SUMIFS(BETONG!C$27:C$38,BETONG!$A$27:$A$38,ÅRSTOT!$A34)+SUMIFS(TØMRERE!C$27:C$38,TØMRERE!$A$27:$A$38,ÅRSTOT!$A34)+SUMIFS(RØRLEGGERE!C$27:C$38,RØRLEGGERE!$A$27:$A$38,ÅRSTOT!$A34)+SUMIFS(MURERE!C$27:C$38,MURERE!$A$27:$A$38,ÅRSTOT!$A34)+SUMIFS('BLIKK OG VENTILASJON'!C$27:C$38,'BLIKK OG VENTILASJON'!$A$27:$A$38,ÅRSTOT!$A34)+SUMIFS(ISOLATØR!C$27:C$38,ISOLATØR!$A$27:$A$38,ÅRSTOT!$A34)+SUMIFS(MALERE!C$27:C$38,MALERE!$A$27:$A$38,ÅRSTOT!$A34)+SUMIFS(TAKTEKKERE!C$27:C$38,TAKTEKKERE!$A$27:$A$38,ÅRSTOT!$A34) -> 0 | D34: =SUMIFS(BETONG!D$27:D$38,BETONG!$A$27:$A$38,ÅRSTOT!$A34)+SUMIFS(TØMRERE!D$27:D$38,TØMRERE!$A$27:$A$38,ÅRSTOT!$A34)+SUMIFS(RØRLEGGERE!D$27:D$38,RØRLEGGERE!$A$27:$A$38,ÅRSTOT!$A34)+SUMIFS(MURERE!D$27:D$38,MURERE!$A$27:$A$38,ÅRSTOT!$A34)+SUMIFS('BLIKK OG VENTILASJON'!D$27:D$38,'BLIKK OG VENTILASJON'!$A$27:$A$38,ÅRSTOT!$A34)+SUMIFS(ISOLATØR!D$27:D$38,ISOLATØR!$A$27:$A$38,ÅRSTOT!$A34)+SUMIFS(MALERE!D$27:D$38,MALERE!$A$27:$A$38,ÅRSTOT!$A34)+SUMIFS(TAKTEKKERE!D$27:D$38,TAKTEKKERE!$A$27:$A$38,ÅRSTOT!$A34) -> 34282.48 | E34: =SUMIFS(BETONG!E$27:E$38,BETONG!$A$27:$A$38,ÅRSTOT!$A34)+SUMIFS(TØMRERE!E$27:E$38,TØMRERE!$A$27:$A$38,ÅRSTOT!$A34)+SUMIFS(RØRLEGGERE!E$27:E$38,RØRLEGGERE!$A$27:$A$38,ÅRSTOT!$A34)+SUMIFS(MURERE!E$27:E$38,MURERE!$A$27:$A$38,ÅRSTOT!$A34)+SUMIFS('BLIKK OG VENTILASJON'!E$27:E$38,'BLIKK OG VENTILASJON'!$A$27:$A$38,ÅRSTOT!$A34)+SUMIFS(ISOLATØR!E$27:E$38,ISOLATØR!$A$27:$A$38,ÅRSTOT!$A34)+SUMIFS(MALERE!E$27:E$38,MALERE!$A$27:$A$38,ÅRSTOT!$A34)+SUMIFS(TAKTEKKERE!E$27:E$38,TAKTEKKERE!$A$27:$A$38,ÅRSTOT!$A34) -> 0 | F34: 347.8518587 | G34: 0 | H34: 347.8518587 | I34: =SUMIFS(BETONG!I$27:I$38,BETONG!$A$27:$A$38,ÅRSTOT!$A34)+SUMIFS(TØMRERE!I$27:I$38,TØMRERE!$A$27:$A$38,ÅRSTOT!$A34)+SUMIFS(RØRLEGGERE!I$27:I$38,RØRLEGGERE!$A$27:$A$38,ÅRSTOT!$A34)+SUMIFS(MURERE!I$27:I$38,MURERE!$A$27:$A$38,ÅRSTOT!$A34)+SUMIFS('BLIKK OG VENTILASJON'!I$27:I$38,'BLIKK OG VENTILASJON'!$A$27:$A$38,ÅRSTOT!$A34)+SUMIFS(ISOLATØR!I$27:I$38,ISOLATØR!$A$27:$A$38,ÅRSTOT!$A34)+SUMIFS(MALERE!I$27:I$38,MALERE!$A$27:$A$38,ÅRSTOT!$A34)+SUMIFS(TAKTEKKERE!I$27:I$38,TAKTEKKERE!$A$27:$A$38,ÅRSTOT!$A34) -> 22178853.21 | J34: =SUMIFS(BETONG!J$27:J$38,BETONG!$A$27:$A$38,ÅRSTOT!$A34)+SUMIFS(TØMRERE!J$27:J$38,TØMRERE!$A$27:$A$38,ÅRSTOT!$A34)+SUMIFS(RØRLEGGERE!J$27:J$38,RØRLEGGERE!$A$27:$A$38,ÅRSTOT!$A34)+SUMIFS(MURERE!J$27:J$38,MURERE!$A$27:$A$38,ÅRSTOT!$A34)+SUMIFS('BLIKK OG VENTILASJON'!J$27:J$38,'BLIKK OG VENTILASJON'!$A$27:$A$38,ÅRSTOT!$A34)+SUMIFS(ISOLATØR!J$27:J$38,ISOLATØR!$A$27:$A$38,ÅRSTOT!$A34)+SUMIFS(MALERE!J$27:J$38,MALERE!$A$27:$A$38,ÅRSTOT!$A34)+SUMIFS(TAKTEKKERE!J$27:J$38,TAKTEKKERE!$A$27:$A$38,ÅRSTOT!$A34) -> 0 | K34: 328.212352 | L34: -0.4623155545 | M34: 0.05983780511
A35: Stavanger | B35: =SUMIFS(BETONG!B$27:B$38,BETONG!$A$27:$A$38,ÅRSTOT!$A35)+SUMIFS(TØMRERE!B$27:B$38,TØMRERE!$A$27:$A$38,ÅRSTOT!$A35)+SUMIFS(RØRLEGGERE!B$27:B$38,RØRLEGGERE!$A$27:$A$38,ÅRSTOT!$A35)+SUMIFS(MURERE!B$27:B$38,MURERE!$A$27:$A$38,ÅRSTOT!$A35)+SUMIFS('BLIKK OG VENTILASJON'!B$27:B$38,'BLIKK OG VENTILASJON'!$A$27:$A$38,ÅRSTOT!$A35)+SUMIFS(ISOLATØR!B$27:B$38,ISOLATØR!$A$27:$A$38,ÅRSTOT!$A35)+SUMIFS(MALERE!B$27:B$38,MALERE!$A$27:$A$38,ÅRSTOT!$A35)+SUMIFS(TAKTEKKERE!B$27:B$38,TAKTEKKERE!$A$27:$A$38,ÅRSTOT!$A35) -> 6718988.38 | C35: =SUMIFS(BETONG!C$27:C$38,BETONG!$A$27:$A$38,ÅRSTOT!$A35)+SUMIFS(TØMRERE!C$27:C$38,TØMRERE!$A$27:$A$38,ÅRSTOT!$A35)+SUMIFS(RØRLEGGERE!C$27:C$38,RØRLEGGERE!$A$27:$A$38,ÅRSTOT!$A35)+SUMIFS(MURERE!C$27:C$38,MURERE!$A$27:$A$38,ÅRSTOT!$A35)+SUMIFS('BLIKK OG VENTILASJON'!C$27:C$38,'BLIKK OG VENTILASJON'!$A$27:$A$38,ÅRSTOT!$A35)+SUMIFS(ISOLATØR!C$27:C$38,ISOLATØR!$A$27:$A$38,ÅRSTOT!$A35)+SUMIFS(MALERE!C$27:C$38,MALERE!$A$27:$A$38,ÅRSTOT!$A35)+SUMIFS(TAKTEKKERE!C$27:C$38,TAKTEKKERE!$A$27:$A$38,ÅRSTOT!$A35) -> 0 | D35: =SUMIFS(BETONG!D$27:D$38,BETONG!$A$27:$A$38,ÅRSTOT!$A35)+SUMIFS(TØMRERE!D$27:D$38,TØMRERE!$A$27:$A$38,ÅRSTOT!$A35)+SUMIFS(RØRLEGGERE!D$27:D$38,RØRLEGGERE!$A$27:$A$38,ÅRSTOT!$A35)+SUMIFS(MURERE!D$27:D$38,MURERE!$A$27:$A$38,ÅRSTOT!$A35)+SUMIFS('BLIKK OG VENTILASJON'!D$27:D$38,'BLIKK OG VENTILASJON'!$A$27:$A$38,ÅRSTOT!$A35)+SUMIFS(ISOLATØR!D$27:D$38,ISOLATØR!$A$27:$A$38,ÅRSTOT!$A35)+SUMIFS(MALERE!D$27:D$38,MALERE!$A$27:$A$38,ÅRSTOT!$A35)+SUMIFS(TAKTEKKERE!D$27:D$38,TAKTEKKERE!$A$27:$A$38,ÅRSTOT!$A35) -> 20286 | E35: =SUMIFS(BETONG!E$27:E$38,BETONG!$A$27:$A$38,ÅRSTOT!$A35)+SUMIFS(TØMRERE!E$27:E$38,TØMRERE!$A$27:$A$38,ÅRSTOT!$A35)+SUMIFS(RØRLEGGERE!E$27:E$38,RØRLEGGERE!$A$27:$A$38,ÅRSTOT!$A35)+SUMIFS(MURERE!E$27:E$38,MURERE!$A$27:$A$38,ÅRSTOT!$A35)+SUMIFS('BLIKK OG VENTILASJON'!E$27:E$38,'BLIKK OG VENTILASJON'!$A$27:$A$38,ÅRSTOT!$A35)+SUMIFS(ISOLATØR!E$27:E$38,ISOLATØR!$A$27:$A$38,ÅRSTOT!$A35)+SUMIFS(MALERE!E$27:E$38,MALERE!$A$27:$A$38,ÅRSTOT!$A35)+SUMIFS(TAKTEKKERE!E$27:E$38,TAKTEKKERE!$A$27:$A$38,ÅRSTOT!$A35) -> 0 | F35: 331.2130721 | G35: 0 | H35: 331.2130721 | I35: =SUMIFS(BETONG!I$27:I$38,BETONG!$A$27:$A$38,ÅRSTOT!$A35)+SUMIFS(TØMRERE!I$27:I$38,TØMRERE!$A$27:$A$38,ÅRSTOT!$A35)+SUMIFS(RØRLEGGERE!I$27:I$38,RØRLEGGERE!$A$27:$A$38,ÅRSTOT!$A35)+SUMIFS(MURERE!I$27:I$38,MURERE!$A$27:$A$38,ÅRSTOT!$A35)+SUMIFS('BLIKK OG VENTILASJON'!I$27:I$38,'BLIKK OG VENTILASJON'!$A$27:$A$38,ÅRSTOT!$A35)+SUMIFS(ISOLATØR!I$27:I$38,ISOLATØR!$A$27:$A$38,ÅRSTOT!$A35)+SUMIFS(MALERE!I$27:I$38,MALERE!$A$27:$A$38,ÅRSTOT!$A35)+SUMIFS(TAKTEKKERE!I$27:I$38,TAKTEKKERE!$A$27:$A$38,ÅRSTOT!$A35) -> 4049422.4 | J35: =SUMIFS(BETONG!J$27:J$38,BETONG!$A$27:$A$38,ÅRSTOT!$A35)+SUMIFS(TØMRERE!J$27:J$38,TØMRERE!$A$27:$A$38,ÅRSTOT!$A35)+SUMIFS(RØRLEGGERE!J$27:J$38,RØRLEGGERE!$A$27:$A$38,ÅRSTOT!$A35)+SUMIFS(MURERE!J$27:J$38,MURERE!$A$27:$A$38,ÅRSTOT!$A35)+SUMIFS('BLIKK OG VENTILASJON'!J$27:J$38,'BLIKK OG VENTILASJON'!$A$27:$A$38,ÅRSTOT!$A35)+SUMIFS(ISOLATØR!J$27:J$38,ISOLATØR!$A$27:$A$38,ÅRSTOT!$A35)+SUMIFS(MALERE!J$27:J$38,MALERE!$A$27:$A$38,ÅRSTOT!$A35)+SUMIFS(TAKTEKKERE!J$27:J$38,TAKTEKKERE!$A$27:$A$38,ÅRSTOT!$A35) -> 0 | K35: 311.4244587 | L35: 0.6592461137 | M35: 0.06354225828
A36: Telemark | B36: =SUMIFS(BETONG!B$27:B$38,BETONG!$A$27:$A$38,ÅRSTOT!$A36)+SUMIFS(TØMRERE!B$27:B$38,TØMRERE!$A$27:$A$38,ÅRSTOT!$A36)+SUMIFS(RØRLEGGERE!B$27:B$38,RØRLEGGERE!$A$27:$A$38,ÅRSTOT!$A36)+SUMIFS(MURERE!B$27:B$38,MURERE!$A$27:$A$38,ÅRSTOT!$A36)+SUMIFS('BLIKK OG VENTILASJON'!B$27:B$38,'BLIKK OG VENTILASJON'!$A$27:$A$38,ÅRSTOT!$A36)+SUMIFS(ISOLATØR!B$27:B$38,ISOLATØR!$A$27:$A$38,ÅRSTOT!$A36)+SUMIFS(MALERE!B$27:B$38,MALERE!$A$27:$A$38,ÅRSTOT!$A36)+SUMIFS(TAKTEKKERE!B$27:B$38,TAKTEKKERE!$A$27:$A$38,ÅRSTOT!$A36) -> 25661922 | C36: =SUMIFS(BETONG!C$27:C$38,BETONG!$A$27:$A$38,ÅRSTOT!$A36)+SUMIFS(TØMRERE!C$27:C$38,TØMRERE!$A$27:$A$38,ÅRSTOT!$A36)+SUMIFS(RØRLEGGERE!C$27:C$38,RØRLEGGERE!$A$27:$A$38,ÅRSTOT!$A36)+SUMIFS(MURERE!C$27:C$38,MURERE!$A$27:$A$38,ÅRSTOT!$A36)+SUMIFS('BLIKK OG VENTILASJON'!C$27:C$38,'BLIKK OG VENTILASJON'!$A$27:$A$38,ÅRSTOT!$A36)+SUMIFS(ISOLATØR!C$27:C$38,ISOLATØR!$A$27:$A$38,ÅRSTOT!$A36)+SUMIFS(MALERE!C$27:C$38,MALERE!$A$27:$A$38,ÅRSTOT!$A36)+SUMIFS(TAKTEKKERE!C$27:C$38,TAKTEKKERE!$A$27:$A$38,ÅRSTOT!$A36) -> 800000 | D36: =SUMIFS(BETONG!D$27:D$38,BETONG!$A$27:$A$38,ÅRSTOT!$A36)+SUMIFS(TØMRERE!D$27:D$38,TØMRERE!$A$27:$A$38,ÅRSTOT!$A36)+SUMIFS(RØRLEGGERE!D$27:D$38,RØRLEGGERE!$A$27:$A$38,ÅRSTOT!$A36)+SUMIFS(MURERE!D$27:D$38,MURERE!$A$27:$A$38,ÅRSTOT!$A36)+SUMIFS('BLIKK OG VENTILASJON'!D$27:D$38,'BLIKK OG VENTILASJON'!$A$27:$A$38,ÅRSTOT!$A36)+SUMIFS(ISOLATØR!D$27:D$38,ISOLATØR!$A$27:$A$38,ÅRSTOT!$A36)+SUMIFS(MALERE!D$27:D$38,MALERE!$A$27:$A$38,ÅRSTOT!$A36)+SUMIFS(TAKTEKKERE!D$27:D$38,TAKTEKKERE!$A$27:$A$38,ÅRSTOT!$A36) -> 74322.5 | E36: =SUMIFS(BETONG!E$27:E$38,BETONG!$A$27:$A$38,ÅRSTOT!$A36)+SUMIFS(TØMRERE!E$27:E$38,TØMRERE!$A$27:$A$38,ÅRSTOT!$A36)+SUMIFS(RØRLEGGERE!E$27:E$38,RØRLEGGERE!$A$27:$A$38,ÅRSTOT!$A36)+SUMIFS(MURERE!E$27:E$38,MURERE!$A$27:$A$38,ÅRSTOT!$A36)+SUMIFS('BLIKK OG VENTILASJON'!E$27:E$38,'BLIKK OG VENTILASJON'!$A$27:$A$38,ÅRSTOT!$A36)+SUMIFS(ISOLATØR!E$27:E$38,ISOLATØR!$A$27:$A$38,ÅRSTOT!$A36)+SUMIFS(MALERE!E$27:E$38,MALERE!$A$27:$A$38,ÅRSTOT!$A36)+SUMIFS(TAKTEKKERE!E$27:E$38,TAKTEKKERE!$A$27:$A$38,ÅRSTOT!$A36) -> 3400 | F36: =IF(D36=0,0,B36/D36) -> 345.277971 | G36: 235.2941176 | H36: 340.466686 | I36: =SUMIFS(BETONG!I$27:I$38,BETONG!$A$27:$A$38,ÅRSTOT!$A36)+SUMIFS(TØMRERE!I$27:I$38,TØMRERE!$A$27:$A$38,ÅRSTOT!$A36)+SUMIFS(RØRLEGGERE!I$27:I$38,RØRLEGGERE!$A$27:$A$38,ÅRSTOT!$A36)+SUMIFS(MURERE!I$27:I$38,MURERE!$A$27:$A$38,ÅRSTOT!$A36)+SUMIFS('BLIKK OG VENTILASJON'!I$27:I$38,'BLIKK OG VENTILASJON'!$A$27:$A$38,ÅRSTOT!$A36)+SUMIFS(ISOLATØR!I$27:I$38,ISOLATØR!$A$27:$A$38,ÅRSTOT!$A36)+SUMIFS(MALERE!I$27:I$38,MALERE!$A$27:$A$38,ÅRSTOT!$A36)+SUMIFS(TAKTEKKERE!I$27:I$38,TAKTEKKERE!$A$27:$A$38,ÅRSTOT!$A36) -> 19220692 | J36: =SUMIFS(BETONG!J$27:J$38,BETONG!$A$27:$A$38,ÅRSTOT!$A36)+SUMIFS(TØMRERE!J$27:J$38,TØMRERE!$A$27:$A$38,ÅRSTOT!$A36)+SUMIFS(RØRLEGGERE!J$27:J$38,RØRLEGGERE!$A$27:$A$38,ÅRSTOT!$A36)+SUMIFS(MURERE!J$27:J$38,MURERE!$A$27:$A$38,ÅRSTOT!$A36)+SUMIFS('BLIKK OG VENTILASJON'!J$27:J$38,'BLIKK OG VENTILASJON'!$A$27:$A$38,ÅRSTOT!$A36)+SUMIFS(ISOLATØR!J$27:J$38,ISOLATØR!$A$27:$A$38,ÅRSTOT!$A36)+SUMIFS(MALERE!J$27:J$38,MALERE!$A$27:$A$38,ÅRSTOT!$A36)+SUMIFS(TAKTEKKERE!J$27:J$38,TAKTEKKERE!$A$27:$A$38,ÅRSTOT!$A36) -> 57403 | K36: 321.7051868 | L36: 0.335119568 | M36: 0.05831892045
A37: Trondheim | B37: =SUMIFS(BETONG!B$27:B$38,BETONG!$A$27:$A$38,ÅRSTOT!$A37)+SUMIFS(TØMRERE!B$27:B$38,TØMRERE!$A$27:$A$38,ÅRSTOT!$A37)+SUMIFS(RØRLEGGERE!B$27:B$38,RØRLEGGERE!$A$27:$A$38,ÅRSTOT!$A37)+SUMIFS(MURERE!B$27:B$38,MURERE!$A$27:$A$38,ÅRSTOT!$A37)+SUMIFS('BLIKK OG VENTILASJON'!B$27:B$38,'BLIKK OG VENTILASJON'!$A$27:$A$38,ÅRSTOT!$A37)+SUMIFS(ISOLATØR!B$27:B$38,ISOLATØR!$A$27:$A$38,ÅRSTOT!$A37)+SUMIFS(MALERE!B$27:B$38,MALERE!$A$27:$A$38,ÅRSTOT!$A37)+SUMIFS(TAKTEKKERE!B$27:B$38,TAKTEKKERE!$A$27:$A$38,ÅRSTOT!$A37) -> 187311121.6 | C37: =SUMIFS(BETONG!C$27:C$38,BETONG!$A$27:$A$38,ÅRSTOT!$A37)+SUMIFS(TØMRERE!C$27:C$38,TØMRERE!$A$27:$A$38,ÅRSTOT!$A37)+SUMIFS(RØRLEGGERE!C$27:C$38,RØRLEGGERE!$A$27:$A$38,ÅRSTOT!$A37)+SUMIFS(MURERE!C$27:C$38,MURERE!$A$27:$A$38,ÅRSTOT!$A37)+SUMIFS('BLIKK OG VENTILASJON'!C$27:C$38,'BLIKK OG VENTILASJON'!$A$27:$A$38,ÅRSTOT!$A37)+SUMIFS(ISOLATØR!C$27:C$38,ISOLATØR!$A$27:$A$38,ÅRSTOT!$A37)+SUMIFS(MALERE!C$27:C$38,MALERE!$A$27:$A$38,ÅRSTOT!$A37)+SUMIFS(TAKTEKKERE!C$27:C$38,TAKTEKKERE!$A$27:$A$38,ÅRSTOT!$A37) -> 23396093.8 | D37: =SUMIFS(BETONG!D$27:D$38,BETONG!$A$27:$A$38,ÅRSTOT!$A37)+SUMIFS(TØMRERE!D$27:D$38,TØMRERE!$A$27:$A$38,ÅRSTOT!$A37)+SUMIFS(RØRLEGGERE!D$27:D$38,RØRLEGGERE!$A$27:$A$38,ÅRSTOT!$A37)+SUMIFS(MURERE!D$27:D$38,MURERE!$A$27:$A$38,ÅRSTOT!$A37)+SUMIFS('BLIKK OG VENTILASJON'!D$27:D$38,'BLIKK OG VENTILASJON'!$A$27:$A$38,ÅRSTOT!$A37)+SUMIFS(ISOLATØR!D$27:D$38,ISOLATØR!$A$27:$A$38,ÅRSTOT!$A37)+SUMIFS(MALERE!D$27:D$38,MALERE!$A$27:$A$38,ÅRSTOT!$A37)+SUMIFS(TAKTEKKERE!D$27:D$38,TAKTEKKERE!$A$27:$A$38,ÅRSTOT!$A37) -> 562885.53 | E37: =SUMIFS(BETONG!E$27:E$38,BETONG!$A$27:$A$38,ÅRSTOT!$A37)+SUMIFS(TØMRERE!E$27:E$38,TØMRERE!$A$27:$A$38,ÅRSTOT!$A37)+SUMIFS(RØRLEGGERE!E$27:E$38,RØRLEGGERE!$A$27:$A$38,ÅRSTOT!$A37)+SUMIFS(MURERE!E$27:E$38,MURERE!$A$27:$A$38,ÅRSTOT!$A37)+SUMIFS('BLIKK OG VENTILASJON'!E$27:E$38,'BLIKK OG VENTILASJON'!$A$27:$A$38,ÅRSTOT!$A37)+SUMIFS(ISOLATØR!E$27:E$38,ISOLATØR!$A$27:$A$38,ÅRSTOT!$A37)+SUMIFS(MALERE!E$27:E$38,MALERE!$A$27:$A$38,ÅRSTOT!$A37)+SUMIFS(TAKTEKKERE!E$27:E$38,TAKTEKKERE!$A$27:$A$38,ÅRSTOT!$A37) -> 110323.75 | F37: =IF(B37=0,0,B37/D37) -> 332.7694737 | G37: =IF(E37=0,0,C37/E37) -> 212.0676083 | H37: 312.9891724 | I37: =SUMIFS(BETONG!I$27:I$38,BETONG!$A$27:$A$38,ÅRSTOT!$A37)+SUMIFS(TØMRERE!I$27:I$38,TØMRERE!$A$27:$A$38,ÅRSTOT!$A37)+SUMIFS(RØRLEGGERE!I$27:I$38,RØRLEGGERE!$A$27:$A$38,ÅRSTOT!$A37)+SUMIFS(MURERE!I$27:I$38,MURERE!$A$27:$A$38,ÅRSTOT!$A37)+SUMIFS('BLIKK OG VENTILASJON'!I$27:I$38,'BLIKK OG VENTILASJON'!$A$27:$A$38,ÅRSTOT!$A37)+SUMIFS(ISOLATØR!I$27:I$38,ISOLATØR!$A$27:$A$38,ÅRSTOT!$A37)+SUMIFS(MALERE!I$27:I$38,MALERE!$A$27:$A$38,ÅRSTOT!$A37)+SUMIFS(TAKTEKKERE!I$27:I$38,TAKTEKKERE!$A$27:$A$38,ÅRSTOT!$A37) -> 148050234.2 | J37: =SUMIFS(BETONG!J$27:J$38,BETONG!$A$27:$A$38,ÅRSTOT!$A37)+SUMIFS(TØMRERE!J$27:J$38,TØMRERE!$A$27:$A$38,ÅRSTOT!$A37)+SUMIFS(RØRLEGGERE!J$27:J$38,RØRLEGGERE!$A$27:$A$38,ÅRSTOT!$A37)+SUMIFS(MURERE!J$27:J$38,MURERE!$A$27:$A$38,ÅRSTOT!$A37)+SUMIFS('BLIKK OG VENTILASJON'!J$27:J$38,'BLIKK OG VENTILASJON'!$A$27:$A$38,ÅRSTOT!$A37)+SUMIFS(ISOLATØR!J$27:J$38,ISOLATØR!$A$27:$A$38,ÅRSTOT!$A37)+SUMIFS(MALERE!J$27:J$38,MALERE!$A$27:$A$38,ÅRSTOT!$A37)+SUMIFS(TAKTEKKERE!J$27:J$38,TAKTEKKERE!$A$27:$A$38,ÅRSTOT!$A37) -> 8638814.34 | K37: 296.2068629 | L37: 0.2651862568 | M37: 0.05665739593
A38: Vestfold | B38: =SUMIFS(BETONG!B$27:B$38,BETONG!$A$27:$A$38,ÅRSTOT!$A38)+SUMIFS(TØMRERE!B$27:B$38,TØMRERE!$A$27:$A$38,ÅRSTOT!$A38)+SUMIFS(RØRLEGGERE!B$27:B$38,RØRLEGGERE!$A$27:$A$38,ÅRSTOT!$A38)+SUMIFS(MURERE!B$27:B$38,MURERE!$A$27:$A$38,ÅRSTOT!$A38)+SUMIFS('BLIKK OG VENTILASJON'!B$27:B$38,'BLIKK OG VENTILASJON'!$A$27:$A$38,ÅRSTOT!$A38)+SUMIFS(ISOLATØR!B$27:B$38,ISOLATØR!$A$27:$A$38,ÅRSTOT!$A38)+SUMIFS(MALERE!B$27:B$38,MALERE!$A$27:$A$38,ÅRSTOT!$A38)+SUMIFS(TAKTEKKERE!B$27:B$38,TAKTEKKERE!$A$27:$A$38,ÅRSTOT!$A38) -> 2167631 | C38: =SUMIFS(BETONG!C$27:C$38,BETONG!$A$27:$A$38,ÅRSTOT!$A38)+SUMIFS(TØMRERE!C$27:C$38,TØMRERE!$A$27:$A$38,ÅRSTOT!$A38)+SUMIFS(RØRLEGGERE!C$27:C$38,RØRLEGGERE!$A$27:$A$38,ÅRSTOT!$A38)+SUMIFS(MURERE!C$27:C$38,MURERE!$A$27:$A$38,ÅRSTOT!$A38)+SUMIFS('BLIKK OG VENTILASJON'!C$27:C$38,'BLIKK OG VENTILASJON'!$A$27:$A$38,ÅRSTOT!$A38)+SUMIFS(ISOLATØR!C$27:C$38,ISOLATØR!$A$27:$A$38,ÅRSTOT!$A38)+SUMIFS(MALERE!C$27:C$38,MALERE!$A$27:$A$38,ÅRSTOT!$A38)+SUMIFS(TAKTEKKERE!C$27:C$38,TAKTEKKERE!$A$27:$A$38,ÅRSTOT!$A38) -> 0 | D38: =SUMIFS(BETONG!D$27:D$38,BETONG!$A$27:$A$38,ÅRSTOT!$A38)+SUMIFS(TØMRERE!D$27:D$38,TØMRERE!$A$27:$A$38,ÅRSTOT!$A38)+SUMIFS(RØRLEGGERE!D$27:D$38,RØRLEGGERE!$A$27:$A$38,ÅRSTOT!$A38)+SUMIFS(MURERE!D$27:D$38,MURERE!$A$27:$A$38,ÅRSTOT!$A38)+SUMIFS('BLIKK OG VENTILASJON'!D$27:D$38,'BLIKK OG VENTILASJON'!$A$27:$A$38,ÅRSTOT!$A38)+SUMIFS(ISOLATØR!D$27:D$38,ISOLATØR!$A$27:$A$38,ÅRSTOT!$A38)+SUMIFS(MALERE!D$27:D$38,MALERE!$A$27:$A$38,ÅRSTOT!$A38)+SUMIFS(TAKTEKKERE!D$27:D$38,TAKTEKKERE!$A$27:$A$38,ÅRSTOT!$A38) -> 5318.5 | E38: =SUMIFS(BETONG!E$27:E$38,BETONG!$A$27:$A$38,ÅRSTOT!$A38)+SUMIFS(TØMRERE!E$27:E$38,TØMRERE!$A$27:$A$38,ÅRSTOT!$A38)+SUMIFS(RØRLEGGERE!E$27:E$38,RØRLEGGERE!$A$27:$A$38,ÅRSTOT!$A38)+SUMIFS(MURERE!E$27:E$38,MURERE!$A$27:$A$38,ÅRSTOT!$A38)+SUMIFS('BLIKK OG VENTILASJON'!E$27:E$38,'BLIKK OG VENTILASJON'!$A$27:$A$38,ÅRSTOT!$A38)+SUMIFS(ISOLATØR!E$27:E$38,ISOLATØR!$A$27:$A$38,ÅRSTOT!$A38)+SUMIFS(MALERE!E$27:E$38,MALERE!$A$27:$A$38,ÅRSTOT!$A38)+SUMIFS(TAKTEKKERE!E$27:E$38,TAKTEKKERE!$A$27:$A$38,ÅRSTOT!$A38) -> 0 | F38: =IF(D38=0,0,B38/D38) -> 407.5643509 | G38: 0 | H38: 407.5643509 | I38: =SUMIFS(BETONG!I$27:I$38,BETONG!$A$27:$A$38,ÅRSTOT!$A38)+SUMIFS(TØMRERE!I$27:I$38,TØMRERE!$A$27:$A$38,ÅRSTOT!$A38)+SUMIFS(RØRLEGGERE!I$27:I$38,RØRLEGGERE!$A$27:$A$38,ÅRSTOT!$A38)+SUMIFS(MURERE!I$27:I$38,MURERE!$A$27:$A$38,ÅRSTOT!$A38)+SUMIFS('BLIKK OG VENTILASJON'!I$27:I$38,'BLIKK OG VENTILASJON'!$A$27:$A$38,ÅRSTOT!$A38)+SUMIFS(ISOLATØR!I$27:I$38,ISOLATØR!$A$27:$A$38,ÅRSTOT!$A38)+SUMIFS(MALERE!I$27:I$38,MALERE!$A$27:$A$38,ÅRSTOT!$A38)+SUMIFS(TAKTEKKERE!I$27:I$38,TAKTEKKERE!$A$27:$A$38,ÅRSTOT!$A38) -> 1472901 | J38: =SUMIFS(BETONG!J$27:J$38,BETONG!$A$27:$A$38,ÅRSTOT!$A38)+SUMIFS(TØMRERE!J$27:J$38,TØMRERE!$A$27:$A$38,ÅRSTOT!$A38)+SUMIFS(RØRLEGGERE!J$27:J$38,RØRLEGGERE!$A$27:$A$38,ÅRSTOT!$A38)+SUMIFS(MURERE!J$27:J$38,MURERE!$A$27:$A$38,ÅRSTOT!$A38)+SUMIFS('BLIKK OG VENTILASJON'!J$27:J$38,'BLIKK OG VENTILASJON'!$A$27:$A$38,ÅRSTOT!$A38)+SUMIFS(ISOLATØR!J$27:J$38,ISOLATØR!$A$27:$A$38,ÅRSTOT!$A38)+SUMIFS(MALERE!J$27:J$38,MALERE!$A$27:$A$38,ÅRSTOT!$A38)+SUMIFS(TAKTEKKERE!J$27:J$38,TAKTEKKERE!$A$27:$A$38,ÅRSTOT!$A38) -> 0 | K38: 393.7805755 | L38: 0.4716746068 | M38: 0.03500369538
A39: Østfold | B39: =SUMIFS(BETONG!B$27:B$38,BETONG!$A$27:$A$38,ÅRSTOT!$A39)+SUMIFS(TØMRERE!B$27:B$38,TØMRERE!$A$27:$A$38,ÅRSTOT!$A39)+SUMIFS(RØRLEGGERE!B$27:B$38,RØRLEGGERE!$A$27:$A$38,ÅRSTOT!$A39)+SUMIFS(MURERE!B$27:B$38,MURERE!$A$27:$A$38,ÅRSTOT!$A39)+SUMIFS('BLIKK OG VENTILASJON'!B$27:B$38,'BLIKK OG VENTILASJON'!$A$27:$A$38,ÅRSTOT!$A39)+SUMIFS(ISOLATØR!B$27:B$38,ISOLATØR!$A$27:$A$38,ÅRSTOT!$A39)+SUMIFS(MALERE!B$27:B$38,MALERE!$A$27:$A$38,ÅRSTOT!$A39)+SUMIFS(TAKTEKKERE!B$27:B$38,TAKTEKKERE!$A$27:$A$38,ÅRSTOT!$A39) -> 1602127 | C39: =SUMIFS(BETONG!C$27:C$38,BETONG!$A$27:$A$38,ÅRSTOT!$A39)+SUMIFS(TØMRERE!C$27:C$38,TØMRERE!$A$27:$A$38,ÅRSTOT!$A39)+SUMIFS(RØRLEGGERE!C$27:C$38,RØRLEGGERE!$A$27:$A$38,ÅRSTOT!$A39)+SUMIFS(MURERE!C$27:C$38,MURERE!$A$27:$A$38,ÅRSTOT!$A39)+SUMIFS('BLIKK OG VENTILASJON'!C$27:C$38,'BLIKK OG VENTILASJON'!$A$27:$A$38,ÅRSTOT!$A39)+SUMIFS(ISOLATØR!C$27:C$38,ISOLATØR!$A$27:$A$38,ÅRSTOT!$A39)+SUMIFS(MALERE!C$27:C$38,MALERE!$A$27:$A$38,ÅRSTOT!$A39)+SUMIFS(TAKTEKKERE!C$27:C$38,TAKTEKKERE!$A$27:$A$38,ÅRSTOT!$A39) -> 3087579 | D39: =SUMIFS(BETONG!D$27:D$38,BETONG!$A$27:$A$38,ÅRSTOT!$A39)+SUMIFS(TØMRERE!D$27:D$38,TØMRERE!$A$27:$A$38,ÅRSTOT!$A39)+SUMIFS(RØRLEGGERE!D$27:D$38,RØRLEGGERE!$A$27:$A$38,ÅRSTOT!$A39)+SUMIFS(MURERE!D$27:D$38,MURERE!$A$27:$A$38,ÅRSTOT!$A39)+SUMIFS('BLIKK OG VENTILASJON'!D$27:D$38,'BLIKK OG VENTILASJON'!$A$27:$A$38,ÅRSTOT!$A39)+SUMIFS(ISOLATØR!D$27:D$38,ISOLATØR!$A$27:$A$38,ÅRSTOT!$A39)+SUMIFS(MALERE!D$27:D$38,MALERE!$A$27:$A$38,ÅRSTOT!$A39)+SUMIFS(TAKTEKKERE!D$27:D$38,TAKTEKKERE!$A$27:$A$38,ÅRSTOT!$A39) -> 4904 | E39: =SUMIFS(BETONG!E$27:E$38,BETONG!$A$27:$A$38,ÅRSTOT!$A39)+SUMIFS(TØMRERE!E$27:E$38,TØMRERE!$A$27:$A$38,ÅRSTOT!$A39)+SUMIFS(RØRLEGGERE!E$27:E$38,RØRLEGGERE!$A$27:$A$38,ÅRSTOT!$A39)+SUMIFS(MURERE!E$27:E$38,MURERE!$A$27:$A$38,ÅRSTOT!$A39)+SUMIFS('BLIKK OG VENTILASJON'!E$27:E$38,'BLIKK OG VENTILASJON'!$A$27:$A$38,ÅRSTOT!$A39)+SUMIFS(ISOLATØR!E$27:E$38,ISOLATØR!$A$27:$A$38,ÅRSTOT!$A39)+SUMIFS(MALERE!E$27:E$38,MALERE!$A$27:$A$38,ÅRSTOT!$A39)+SUMIFS(TAKTEKKERE!E$27:E$38,TAKTEKKERE!$A$27:$A$38,ÅRSTOT!$A39) -> 16480 | F39: 326.6980016 | G39: 187.3530947 | H39: 219.3091096 | I39: =SUMIFS(BETONG!I$27:I$38,BETONG!$A$27:$A$38,ÅRSTOT!$A39)+SUMIFS(TØMRERE!I$27:I$38,TØMRERE!$A$27:$A$38,ÅRSTOT!$A39)+SUMIFS(RØRLEGGERE!I$27:I$38,RØRLEGGERE!$A$27:$A$38,ÅRSTOT!$A39)+SUMIFS(MURERE!I$27:I$38,MURERE!$A$27:$A$38,ÅRSTOT!$A39)+SUMIFS('BLIKK OG VENTILASJON'!I$27:I$38,'BLIKK OG VENTILASJON'!$A$27:$A$38,ÅRSTOT!$A39)+SUMIFS(ISOLATØR!I$27:I$38,ISOLATØR!$A$27:$A$38,ÅRSTOT!$A39)+SUMIFS(MALERE!I$27:I$38,MALERE!$A$27:$A$38,ÅRSTOT!$A39)+SUMIFS(TAKTEKKERE!I$27:I$38,TAKTEKKERE!$A$27:$A$38,ÅRSTOT!$A39) -> 6265419.5 | J39: =SUMIFS(BETONG!J$27:J$38,BETONG!$A$27:$A$38,ÅRSTOT!$A39)+SUMIFS(TØMRERE!J$27:J$38,TØMRERE!$A$27:$A$38,ÅRSTOT!$A39)+SUMIFS(RØRLEGGERE!J$27:J$38,RØRLEGGERE!$A$27:$A$38,ÅRSTOT!$A39)+SUMIFS(MURERE!J$27:J$38,MURERE!$A$27:$A$38,ÅRSTOT!$A39)+SUMIFS('BLIKK OG VENTILASJON'!J$27:J$38,'BLIKK OG VENTILASJON'!$A$27:$A$38,ÅRSTOT!$A39)+SUMIFS(ISOLATØR!J$27:J$38,ISOLATØR!$A$27:$A$38,ÅRSTOT!$A39)+SUMIFS(MALERE!J$27:J$38,MALERE!$A$27:$A$38,ÅRSTOT!$A39)+SUMIFS(TAKTEKKERE!J$27:J$38,TAKTEKKERE!$A$27:$A$38,ÅRSTOT!$A39) -> 895337 | K39: 308.1390856 | L39: -0.7442905459 | M39: -0.288278833
A40: Oslo | B40: =SUMIFS(BETONG!B$27:B$38,BETONG!$A$27:$A$38,ÅRSTOT!$A40)+SUMIFS(TØMRERE!B$27:B$38,TØMRERE!$A$27:$A$38,ÅRSTOT!$A40)+SUMIFS(RØRLEGGERE!B$27:B$38,RØRLEGGERE!$A$27:$A$38,ÅRSTOT!$A40)+SUMIFS(MURERE!B$27:B$38,MURERE!$A$27:$A$38,ÅRSTOT!$A40)+SUMIFS('BLIKK OG VENTILASJON'!B$27:B$38,'BLIKK OG VENTILASJON'!$A$27:$A$38,ÅRSTOT!$A40)+SUMIFS(ISOLATØR!B$27:B$38,ISOLATØR!$A$27:$A$38,ÅRSTOT!$A40)+SUMIFS(MALERE!B$27:B$38,MALERE!$A$27:$A$38,ÅRSTOT!$A40)+SUMIFS(TAKTEKKERE!B$27:B$38,TAKTEKKERE!$A$27:$A$38,ÅRSTOT!$A40) -> 149052830.5 | C40: =SUMIFS(BETONG!C$27:C$38,BETONG!$A$27:$A$38,ÅRSTOT!$A40)+SUMIFS(TØMRERE!C$27:C$38,TØMRERE!$A$27:$A$38,ÅRSTOT!$A40)+SUMIFS(RØRLEGGERE!C$27:C$38,RØRLEGGERE!$A$27:$A$38,ÅRSTOT!$A40)+SUMIFS(MURERE!C$27:C$38,MURERE!$A$27:$A$38,ÅRSTOT!$A40)+SUMIFS('BLIKK OG VENTILASJON'!C$27:C$38,'BLIKK OG VENTILASJON'!$A$27:$A$38,ÅRSTOT!$A40)+SUMIFS(ISOLATØR!C$27:C$38,ISOLATØR!$A$27:$A$38,ÅRSTOT!$A40)+SUMIFS(MALERE!C$27:C$38,MALERE!$A$27:$A$38,ÅRSTOT!$A40)+SUMIFS(TAKTEKKERE!C$27:C$38,TAKTEKKERE!$A$27:$A$38,ÅRSTOT!$A40) -> 11450599.58 | D40: =SUMIFS(BETONG!D$27:D$38,BETONG!$A$27:$A$38,ÅRSTOT!$A40)+SUMIFS(TØMRERE!D$27:D$38,TØMRERE!$A$27:$A$38,ÅRSTOT!$A40)+SUMIFS(RØRLEGGERE!D$27:D$38,RØRLEGGERE!$A$27:$A$38,ÅRSTOT!$A40)+SUMIFS(MURERE!D$27:D$38,MURERE!$A$27:$A$38,ÅRSTOT!$A40)+SUMIFS('BLIKK OG VENTILASJON'!D$27:D$38,'BLIKK OG VENTILASJON'!$A$27:$A$38,ÅRSTOT!$A40)+SUMIFS(ISOLATØR!D$27:D$38,ISOLATØR!$A$27:$A$38,ÅRSTOT!$A40)+SUMIFS(MALERE!D$27:D$38,MALERE!$A$27:$A$38,ÅRSTOT!$A40)+SUMIFS(TAKTEKKERE!D$27:D$38,TAKTEKKERE!$A$27:$A$38,ÅRSTOT!$A40) -> 409429.7 | E40: =SUMIFS(BETONG!E$27:E$38,BETONG!$A$27:$A$38,ÅRSTOT!$A40)+SUMIFS(TØMRERE!E$27:E$38,TØMRERE!$A$27:$A$38,ÅRSTOT!$A40)+SUMIFS(RØRLEGGERE!E$27:E$38,RØRLEGGERE!$A$27:$A$38,ÅRSTOT!$A40)+SUMIFS(MURERE!E$27:E$38,MURERE!$A$27:$A$38,ÅRSTOT!$A40)+SUMIFS('BLIKK OG VENTILASJON'!E$27:E$38,'BLIKK OG VENTILASJON'!$A$27:$A$38,ÅRSTOT!$A40)+SUMIFS(ISOLATØR!E$27:E$38,ISOLATØR!$A$27:$A$38,ÅRSTOT!$A40)+SUMIFS(MALERE!E$27:E$38,MALERE!$A$27:$A$38,ÅRSTOT!$A40)+SUMIFS(TAKTEKKERE!E$27:E$38,TAKTEKKERE!$A$27:$A$38,ÅRSTOT!$A40) -> 42187.66 | F40: 364.0498735 | G40: 271.4205903 | H40: 355.3969451 | I40: =SUMIFS(BETONG!I$27:I$38,BETONG!$A$27:$A$38,ÅRSTOT!$A40)+SUMIFS(TØMRERE!I$27:I$38,TØMRERE!$A$27:$A$38,ÅRSTOT!$A40)+SUMIFS(RØRLEGGERE!I$27:I$38,RØRLEGGERE!$A$27:$A$38,ÅRSTOT!$A40)+SUMIFS(MURERE!I$27:I$38,MURERE!$A$27:$A$38,ÅRSTOT!$A40)+SUMIFS('BLIKK OG VENTILASJON'!I$27:I$38,'BLIKK OG VENTILASJON'!$A$27:$A$38,ÅRSTOT!$A40)+SUMIFS(ISOLATØR!I$27:I$38,ISOLATØR!$A$27:$A$38,ÅRSTOT!$A40)+SUMIFS(MALERE!I$27:I$38,MALERE!$A$27:$A$38,ÅRSTOT!$A40)+SUMIFS(TAKTEKKERE!I$27:I$38,TAKTEKKERE!$A$27:$A$38,ÅRSTOT!$A40) -> 85436379.07 | J40: =SUMIFS(BETONG!J$27:J$38,BETONG!$A$27:$A$38,ÅRSTOT!$A40)+SUMIFS(TØMRERE!J$27:J$38,TØMRERE!$A$27:$A$38,ÅRSTOT!$A40)+SUMIFS(RØRLEGGERE!J$27:J$38,RØRLEGGERE!$A$27:$A$38,ÅRSTOT!$A40)+SUMIFS(MURERE!J$27:J$38,MURERE!$A$27:$A$38,ÅRSTOT!$A40)+SUMIFS('BLIKK OG VENTILASJON'!J$27:J$38,'BLIKK OG VENTILASJON'!$A$27:$A$38,ÅRSTOT!$A40)+SUMIFS(ISOLATØR!J$27:J$38,ISOLATØR!$A$27:$A$38,ÅRSTOT!$A40)+SUMIFS(MALERE!J$27:J$38,MALERE!$A$27:$A$38,ÅRSTOT!$A40)+SUMIFS(TAKTEKKERE!J$27:J$38,TAKTEKKERE!$A$27:$A$38,ÅRSTOT!$A40) -> 494715.99 | K40: 333.9879632 | L40: 0.7446061284 | M40: 0.06410105812
A41: Landet i alt | B41: =SUM(B28:B40) -> 429520299.6 | C41: =SUM(C28:C40) -> 41419784.35 | D41: =SUM(D28:D40) -> 1250935.47 | E41: =SUM(E28:E40) -> 185188.41 | F41: =IF(D41=0,0,B41/D41) -> 343.3592779 | G41: 223.6629406 | H41: 327.9244155 | I41: =SUM(I28:I40) -> 333684102.5 | J41: =SUM(J28:J40) -> 12042022.81 | K41: 310.770209 | L41: 0.2872063621 | M41: 0.05519900575
A44: ="MÅLESTATISTIKK FOR ALLE BYGGFAG - GJENNOMSNITT HELE ÅRET "&FORS!$A$14 -> MÅLESTATISTIKK FOR ALLE BYGGFAG - GJENNOMSNITT HELE ÅRET 2022
B46: Målesum i kroner | D46: Timer | F46: ="Fortjeneste hele "&FORS!$A$14-0 -> Fortjeneste hele 2022 | I46: =" Hele året "&FORS!$A$14-1 -> Hele året 2021 | L46: Endringer i %
B47: Innmålt m/ | C47: Innmålt m/ | D47: Innmålt m/ | E47: Innmålt m/ | F47: Innmålt m/ | G47: Innmålt m/ | H47: Gjennom- | I47: Innmålt m/ | J47: Innmålt m/ | K47: Gjen.snitt | L47: Innmålt m/ | M47: Gjen.snitt
B48: overskudd | C48: underskudd | D48: overskudd | E48: underskudd | F48: overskudd | G48: underskudd | H48: snitt | I48: overskudd | J48: underskudd | K48: fortjeneste | L48: overskudd | M48: fortjeneste
A49: Agder | B49: =SUMIFS(B$7:B$19,$A$7:$A$19,$A49)+SUMIFS(B$28:B$40,$A$28:$A$40,$A49) -> 9453235 | C49: =SUMIFS(C$7:C$19,$A$7:$A$19,$A49)+SUMIFS(C$28:C$40,$A$28:$A$40,$A49) -> 0 | D49: 28743.5 | E49: 0 | F49: =IF(D49=0,0,B49/D49) -> 328.88253 | G49: =IF(E49=0,0,C49/E49) -> 0 | H49: =IF(D49+E49=0,0,(B49+C49)/(D49+E49)) -> 328.88253 | I49: =SUMIFS(I$7:I$19,$A$7:$A$19,$A49)+SUMIFS(I$28:I$40,$A$28:$A$40,$A49) -> 24623176 | J49: 0 | K49: 300.4121111 | L49: =IF(I49=0,0,(B49-I49)/I49) -> -0.6160838472 | M49: =IF(K49=0,0,(H49-K49)/K49) -> 0.09477120883
A50: Bergen | B50: =SUMIFS(B$7:B$19,$A$7:$A$19,$A50)+SUMIFS(B$28:B$40,$A$28:$A$40,$A50) -> 40175423.16 | C50: 0 | D50: 122442.65 | E50: 0 | F50: 328.11625 | G50: 0 | H50: 328.11625 | I50: 49840794.05 | J50: 0 | K50: 292.315091 | L50: -0.1939248978 | M50: 0.1224745491
A51: Nordland | B51: 0 | C51: 0 | D51: 0 | E51: 0 | F51: =IF(D51=0,0,B51/D51) -> 0 | G51: =IF(E51=0,0,C51/E51) -> 0 | H51: =IF(D51+E51=0,0,(B51+C51)/(D51+E51)) -> 0 | I51: 0 | J51: 424816.48 | K51: 201.7651294 | L51: 0 | M51: -1
A52: Drammen - Bærum | B52: 0 | C52: 0 | D52: 0 | E52: 0 | F52: 0 | G52: 0 | H52: 0 | I52: 0 | J52: 0 | K52: 0 | L52: 0 | M52: 0
A53: Haugesund | B53: 0 | C53: 0 | D53: 0 | E53: 0 | F53: 0 | G53: 0 | H53: 0 | I53: 11822399 | J53: 0 | K53: 283.130438 | L53: -1 | M53: -1
A54: Hamar og Omegn | B54: 44272004.17 | C54: 2741147.65 | D54: 137812.09 | E54: 13095.2 | F54: 321.2490586 | G54: 209.3246113 | H54: 311.5366515 | I54: 25457334 | J54: 1969555 | K54: 314.4454758 | L54: 0.7390667919 | M54: -0.009250647539
A55: Sandnes | B55: 28044831.08 | C55: 0 | D55: 81309.4 | E55: 0 | F55: 344.9149924 | G55: 0 | H55: 344.9149924 | I55: 59710459.76 | J55: 0 | K55: 329.7293488 | L55: -0.5303196259 | M55: 0.04605487377
A56: Stavanger | B56: 10983107.81 | C56: 0 | D56: 34716 | E56: 0 | F56: 316.3701985 | G56: 0 | H56: 316.3701985 | I56: 8510553.9 | J56: 0 | K56: 300.7657765 | L56: 0.2905279655 | M56: 0.05188230557
A57: Telemark | B57: 47056690.93 | C57: 800000 | D57: 137516.5 | E57: 3400 | F57: 342.1894168 | G57: 235.2941176 | H57: 339.6102723 | I57: 33603132.64 | J57: 2625500 | K57: 310.8104852 | L57: 0.4003661931 | M57: 0.09266028154
A58: Trondheim | B58: 315720222.2 | C58: 34936669.57 | D58: 955722.91 | E58: 165240.2 | F58: 330.3470273 | G58: 211.4296011 | H58: 312.8175126 | I58: 306854940.5 | J58: 29868636.85 | K58: 297.3064975 | L58: 0.02889079017 | M58: 0.05217179994
A59: Vestfold | B59: 2957652 | C59: 0 | D59: 8129 | E59: 0 | F59: =IF(D59=0,0,B59/D59) -> 363.8395867 | G59: =IF(E59=0,0,C59/E59) -> 0 | H59: 363.8395867 | I59: 6292642.7 | J59: 0 | K59: 433.1193922 | L59: -0.5299825302 | M59: -0.1599554459
A60: Østfold | B60: 16626881 | C60: 3087579 | D60: 53251.5 | E60: 16480 | F60: 312.2331014 | G60: 187.3530947 | H60: 282.7195744 | I60: 20183497.5 | J60: 3845238 | K60: 299.0738261 | L60: -0.1762140828 | M60: -0.05468299217
A61: Oslo | B61: 293264088.5 | C61: 13012555.22 | D61: 825540.2 | E61: 51192.66 | F61: 355.2390162 | G61: 254.1879094 | H61: =IF(D61+E61=0,0,(B61+C61)/(D61+E61)) -> 349.3386157 | I61: 231440301.2 | J61: 5017649.06 | K61: 333.1310107 | L61: 0.2671262826 | M61: 0.04865234545
A62: Landet i alt | B62: =SUM(B49:B61) -> 808554135.8 | C62: =SUM(C49:C61) -> 54577951.44 | D62: =SUM(D49:D61) -> 2385183.75 | E62: =SUM(E49:E61) -> 249408.06 | F62: =IF(D62=0,0,B62/D62) -> 338.990292 | G62: 218.8299425 | H62: =IF(D62+E62=0,0,(B62+C62)/(D62+E62)) -> 327.6151106 | I62: =SUM(I49:I61) -> 778339231.2 | J62: =SUM(J49:J61) -> 43751395.39 | K62: 310.3264946 | L62: 0.03881971175 | M62: 0.05571105378

Sheet BETONG
A2: ="MÅLESTATISTIKK FOR BETONGFAGENE - 1. HALVÅR "&FORS!$A$14 -> MÅLESTATISTIKK FOR BETONGFAGENE - 1. HALVÅR 2022
B4: Målesum i kroner | D4: Timer | F4: ="Fortjeneste 1. halvår "&FORS!$A$14-0 -> Fortjeneste 1. halvår 2022 | I4: =" 1. halvår "&FORS!$A$14-1 -> 1. halvår 2021 | L4: Endringer i %
B5: Innmålt m/ | C5: Innmålt m/ | D5: Innmålt m/ | E5: Innmålt m/ | F5: Innmålt m/ | G5: Innmålt m/ | H5: Gjennom- | I5: Innmålt m/ | J5: Innmålt m/ | K5: Gjen.snitt | L5: Innmålt m/ | M5: Gjen.snitt
B6: overskudd | C6: underskudd | D6: overskudd | E6: underskudd | F6: overskudd | G6: underskudd | H6: snitt | I6: overskudd | J6: underskudd | K6: fortjeneste | L6: overskudd | M6: fortjeneste
A7: Agder | B7: 1205324 | D7: 3580 | F7: =IF(D7=0,0,B7/D7) -> 336.6826816 | G7: =IF(E7=0,0,C7/E7) -> 0 | H7: =IF(D7+E7=0,0,(B7+C7)/(D7+E7)) -> 336.6826816 | I7: 6471377 | K7: 309.41 | L7: =IF(I7=0,0,(B7-I7)/I7) -> -0.813745359 | M7: =IF(K7=0,0,(H7-K7)/K7) -> 0.08814415036
A8: Bergen | B8: 14134436.31 | D8: 41694 | F8: =IF(D8=0,0,B8/D8) -> 339.0040848 | G8: =IF(E8=0,0,C8/E8) -> 0 | H8: =IF(D8+E8=0,0,(B8+C8)/(D8+E8)) -> 339.0040848 | I8: 30743693 | K8: 297.62 | L8: =IF(I8=0,0,(B8-I8)/I8) -> -0.5402492371 | M8: =IF(K8=0,0,(H8-K8)/K8) -> 0.1390500798
A9: Drammen - Bærum | F9: =IF(D9=0,0,B9/D9) -> 0 | G9: =IF(E9=0,0,C9/E9) -> 0 | H9: =IF(D9+E9=0,0,(B9+C9)/(D9+E9)) -> 0 | K9: 0 | L9: =IF(I9=0,0,(B9-I9)/I9) -> 0 | M9: =IF(K9=0,0,(H9-K9)/K9) -> 0
A10: Haugesund | F10: 0 | G10: 0 | H10: 0 | I10: 7139951 | K10: 285.35 | L10: -1 | M10: -1
A11: Hamar og Omegn | B11: 12510118.28 | D11: 33384.08 | F11: 374.7330548 | G11: 0 | H11: 374.7330548 | I11: 5936813 | K11: 315.18 | L11: 1.107211105 | M11: 0.1889493458
A12: Sandnes | B12: 16119606.69 | D12: 47026.92 | F12: 342.7740258 | G12: 0 | H12: 342.7740258 | I12: 35209187.55 | K12: 329.97 | L12: -0.5421761247 | M12: 0.03880360582
A13: Stavanger | B13: 321004.19 | D13: 1128 | F13: 284.5781826 | G13: 0 | H13: 284.5781826 | K13: 0 | L13: 0 | M13: 0
A14: Telemark | B14: 5083066 | D14: 14337 | F14: 354.5418149 | G14: 0 | H14: 354.5418149 | I14: 4634581 | K14: 306.34 | L14: 0.09676926566 | M14: 0.1573474404
A15: Trondheim | B15: 36645770.99 | C15: 0 | D15: 113997.52 | E15: 0 | F15: 321.4611247 | G15: 0 | H15: 321.4611247 | I15: 41121339.95 | K15: 349.17 | L15: =IF(I15=0,0,(B15-I15)/I15) -> -0.108838111 | M15: =IF(K15=0,0,(H15-K15)/K15) -> -0.07935640324
A16: Vestfold | F16: 0 | G16: 0 | H16: 0 | K16: 0 | L16: 0 | M16: 0
A17: Østfold | B17: 8326456 | D17: 25742.5 | F17: 323.4517238 | G17: 0 | H17: 323.4517238 | I17: 3654340 | K17: 310.52 | L17: =IF(I17=0,0,(B17-I17)/I17) -> 1.278511578 | M17: =IF(K17=0,0,(H17-K17)/K17) -> 0.04164538131
A18: Oslo | B18: 28754074 | D18: 76420 | F18: 376.2637268 | G18: 0 | H18: 376.2637268 | I18: 31092369 | J18: 1846219 | K18: 349.87 | L18: -0.07520478739 | M18: 0.075438668
A19: Landet i alt | B19: =SUM(B7:B18) -> 123099856.5 | C19: =SUM(C7:C18) -> 0 | D19: =SUM(D7:D18) -> 357310.02 | E19: =SUM(E7:E18) -> 0 | F19: =IF(D19=0,0,B19/D19) -> 344.5183442 | G19: =IF(E19=0,0,C19/E19) -> 0 | H19: =IF(D19+E19=0,0,(B19+C19)/(D19+E19)) -> 344.5183442 | I19: =SUM(I7:I18) -> 166003651.5 | J19: =SUM(J7:J18) -> 1846219 | K19: 323.1856118 | L19: =IF(I19=0,0,(B19-I19)/I19) -> -0.2584509115 | M19: =IF(K19=0,0,(H19-K19)/K19) -> 0.0660076799
A22: ="MÅLESTATISTIKK FOR BETONGFAGENE - 2. HALVÅR "&FORS!$A$14 -> MÅLESTATISTIKK FOR BETONGFAGENE - 2. HALVÅR 2022
B24: Målesum i kroner | D24: Timer | F24: ="Fortjeneste 2. halvår "&FORS!$A$14-0 -> Fortjeneste 2. halvår 2022 | I24: =" 2. halvår "&FORS!$A$14-1 -> 2. halvår 2021 | L24: Endringer i %
B25: Innmålt m/ | C25: Innmålt m/ | D25: Innmålt m/ | E25: Innmålt m/ | F25: Innmålt m/ | G25: Innmålt m/ | H25: Gjennom- | I25: Innmålt m/ | J25: Innmålt m/ | K25: Gjen.snitt | L25: Innmålt m/ | M25: Gjen.snitt
B26: overskudd | C26: underskudd | D26: overskudd | E26: underskudd | F26: overskudd | G26: underskudd | H26: snitt | I26: overskudd | J26: underskudd | K26: fortjeneste | L26: overskudd | M26: fortjeneste
A27: Agder | B27: 453586 | D27: 1250.5 | F27: =IF(D27=0,0,B27/D27) -> 362.7237105 | G27: =IF(E27=0,0,C27/E27) -> 0 | H27: =IF(D27+E27=0,0,(B27+C27)/(D27+E27)) -> 362.7237105 | I27: 2469868 | K27: 325.11 | L27: =IF(I27=0,0,(B27-I27)/I27) -> -0.8163521289 | M27: =IF(K27=0,0,(H27-K27)/K27) -> 0.1156953355
A28: Bergen | B28: 24003713.18 | D28: 72936.99 | F28: 329.1020534 | G28: 0 | H28: =IF(D28+E28=0,0,(B28+C28)/(D28+E28)) -> 329.1020534 | I28: 16738539.32 | K28: 317.22 | L28: =IF(I28=0,0,(B28-I28)/I28) -> 0.4340387008 | M28: =IF(K28=0,0,(H28-K28)/K28) -> 0.03745682312
A29: Drammen - Bærum | F29: 0 | G29: 0 | H29: 0 | K29: 0 | L29: 0 | M29: 0
A30: Haugesund | F30: 0 | G30: 0 | H30: 0 | I30: 4682448 | K30: 298.34 | L30: -1 | M30: -1
A31: Hamar og Omegn | B31: 8456888.71 | C31: 2289833.97 | D31: 28040.44 | E31: 10773 | F31: 301.5961486 | G31: 212.5530465 | H31: 276.8814792 | I31: 3774159 | J31: 1047893 | K31: 283.98 | L31: 1.240734614 | M31: -0.02499655187
A32: Sandnes | B32: 11925224.39 | D32: 34282.48 | F32: 347.8518587 | G32: 0 | H32: 347.8518587 | I32: 22178853.21 | K32: 334.91 | L32: -0.4623155545 | M32: 0.03864279578
A33: Stavanger | B33: 450684.48 | D33: 1566.5 | F33: 287.7015512 | G33: =IF(E33=0,0,D33/E33) -> 0 | H33: 287.7015512 | K33: 0 | L33: 0 | M33: 0
A34: Telemark | B34: 10311429 | D34: 28328 | F34: 364.0013061 | G34: 0 | H34: 364.0013061 | I34: 1742899 | K34: 295.96 | L34: 4.916251601 | M34: 0.2299003451
A35: Trondheim | B35: 60329404.18 | C35: 4046901.37 | D35: 179308.83 | E35: 20468.87 | F35: 336.4552888 | G35: 197.7100529 | H35: 322.2396972 | I35: 40566999.29 | K35: 349.48 | L35: 0.4871547128 | M35: -0.07794524101
A36: Vestfold | F36: 0 | G36: 0 | H36: 0 | K36: 0 | L36: 0 | M36: 0
A37: Østfold | B37: 279173 | C37: 1787580 | D37: 855 | E37: 10831 | F37: 326.5181287 | G37: 165.0429323 | H37: 176.8571795 | I37: 2947087 | J37: 53500 | K37: 352.43 | L37: -0.9052715444 | M37: -0.4981778523
A38: Oslo | B38: 37988863 | C38: 2972328 | D38: 98919 | E38: 11881 | F38: 384.0401035 | G38: 250.1749011 | H38: 369.6858394 | I38: 15855206 | K38: 356.31 | L38: 1.395986719 | M38: 0.03753989321
A39: Landet i alt | B39: =SUM(B27:B38) -> 154198965.9 | C39: =SUM(C27:C38) -> 11096643.34 | D39: =SUM(D27:D38) -> 445487.74 | E39: =SUM(E27:E38) -> 53953.87 | F39: =IF(D39=0,0,B39/D39) -> 346.1351505 | G39: =IF(E39=0,0,C39/E39) -> 205.6690899 | H39: =IF(D39+E39=0,0,(B39+C39)/(D39+E39)) -> 330.960829 | I39: =SUM(I27:I38) -> 110956058.8 | J39: =SUM(J27:J38) -> 1101393 | K39: 330.6369381 | L39: =IF(I39=0,0,(B39-I39)/I39) -> 0.3897300209 | M39: =IF(K39=0,0,(H39-K39)/K39) -> 0.0009795967277
A42: ="MÅLESTATISTIKK FOR BETONGFAGENE - GJENNOMSNITT HELE ÅRET "&FORS!$A$14 -> MÅLESTATISTIKK FOR BETONGFAGENE - GJENNOMSNITT HELE ÅRET 2022
B44: Målesum i kroner | D44: Timer | F44: ="Fortjeneste hele "&FORS!$A$14-0 -> Fortjeneste hele 2022 | I44: =" Hele året "&FORS!$A$14-1 -> Hele året 2021 | L44: Endringer i %
B45: Innmålt m/ | C45: Innmålt m/ | D45: Innmålt m/ | E45: Innmålt m/ | F45: Innmålt m/ | G45: Innmålt m/ | H45: Gjennom- | I45: Innmålt m/ | J45: Innmålt m/ | K45: Gjen.snitt | L45: Innmålt m/ | M45: Gjen.snitt
B46: overskudd | C46: underskudd | D46: overskudd | E46: underskudd | F46: overskudd | G46: underskudd | H46: snitt | I46: overskudd | J46: underskudd | K46: fortjeneste | L46: overskudd | M46: fortjeneste
A47: Agder | B47: =SUMIFS(B$7:B$19,$A$7:$A$19,$A47)+SUMIFS(B$27:B$39,$A$27:$A$39,$A47) -> 1658910 | C47: =SUMIFS(C$7:C$19,$A$7:$A$19,$A47)+SUMIFS(C$27:C$39,$A$27:$A$39,$A47) -> 0 | D47: 4830.5 | E47: 0 | F47: =IF(D47=0,0,B47/D47) -> 343.4240762 | G47: =IF(E47=0,0,C27/E47) -> 0 | H47: =IF(D47+E47=0,0,(B47+C47)/(D47+E47)) -> 343.4240762 | I47: =SUMIFS(I$7:I$19,$A$7:$A$19,$A47)+SUMIFS(I$27:I$39,$A$27:$A$39,$A47) -> 8941245 | J47: =SUMIFS(J$7:J$19,$A$7:$A$19,$A47)+SUMIFS(J$27:J$39,$A$27:$A$39,$A47) -> 0 | K47: 313.6 | L47: =IF(I47=0,0,(B47-I47)/I47) -> -0.8144654352 | M47: =IF(K47=0,0,(H47-K47)/K47) -> 0.09510228375
A48: Bergen | B48: =SUMIFS($B$7:$B$19,$A$7:$A$19,A48)+SUMIFS($B$27:$B$39,$A$27:$A$39,A48) -> 38138149.49 | C48: 0 | D48: 114630.99 | E48: 0 | F48: =IF(D48=0,0,B48/D48) -> 332.7036562 | G48: =IF(E48=0,0,C48/E48) -> 0 | H48: =IF(D48+E48=0,0,(B48+C48)/(D48+E48)) -> 332.7036562 | I48: =SUMIFS(I$7:I$19,$A$7:$A$19,$A48)+SUMIFS(I$27:I$39,$A$27:$A$39,$A48) -> 47482232.32 | J48: 0 | K48: 304.24 | L48: =IF(I48=0,0,(B48-I48)/I48) -> -0.1967911443 | M48: =IF(K48=0,0,(H48-K48)/K48) -> 0.09355658765
A49: Drammen - Bærum | B49: 0 | C49: 0 | D49: 0 | E49: 0 | F49: 0 | G49: 0 | H49: 0 | I49: 0 | J49: 0 | K49: 0 | L49: 0 | M49: 0
A50: Haugesund | B50: 0 | C50: 0 | D50: 0 | E50: 0 | F50: 0 | G50: 0 | H50: 0 | I50: 11822399 | J50: 0 | K50: 290.36 | L50: -1 | M50: -1
A51: Hamar og Omegn | B51: 20967006.99 | C51: 2289833.97 | D51: 61424.52 | E51: 10773 | F51: 341.3458826 | G51: 212.5530465 | H51: 322.1279756 | I51: 9710972 | J51: 1047893 | K51: 300.39 | L51: 1.159104875 | M51: 0.07236584303
A52: Sandnes | B52: 28044831.08 | C52: 0 | D52: 81309.4 | E52: 0 | F52: =IF(D52=0,0,B52/D52) -> 344.9149924 | G52: 0 | H52: =IF(D52+E52=0,0,(B52+C52)/(D52+E52)) -> 344.9149924 | I52: 57388040.76 | J52: 0 | K52: 331.88 | L52: -0.511312275 | M52: 0.03927622141
A53: Stavanger | B53: 771688.67 | C53: 0 | D53: 2694.5 | E53: 0 | F53: 286.3940137 | G53: 0 | H53: 286.3940137 | I53: 0 | J53: 0 | K53: 0 | L53: 0 | M53: 0
A54: Telemark | B54: 15394495 | C54: 0 | D54: 42665 | E54: 0 | F54: 360.8225712 | G54: 0 | H54: 360.8225712 | I54: 6377480 | J54: 0 | K54: 303.43 | L54: 1.413883697 | M54: 0.1891460014
A55: Trondheim | B55: 96975175.17 | C55: 4046901.37 | D55: 293306.35 | E55: 20468.87 | F55: 330.6276021 | G55: 197.7100529 | H55: 321.9568344 | I55: 81688339.24 | J55: 0 | K55: 349.32 | L55: 0.1871360842 | M55: -0.07833266236
A56: Vestfold | B56: 0 | C56: 0 | D56: 0 | E56: 0 | F56: =IF(D56=0,0,B56/D56) -> 0 | G56: 0 | H56: 0 | I56: 0 | J56: 0 | K56: 0 | L56: 0 | M56: 0
A57: Østfold | B57: 8605629 | C57: 1787580 | D57: 26597.5 | E57: =SUMIFS(E$7:E$19,$A$7:$A$19,$A57)+SUMIFS(E$27:E$39,$A$27:$A$39,$A57) -> 10831 | F57: =IF(D57=0,0,B57/D57) -> 323.5502961 | G57: 165.0429323 | H57: 277.6816864 | I57: 6601427 | J57: 53500 | K57: 328.11 | L57: 0.3036013274 | M57: -0.153693315
A58: Oslo | B58: 66742937 | C58: 2972328 | D58: 175339 | E58: 11881 | F58: 380.6508364 | G58: 250.1749011 | H58: 372.3708204 | I58: 46947575 | J58: 1846219 | K58: 351.94 | L58: 0.4216482321 | M58: 0.05805199871
A59: Landet i alt | B59: =SUM(B47:B58) -> 277298822.4 | C59: =SUM(C47:C58) -> 11096643.34 | D59: =SUM(D47:D58) -> 802797.76 | E59: =SUM(E47:E58) -> 53953.87 | F59: =IF(D59=0,0,B59/D59) -> 345.4155408 | G59: =IF(E59=0,0,C59/E59) -> 205.6690899 | H59: =IF(D59+E59=0,0,(B59+C59)/(D59+E59)) -> 336.6150185 | I59: =SUM(I47:I58) -> 276959710.3 | J59: =SUM(J47:J58) -> 2947612 | K59: 330.15 | L59: =IF(I59=0,0,(B59-I59)/I59) -> 0.001224409426 | M59: =IF(K59=0,0,(H59-K59)/K59) -> 0.01958206406

Sheet TØMRERE
A2: ="MÅLESTATISTIKK FOR TØMRERE - 1. HALVÅR "&FORS!$A$14 -> MÅLESTATISTIKK FOR TØMRERE - 1. HALVÅR 2022
B4: Målesum i kroner | D4: Timer | F4: ="Fortjeneste 1. halvår "&FORS!$A$14-0 -> Fortjeneste 1. halvår 2022 | I4: =" 1. halvår "&FORS!$A$14-1 -> 1. halvår 2021 | L4: Endringer i %
B5: Innmålt m/ | C5: Innmålt m/ | D5: Innmålt m/ | E5: Innmålt m/ | F5: Innmålt m/ | G5: Innmålt m/ | H5: Gjennom- | I5: Innmålt m/ | J5: Innmålt m/ | K5: Gjen.snitt | L5: Innmålt m/ | M5: Gjen.snitt
B6: overskudd | C6: underskudd | D6: overskudd | E6: underskudd | F6: overskudd | G6: underskudd | H6: snitt | I6: overskudd | J6: underskudd | K6: fortjeneste | L6: overskudd | M6: fortjeneste
A7: Agder | B7: 4714613 | D7: 14967 | F7: =IF(D7=0,0,B7/D7) -> 315.0005345 | G7: =IF(E7=0,0,C7/E7) -> 0 | H7: =IF(D7+E7=0,0,(B7+C7)/(D7+E7)) -> 315.0005345 | I7: 7188511 | K7: 306.67 | L7: =IF(I7=0,0,(B7-I7)/I7) -> -0.3441460965 | M7: =IF(K7=0,0,(H7-K7)/K7) -> 0.02716449118
A8: Bergen | F8: =IF(D8=0,0,B8/D8) -> 0 | G8: 0 | H8: =IF(D8+E8=0,0,(B8+C8)/(D8+E8)) -> 0 | K8: 0 | L8: =IF(I8=0,0,(B8-I8)/I8) -> 0 | M8: =IF(K8=0,0,(H8-K8)/K8) -> 0
A9: Drammen - Bærum | F9: 0 | G9: 0 | H9: 0 | K9: 0 | L9: 0 | M9: 0
A10: Haugesund | F10: 0 | G10: 0 | H10: 0 | K10: 0 | L10: 0 | M10: 0
A11: Hamar og Omegn | B11: 11229776.84 | D11: 39113.1 | F11: 287.1103758 | G11: 0 | H11: 287.1103758 | I11: 3010764 | J11: 307983 | K11: 305.65 | L11: 2.729876151 | M11: -0.06065638538
A12: Sandnes | F12: 0 | G12: 0 | H12: 0 | I12: 2322419 | K12: 288.33 | L12: -1 | M12: -1
A13: Stavanger | F13: 0 | G13: 0 | H13: 0 | K13: 0 | L13: 0 | M13: 0
A14: Telemark | B14: 14552743 | D14: 43968 | F14: 330.9848754 | G14: 0 | H14: 330.9848754 | I14: 8218301 | J14: 2517000 | K14: 310.31 | L14: 0.7707726938 | M14: 0.06662651982
A15: Trondheim | B15: 63068793.82 | C15: 7546396.12 | D15: 192570.94 | E15: 34525.14 | F15: 327.5094042 | G15: 218.5768434 | H15: 310.9485199 | I15: 82817344 | J15: 7906794 | K15: 304.0159983 | L15: -0.2384591104 | M15: 0.02280314733
A16: Vestfold | B16: 790021 | D16: 2810.5 | F16: 281.0962462 | G16: 0 | H16: 281.0962462 | I16: 4819741.7 | K16: 330.8 | L16: -0.8360864442 | M16: -0.1502531856
A17: Østfold | B17: 5843692 | D17: 20254.5 | F17: 288.5132687 | G17: 0 | H17: 288.5132687 | I17: 9855768 | J17: 2949901 | K17: 275.75 | L17: -0.4070789816 | M17: 0.04628565243
A18: Oslo | B18: 47675313.69 | D18: 136103.4 | E18: 0 | F18: 350.2874556 | G18: 0 | H18: 350.2874556 | I18: 51602400.83 | J18: 0 | K18: 336.26 | L18: -0.07610279903 | M18: =IF(K18=0,0,(H18-K18)/K18) -> 0.04171609957
A19: Landet i alt | B19: =SUM(B7:B18) -> 147874953.3 | C19: =SUM(C7:C18) -> 7546396.12 | D19: =SUM(D7:D18) -> 449787.44 | E19: =SUM(E7:E18) -> 34525.14 | F19: =IF(D19=0,0,B19/D19) -> 328.766302 | G19: =IF(E19=0,0,C19/E19) -> 218.5768434 | H19: =IF(D19+E19=0,0,(B19+C19)/(D19+E19)) -> 320.9112377 | I19: =SUM(I7:I18) -> 169835249.5 | J19: =SUM(J7:J18) -> 13681678 | K19: 309.8401146 | L19: =IF(I19=0,0,(B19-I19)/I19) -> -0.1293035235 | M19: =IF(K19=0,0,(H19-K19)/K19) -> 0.03573172935
A22: ="MÅLESTATISTIKK FOR TØMRERE - 2. HALVÅR "&FORS!$A$14 -> MÅLESTATISTIKK FOR TØMRERE - 2. HALVÅR 2022
B24: Målesum i kroner | D24: Timer | F24: ="Fortjeneste 2. halvår "&FORS!$A$14-0 -> Fortjeneste 2. halvår 2022 | I24: =" 2. halvår "&FORS!$A$14-1 -> 2. halvår 2021 | L24: Endringer i %
B25: Innmålt m/ | C25: Innmålt m/ | D25: Innmålt m/ | E25: Innmålt m/ | F25: Innmålt m/ | G25: Innmålt m/ | H25: Gjennom- | I25: Innmålt m/ | J25: Innmålt m/ | K25: Gjen.snitt | L25: Innmålt m/ | M25: Gjen.snitt
B26: overskudd | C26: underskudd | D26: overskudd | E26: underskudd | F26: overskudd | G26: underskudd | H26: snitt | I26: overskudd | J26: underskudd | K26: fortjeneste | L26: overskudd | M26: fortjeneste
A27: Agder | B27: 3079712 | D27: 8946 | F27: =IF(D27=0,0,B27/D27) -> 344.2557568 | G27: 0 | H27: =IF(D27+E27=0,0,(B27+C27)/(D27+E27)) -> 344.2557568 | I27: 8493420 | K27: 311.94 | L27: =IF(I27=0,0,(B27-I27)/I27) -> -0.6374002463 | M27: =IF(K27=0,0,(H27-K27)/K27) -> 0.1035960658
A28: Bergen | F28: 0 | G28: 0 | H28: =IF(D28+E28=0,0,(B28+C28)/(D28+E28)) -> 0 | K28: 0 | L28: =IF(I28=0,0,(B28-I28)/I28) -> 0 | M28: =IF(K28=0,0,(H28-K28)/K28) -> 0
A29: Drammen - Bærum | F29: 0 | G29: 0 | H29: 0 | K29: 0 | L29: 0 | M29: 0
A30: Haugesund | F30: 0 | G30: 0 | H30: 0 | K30: 0 | L30: 0 | M30: 0
A31: Hamar og Omegn | B31: 6106453.82 | C31: 307983 | D31: 20850.8 | E31: 1501.5 | F31: 292.864246 | G31: 205.1168831 | H31: 286.9698787 | I31: 7964273 | J31: 434567 | K31: 324.42 | L31: -0.2332691484 | M31: -0.1154371533
A32: Sandnes | F32: 0 | G32: 0 | H32: 0 | L32: 0 | M32: 0
A33: Stavanger | F33: 0 | G33: 0 | H33: 0 | K33: 0 | L33: 0 | M33: 0
A34: Telemark | B34: 14294306 | C34: 800000 | D34: 43272 | E34: 3400 | F34: 330.3361527 | G34: 235.2941176 | H34: 323.4124529 | I34: 16307650 | K34: 294.29 | L34: -0.1234600939 | M34: 0.09895835014
A35: Trondheim | B35: 75283462.2 | C35: 3929598.7 | D35: 227287.98 | E35: 18807.29 | F35: 331.2250045 | G35: 208.9401876 | H35: 321.8796562 | I35: 73733703.87 | J35: 2477617.26 | K35: 324.14 | L35: 0.02101831657 | M35: -0.006973356575
A36: Vestfold | B36: 2167631 | D36: 5318.5 | F36: 407.5643509 | G36: 0 | H36: 407.5643509 | I36: 1472901 | K36: 498.36 | L36: 0.4716746068 | M36: -0.1821888778
A37: Østfold | B37: 1087323 | C37: 1299999 | D37: 3331 | E37: 5649 | F37: 326.4253978 | G37: 230.1290494 | H37: 265.8487751 | I37: 2682125.5 | J37: 841837 | K37: 351.22 | L37: -0.5946039811 | M37: -0.2430705112
A38: Oslo | B38: 68377351.55 | C38: 7110348.83 | D38: 190751.3 | E38: 24511.96 | F38: 358.463358 | G38: 290.0767148 | H38: 350.6761924 | I38: 31635079.61 | K38: 334.81 | L38: 1.161440793 | M38: 0.04738864549
A39: Landet i alt | B39: =SUM(B27:B38) -> 170396239.6 | C39: =SUM(C27:C38) -> 13447929.53 | D39: =SUM(D27:D38) -> 499757.58 | E39: =SUM(E27:E38) -> 53869.75 | F39: =IF(D39=0,0,B39/D39) -> 340.9577891 | G39: =IF(E39=0,0,C39/E39) -> 249.6378678 | H39: =IF(D39+E39=0,0,(B39+C39)/(D39+E39)) -> 332.0720621 | I39: =SUM(I27:I38) -> 142289153 | J39: =SUM(J27:J38) -> 3754021.26 | K39: 306.3275267 | L39: 0.1975349913 | M39: 0.08404251362
A42: ="MÅLESTATISTIKK FOR TØMRERE - GJENNOMSNITT HELE ÅRET "&FORS!$A$14 -> MÅLESTATISTIKK FOR TØMRERE - GJENNOMSNITT HELE ÅRET 2022
B44: Målesum i kroner | D44: Timer | F44: ="Fortjeneste hele "&FORS!$A$14-0 -> Fortjeneste hele 2022 | I44: =" Hele året "&FORS!$A$14-1 -> Hele året 2021 | L44: Endringer i %
B45: Innmålt m/ | C45: Innmålt m/ | D45: Innmålt m/ | E45: Innmålt m/ | F45: Innmålt m/ | G45: Innmålt m/ | H45: Gjennom- | I45: Innmålt m/ | J45: Innmålt m/ | K45: Gjen.snitt | L45: Innmålt m/ | M45: Gjen.snitt
B46: overskudd | C46: underskudd | D46: overskudd | E46: underskudd | F46: overskudd | G46: underskudd | H46: snitt | I46: overskudd | J46: underskudd | K46: fortjeneste | L46: overskudd | M46: fortjeneste
A47: Agder | B47: =SUMIFS(B$7:B$19,$A$7:$A$19,$A47)+SUMIFS(B$27:B$39,$A$27:$A$39,$A47) -> 7794325 | C47: =SUMIFS(C$7:C$19,$A$7:$A$19,$A47)+SUMIFS(C$27:C$39,$A$27:$A$39,$A47) -> 0 | D47: 23913 | E47: 0 | F47: =IF(D47=0,0,B47/D47) -> 325.9450926 | G47: =IF(E47=0,0,C27/E47) -> 0 | H47: =IF(D47+E47=0,0,(B47+C47)/(D47+E47)) -> 325.9450926 | I47: =SUMIFS(I$7:I$19,$A$7:$A$19,$A47)+SUMIFS(I$27:I$39,$A$27:$A$39,$A47) -> 15681931 | J47: =SUMIFS(J$7:J$19,$A$7:$A$19,$A47)+SUMIFS(J$27:J$39,$A$27:$A$39,$A47) -> 0 | K47: 309.6 | L47: =IF(I47=0,0,(B47-I47)/I47) -> -0.5029741554 | M47: =IF(K47=0,0,(H47-K47)/K47) -> 0.05279422683
A48: Bergen | B48: =SUMIFS($B$7:$B$19,$A$7:$A$19,A48)+SUMIFS($B$27:$B$39,$A$27:$A$39,A48) -> 0 | C48: 0 | D48: 0 | E48: 0 | F48: =IF(D48=0,0,B48/D48) -> 0 | G48: 0 | H48: =IF(D48+E48=0,0,(B48+C48)/(D48+E48)) -> 0 | I48: =SUMIFS(I$7:I$19,$A$7:$A$19,$A48)+SUMIFS(I$27:I$39,$A$27:$A$39,$A48) -> 0 | J48: 0 | K48: 0 | L48: =IF(I48=0,0,(B48-I48)/I48) -> 0 | M48: =IF(K48=0,0,(H48-K48)/K48) -> 0
A49: Drammen - Bærum | B49: 0 | C49: 0 | D49: 0 | E49: 0 | F49: 0 | G49: 0 | H49: 0 | I49: 0 | J49: 0 | K49: 0 | L49: 0 | M49: 0
A50: Haugesund | B50: 0 | C50: 0 | D50: 0 | E50: 0 | F50: 0 | G50: 0 | H50: 0 | I50: 0 | J50: 0 | K50: 0 | L50: 0 | M50: 0
A51: Hamar og Omegn | B51: 17336230.66 | C51: 307983 | D51: 59963.9 | E51: 1501.5 | F51: 289.1111262 | G51: 205.1168831 | H51: 287.0592831 | I51: 10975037 | J51: 742550 | K51: 318.87 | L51: 0.5796056688 | M51: -0.09976077051
A52: Sandnes | B52: 0 | C52: 0 | D52: 0 | E52: 0 | F52: =IF(D52=0,0,B52/D52) -> 0 | G52: 0 | H52: =IF(D52+E52=0,0,(B52+C52)/(D52+E52)) -> 0 | I52: 2322419 | J52: 0 | K52: 288.33 | L52: -1 | M52: -1
A53: Stavanger | B53: 0 | C53: 0 | D53: 0 | E53: 0 | F53: 0 | G53: 0 | H53: 0 | I53: 0 | J53: 0 | K53: 0 | L53: 0 | M53: 0
A54: Telemark | B54: 28847049 | C54: 800000 | D54: 87240 | E54: 3400 | F54: 330.6631018 | G54: 235.2941176 | H54: 327.0857127 | I54: 24525951 | J54: 2517000 | K54: 300.45 | L54: 0.1761847278 | M54: 0.08865272994
A55: Trondheim | B55: 138352256 | C55: 11475994.82 | D55: 419858.92 | E55: 53332.43 | F55: 329.520821 | G55: 215.1785475 | H55: 316.633537 | I55: 156551047.9 | J55: 10384411.26 | K55: 310.5 | L55: -0.1162482915 | M55: 0.01975374243
A56: Vestfold | B56: 2957652 | C56: 0 | D56: 8129 | E56: 0 | F56: =IF(D56=0,0,B56/D56) -> 363.8395867 | G56: 0 | H56: 363.8395867 | I56: 6292642.7 | J56: 0 | K56: 359.06 | L56: -0.5299825302 | M56: 0.01331138714
A57: Østfold | B57: 6931015 | C57: 1299999 | D57: 23585.5 | E57: =SUMIFS(E$7:E$19,$A$7:$A$19,$A57)+SUMIFS(E$27:E$39,$A$27:$A$39,$A57) -> 5649 | F57: =IF(D57=0,0,B57/D57) -> 293.8676305 | G57: 230.1290494 | H57: 281.5513862 | I57: 12537893.5 | J57: 3791738 | K57: 289.16 | L57: -0.4471946185 | M57: -0.02631281573
A58: Oslo | B58: 116052665.2 | C58: 7110348.83 | D58: 326854.7 | E58: 24511.96 | F58: 355.0588847 | G58: 290.0767148 | H58: 350.5256135 | I58: 83237480.44 | J58: 0 | K58: 335.71 | L58: 0.3942356812 | M58: 0.04413217816
A59: Landet i alt | B59: =SUM(B47:B58) -> 318271192.9 | C59: =SUM(C47:C58) -> 20994325.65 | D59: =SUM(D47:D58) -> 949545.02 | E59: =SUM(E47:E58) -> 88394.89 | F59: =IF(D59=0,0,B59/D59) -> 335.1828362 | G59: =IF(E59=0,0,C59/E59) -> 237.5061007 | H59: =IF(D59+E59=0,0,(B59+C59)/(D59+E59)) -> 326.8643158 | I59: =SUM(I47:I58) -> 312124402.5 | J59: =SUM(J47:J58) -> 17435699.26 | K59: 315.36 | L59: =IF(I59=0,0,(B59-I59)/I59) -> 0.01969339904 | M59: =IF(K59=0,0,(H59-K59)/K59) -> 0.03647994623

Sheet MALERE
A2: ="MÅLESTATISTIKK FOR MALERE - 1. HALVÅR "&FORS!$A$14 -> MÅLESTATISTIKK FOR MALERE - 1. HALVÅR 2022
B4: Målesum i kroner | D4: Timer | F4: ="Fortjeneste 1. halvår "&FORS!$A$14-0 -> Fortjeneste 1. halvår 2022 | I4: =" 1. halvår "&FORS!$A$14-1 -> 1. halvår 2021 | L4: Endringer i %
B5: Innmålt m/ | C5: Innmålt m/ | D5: Innmålt m/ | E5: Innmålt m/ | F5: Innmålt m/ | G5: Innmålt m/ | H5: Gjennom- | I5: Innmålt m/ | J5: Innmålt m/ | K5: Gjen.snitt | L5: Innmålt m/ | M5: Gjen.snitt
B6: overskudd | C6: underskudd | D6: overskudd | E6: underskudd | F6: overskudd | G6: underskudd | H6: snitt | I6: overskudd | J6: underskudd | K6: fortjeneste | L6: overskudd | M6: fortjeneste
A7: Agder | F7: =IF(D7=0,0,B7/D7) -> 0 | G7: =IF(E7=0,0,C7/E7) -> 0 | H7: =IF(D7+E7=0,0,(B7+C7)/(D7+E7)) -> 0 | K7: 0 | L7: =IF(I7=0,0,(B7-I7)/I7) -> 0 | M7: =IF(K7=0,0,(H7-K7)/K7) -> 0
A8: Bergen | B8: 657178.21 | D8: 2780.73 | E8: 0 | F8: =IF(D8=0,0,B8/D8) -> 236.3329809 | G8: =IF(E8=0,0,C8/E8) -> 0 | H8: =IF(D8+E8=0,0,(B8+C8)/(D8+E8)) -> 236.3329809 | I8: 1393596.92 | K8: 258.53 | L8: =IF(I8=0,0,(B8-I8)/I8) -> -0.5284302078 | M8: =IF(K8=0,0,(H8-K8)/K8) -> -0.08585858157
A9: Drammen - Bærum | F9: 0 | G9: 0 | H9: =IF(D9+E9=0,0,(B9+C9)/(D9+E9)) -> 0 | K9: 0 | L9: =IF(I9=0,0,(B9-I9)/I9) -> 0 | M9: 0
A10: Haugesund | F10: 0 | G10: 0 | H10: 0 | K10: 0 | L10: 0 | M10: 0
A11: Hamar og Omegn | B11: 2533204.15 | D11: 8104 | E11: 0 | F11: =IF(D11=0,0,B11/D11) -> 312.5868892 | G11: 0 | H11: =IF(D11+E11=0,0,(B11+C11)/(D11+E11)) -> 312.5868892 | I11: 1529179 | K11: 373.97 | L11: 0.6565779088 | M11: -0.164139131
A12: Sandnes | F12: 0 | G12: 0 | H12: 0 | K12: 0 | L12: 0 | M12: 0
A13: Stavanger | F13: 0 | G13: 0 | H13: 0 | K13: 0 | L13: 0 | M13: 0
A14: Telemark | B14: 233396 | C14: 0 | D14: 642 | E14: 0 | F14: 363.5451713 | G14: 0 | H14: 363.5451713 | I14: 117214 | K14: 540.16 | L14: 0.991195591 | M14: -0.3269676182
A15: Trondheim | B15: 18164579 | C15: 926487 | D15: 56463.18 | E15: 4647.18 | F15: 321.7066237 | G15: =IF(E15=0,0,C15/E15) -> 199.3654216 | H15: 312.4031015 | I15: 20964447 | J15: 7983359 | K15: 283.53 | L15: -0.1335531531 | M15: 0.1018343792
A16: Vestfold | F16: 0 | G16: 0 | H16: 0 | L16: 0 | M16: 0
A17: Østfold | C17: 0 | F17: 0 | G17: 0 | H17: 0 | K17: 0 | L17: 0 | M17: 0
A18: Oslo | B18: 11720436 | C18: 132684 | D18: 36337 | E18: 678 | F18: 322.5482566 | G18: 195.699115 | H18: 320.2247737 | I18: 7728422 | J18: 110709 | K18: 328.06 | L18: 0.5165367523 | M18: -0.023883516
A19: Landet i alt | B19: =SUM(B7:B18) -> 33308793.36 | C19: =SUM(C7:C18) -> 1059171 | D19: =SUM(D7:D18) -> 104326.91 | E19: =SUM(E7:E18) -> 5325.18 | F19: =IF(D19=0,0,B19/D19) -> 319.2732667 | G19: =IF(E19=0,0,C19/E19) -> 198.8986288 | H19: =IF(D19+E19=0,0,(B19+C19)/(D19+E19)) -> 313.4273534 | I19: =SUM(I7:I18) -> 31732858.92 | J19: =SUM(J7:J18) -> 8094068 | K19: 293.67 | L19: =IF(I19=0,0,(B19-I19)/I19) -> 0.04966254203 | M19: =IF(K19=0,0,(H19-K19)/K19) -> 0.06727739765
A22: ="MÅLESTATISTIKK FOR MALERE - 2. HALVÅR "&FORS!$A$14 -> MÅLESTATISTIKK FOR MALERE - 2. HALVÅR 2022
B24: Målesum i kroner | D24: Timer | F24: ="Fortjeneste 2. halvår "&FORS!$A$14-0 -> Fortjeneste 2. halvår 2022 | I24: =" 2. halvår "&FORS!$A$14-1 -> 2. halvår 2021 | L24: Endringer i %
B25: Innmålt m/ | C25: Innmålt m/ | D25: Innmålt m/ | E25: Innmålt m/ | F25: Innmålt m/ | G25: Innmålt m/ | H25: Gjennom- | I25: Innmålt m/ | J25: Innmålt m/ | K25: Gjen.snitt | L25: Innmålt m/ | M25: Gjen.snitt
B26: overskudd | C26: underskudd | D26: overskudd | E26: underskudd | F26: overskudd | G26: underskudd | H26: snitt | I26: overskudd | J26: underskudd | K26: fortjeneste | L26: overskudd | M26: fortjeneste
A27: Agder | F27: =IF(D27=0,0,B27/D27) -> 0 | G27: 0 | H27: =IF(D27+E27=0,0,(B27+C27)/(D27+E27)) -> 0 | K27: 0 | L27: =IF(I27=0,0,(B27-I27)/I27) -> 0 | M27: =IF(K27=0,0,(H27-K27)/K27) -> 0
A28: Bergen | B28: 148590.61 | D28: 623.13 | F28: 238.4584437 | G28: 0 | H28: =IF(D28+E28=0,0,(B28+C28)/(D28+E28)) -> 238.4584437 | I28: 964964.81 | K28: 246.91 | L28: =IF(I28=0,0,(B28-I28)/I28) -> -0.846014478 | M28: =IF(K28=0,0,(H28-K28)/K28) -> -0.03422929949
A29: Drammen - Bærum | F29: 0 | G29: 0 | H29: =IF(D29+E29=0,0,(B29+C29)/(D29+E29)) -> 0 | K29: 0 | L29: 0 | M29: 0
A30: Haugesund | F30: 0 | G30: 0 | H30: 0 | K30: 0 | L30: 0 | M30: 0
A31: Hamar og Omegn | B31: 2308257.6 | D31: 5467.7 | E31: 0 | F31: 422.1624449 | G31: 0 | H31: 422.1624449 | I31: 629296 | J31: 0 | K31: 268.24 | L31: 2.667999797 | M31: 0.5738236091
A32: Sandnes | F32: 0 | G32: 0 | H32: 0 | K32: 0 | L32: 0 | M32: 0
A33: Stavanger | F33: 0 | G33: 0 | H33: 0 | K33: 0 | L33: 0 | M33: 0
A34: Telemark | B34: 117379 | D34: 347.5 | F34: 337.781295 | G34: 0 | H34: 337.781295 | I34: 66517 | K34: 457.16 | L34: 0.7646466317 | M34: -0.2611311248
A35: Trondheim | B35: 24067359 | C35: 6096846 | D35: 74705.71 | E35: 28037.28 | F35: 322.1622417 | G35: 217.4549742 | H35: 293.5889349 | I35: 20880023 | J35: 2464338 | K35: 295.46 | L35: 0.1526500234 | M35: -0.006332718895
A36: Vestfold | F36: 0 | G36: 0 | H36: 0 | L36: 0 | M36: 0
A37: Østfold | F37: 0 | G37: 0 | H37: 0 | K37: 0 | L37: =IF(I38=0,0,(B37-I38)/I38) -> -1 | M37: 0
A38: Oslo | B38: 11090734 | C38: 74139 | D38: 31629 | E38: 346 | F38: 350.6507952 | G38: 214.2745665 | H38: 349.1750743 | I38: 7436408 | J38: 106121 | K38: 306.44 | L38: =IF(#REF!=0,0,(B38-#REF!)/#REF!) ->  | M38: 0.1394565797
A39: Landet i alt | B39: =SUM(B27:B38) -> 37732320.21 | C39: =SUM(C27:C38) -> 6170985 | D39: =SUM(D27:D38) -> 112773.04 | E39: =SUM(E27:E38) -> 28383.28 | F39: =IF(D39=0,0,B39/D39) -> 334.5863534 | G39: =IF(E39=0,0,C39/E39) -> 217.4162042 | H39: =IF(D39+E39=0,0,(B39+C39)/(D39+E39)) -> 311.026139 | I39: =SUM(I27:I38) -> 29977208.81 | J39: =SUM(J27:J38) -> 2570459 | K39: 293.67 | L39: 0.2587002496 | M39: 0.05910082417
A42: ="MÅLESTATISTIKK FOR MALERE - GJENNOMSNITT HELE ÅRET "&FORS!$A$14 -> MÅLESTATISTIKK FOR MALERE - GJENNOMSNITT HELE ÅRET 2022
B44: Målesum i kroner | D44: Timer | F44: ="Fortjeneste hele "&FORS!$A$14-0 -> Fortjeneste hele 2022 | I44: =" Hele året "&FORS!$A$14-1 -> Hele året 2021 | L44: Endringer i %
B45: Innmålt m/ | C45: Innmålt m/ | D45: Innmålt m/ | E45: Innmålt m/ | F45: Innmålt m/ | G45: Innmålt m/ | H45: Gjennom- | I45: Innmålt m/ | J45: Innmålt m/ | K45: Gjen.snitt | L45: Innmålt m/ | M45: Gjen.snitt
B46: overskudd | C46: underskudd | D46: overskudd | E46: underskudd | F46: overskudd | G46: underskudd | H46: snitt | I46: overskudd | J46: underskudd | K46: fortjeneste | L46: overskudd | M46: fortjeneste
A47: Agder | B47: =SUMIFS(B$7:B$19,$A$7:$A$19,$A47)+SUMIFS(B$27:B$39,$A$27:$A$39,$A47) -> 0 | C47: =SUMIFS(C$7:C$19,$A$7:$A$19,$A47)+SUMIFS(C$27:C$39,$A$27:$A$39,$A47) -> 0 | D47: 0 | E47: 0 | F47: =IF(D47=0,0,B47/D47) -> 0 | G47: =IF(E47=0,0,C27/E47) -> 0 | H47: =IF(D47+E47=0,0,(B47+C47)/(D47+E47)) -> 0 | I47: =SUMIFS(I$7:I$19,$A$7:$A$19,$A47)+SUMIFS(I$27:I$39,$A$27:$A$39,$A47) -> 0 | J47: =SUMIFS(J$7:J$19,$A$7:$A$19,$A47)+SUMIFS(J$27:J$39,$A$27:$A$39,$A47) -> 0 | K47: 0 | L47: =IF(I47=0,0,(B47-I47)/I47) -> 0 | M47: =IF(K47=0,0,(H47-K47)/K47) -> 0
A48: Bergen | B48: =SUMIFS($B$7:$B$19,$A$7:$A$19,A48)+SUMIFS($B$27:$B$39,$A$27:$A$39,A48) -> 805768.82 | C48: 0 | D48: 3403.86 | E48: 0 | F48: =IF(D48=0,0,B48/D48) -> 236.7220802 | G48: 0 | H48: =IF(D48+E48=0,0,(B48+C48)/(D48+E48)) -> 236.7220802 | I48: =SUMIFS(I$7:I$19,$A$7:$A$19,$A48)+SUMIFS(I$27:I$39,$A$27:$A$39,$A48) -> 2358561.73 | J48: 0 | K48: 253.64 | L48: =IF(I48=0,0,(B48-I48)/I48) -> -0.6583643287 | M48: =IF(K48=0,0,(H48-K48)/K48) -> -0.06670051953
A49: Drammen - Bærum | B49: 0 | C49: 0 | D49: 0 | E49: 0 | F49: 0 | G49: 0 | H49: 0 | I49: 0 | J49: 0 | K49: 0 | L49: 0 | M49: 0
A50: Haugesund | B50: 0 | C50: 0 | D50: 0 | E50: 0 | F50: 0 | G50: 0 | H50: 0 | I50: 0 | J50: 0 | K50: 0 | L50: 0 | M50: 0
A51: Hamar og Omegn | B51: 4841461.75 | C51: 0 | D51: 13571.7 | E51: 0 | F51: 356.7321522 | G51: 0 | H51: 356.7321522 | I51: 2158475 | J51: 0 | K51: 335.43 | L51: 1.243001077 | M51: 0.06350699758
A52: Sandnes | B52: 0 | C52: 0 | D52: 0 | E52: 0 | F52: =IF(D52=0,0,B52/D52) -> 0 | G52: 0 | H52: =IF(D52+E52=0,0,(B52+C52)/(D52+E52)) -> 0 | I52: 0 | J52: 0 | K52: 0 | L52: 0 | M52: 0
A53: Stavanger | B53: 0 | C53: 0 | D53: 0 | E53: 0 | F53: 0 | G53: 0 | H53: 0 | I53: 0 | J53: 0 | K53: 0 | L53: 0 | M53: 0
A54: Telemark | B54: 350775 | C54: 0 | D54: 989.5 | E54: 0 | F54: 354.4972208 | G54: 0 | H54: 354.4972208 | I54: 183731 | J54: 0 | K54: 506.84 | L54: 0.9091770033 | M54: -0.30057371
A55: Trondheim | B55: 42231938 | C55: 7023333 | D55: 131168.89 | E55: 32684.46 | F55: 321.9661156 | G55: 214.8829444 | H55: 300.6058222 | I55: 41844470 | J55: 10447697 | K55: 288.73 | L55: 0.00925971819 | M55: 0.04113123755
A56: Vestfold | B56: 0 | C56: 0 | D56: 0 | E56: 0 | F56: =IF(D56=0,0,B56/D56) -> 0 | G56: 0 | H56: 0 | I56: 0 | J56: 0 | L56: 0 | M56: 0
A57: Østfold | B57: 0 | C57: 0 | D57: 0 | E57: =SUMIFS(E$7:E$19,$A$7:$A$19,$A57)+SUMIFS(E$27:E$39,$A$27:$A$39,$A57) -> 0 | F57: =IF(D57=0,0,B57/D57) -> 0 | G57: 0 | H57: 0 | I57: 0 | J57: 0 | K57: 0 | L57: 0 | M57: 0
A58: Oslo | B58: 22811170 | C58: 206823 | D58: 67966 | E58: 1024 | F58: 335.6261955 | G58: 201.9755859 | H58: 333.6424554 | I58: 15164830 | J58: 216830 | K58: 317.64 | L58: 0.5042153456 | M58: 0.05037921996
A59: Landet i alt | B59: =SUM(B47:B58) -> 71041113.57 | C59: =SUM(C47:C58) -> 7230156 | D59: =SUM(D47:D58) -> 217099.95 | E59: =SUM(E47:E58) -> 33708.46 | F59: =IF(D59=0,0,B59/D59) -> 327.2276828 | G59: =IF(E59=0,0,C59/E59) -> 214.490843 | H59: =IF(D59+E59=0,0,(B59+C59)/(D59+E59)) -> 312.075937 | I59: =SUM(I47:I58) -> 61710067.73 | J59: =SUM(J47:J58) -> 10664527 | K59: 294.64 | L59: =IF(I59=0,0,(B59-I59)/I59) -> 0.1512078366 | M59: =IF(K59=0,0,(H59-K59)/K59) -> 0.05917708745

Sheet RØRLEGGERE
A2: ="MÅLESTATISTIKK FOR RØRLEGGERE - 1. HALVÅR "&FORS!$A$14 -> MÅLESTATISTIKK FOR RØRLEGGERE - 1. HALVÅR 2022
B4: Målesum i kroner | D4: Timer | F4: ="Fortjeneste 1. halvår "&FORS!$A$14-0 -> Fortjeneste 1. halvår 2022 | I4: =" 1. halvår "&FORS!$A$14-1 -> 1. halvår 2021 | L4: Endringer i %
B5: Innmålt m/ | C5: Innmålt m/ | D5: Innmålt m/ | E5: Innmålt m/ | F5: Innmålt m/ | G5: Innmålt m/ | H5: Gjennom- | I5: Innmålt m/ | J5: Innmålt m/ | K5: Gjen.snitt | L5: Innmålt m/ | M5: Gjen.snitt
B6: overskudd | C6: underskudd | D6: overskudd | E6: underskudd | F6: overskudd | G6: underskudd | H6: snitt | I6: overskudd | J6: underskudd | K6: fortjeneste | L6: overskudd | M6: fortjeneste
A7: Agder | F7: =IF(D7=0,0,B7/D7) -> 0 | G7: =IF(E7=0,0,C7/E7) -> 0 | H7: =IF(D7+E7=0,0,(B7+C7)/(D7+E7)) -> 0 | K7: 0 | L7: =IF(I7=0,0,(B7-I7)/I7) -> 0 | M7: =IF(K7=0,0,(H7-K7)/K7) -> 0
A8: Bergen | F8: =IF(D8=0,0,B8/D8) -> 0 | G8: 0 | H8: =IF(D8+E8=0,0,(B8+C8)/(D8+E8)) -> 0 | K8: 0 | L8: =IF(I8=0,0,(B8-I8)/I8) -> 0 | M8: =IF(K8=0,0,(H8-K8)/K8) -> 0
A9: Nordland | F9: 0 | G9: 0 | H9: 0 | K9: 0 | L9: 0 | M9: 0
A10: Haugesund | F10: 0 | G10: 0 | H10: 0 | K10: 0 | L10: 0 | M10: 0
A11: Hamar og Omegn | F11: 0 | G11: 0 | H11: 0 | K11: 0 | L11: 0 | M11: 0
A12: Sandnes | F12: 0 | G12: 0 | H12: 0 | K12: 0 | L12: 0 | M12: 0
A13: Stavanger | F13: 0 | G13: 0 | H13: 0 | K13: 0 | L13: 0 | M13: 0
A14: Telemark | F14: 0 | G14: 0 | H14: 0 | K14: 0 | L14: 0 | M14: 0
A15: Trondheim | B15: 3933483.88 | C15: 2022729.36 | D15: 11358.1 | E15: 9086.1 | F15: 346.3153063 | G15: 222.6179945 | H15: 291.3400006 | I15: 9779522.97 | J15: 4641267.51 | K15: 284.35 | L15: -0.5977836657 | M15: 0.02458238293
A16: Vestfold | F16: 0 | G16: 0 | H16: 0 | K16: 0 | L16: 0 | M16: 0
A17: Østfold | F17: 0 | G17: 0 | H17: 0 | K17: 0 | L17: 0 | M17: 0
A18: Oslo | B18: 38489101 | C18: 1142598 | D18: 116529 | E18: 6755 | F18: 330.2963297 | G18: 169.1484826 | H18: 321.4666867 | I18: 36598559 | J18: 1578608 | K18: 306.17 | L18: 0.05165618679 | M18: 0.0499614158
A19: Landet i alt | B19: =SUM(B7:B18) -> 42422584.88 | C19: =SUM(C7:C18) -> 3165327.36 | D19: =SUM(D7:D18) -> 127887.1 | E19: =SUM(E7:E18) -> 15841.1 | F19: =IF(D19=0,0,B19/D19) -> 331.7190309 | G19: =IF(E19=0,0,C19/E19) -> 199.8173965 | H19: =IF(D19+E19=0,0,(B19+C19)/(D19+E19)) -> 317.1814038 | I19: =SUM(I7:I18) -> 46378081.97 | J19: =SUM(J7:J18) -> 6219875.51 | K19: 299.86 | L19: =IF(I19=0,0,(B19-I19)/I19) -> -0.08528806975 | M19: =IF(K19=0,0,(H19-K19)/K19) -> 0.05776496961
A22: ="MÅLESTATISTIKK FOR RØRLEGGERE - 2. HALVÅR "&FORS!$A$14 -> MÅLESTATISTIKK FOR RØRLEGGERE - 2. HALVÅR 2022
B24: Målesum i kroner | D24: Timer | F24: ="Fortjeneste 2. halvår "&FORS!$A$14-0 -> Fortjeneste 2. halvår 2022 | I24: =" 2. halvår "&FORS!$A$14-1 -> 2. halvår 2021 | L24: Endringer i %
B25: Innmålt m/ | C25: Innmålt m/ | D25: Innmålt m/ | E25: Innmålt m/ | F25: Innmålt m/ | G25: Innmålt m/ | H25: Gjennom- | I25: Innmålt m/ | J25: Innmålt m/ | K25: Gjen.snitt | L25: Innmålt m/ | M25: Gjen.snitt
B26: overskudd | C26: underskudd | D26: overskudd | E26: underskudd | F26: overskudd | G26: underskudd | H26: snitt | I26: overskudd | J26: underskudd | K26: fortjeneste | L26: overskudd | M26: fortjeneste
A27: Agder | F27: =IF(D27=0,0,B27/D27) -> 0 | G27: 0 | H27: =IF(D27+E27=0,0,(B27+C27)/(D27+E27)) -> 0 | K27: 0 | L27: =IF(I27=0,0,(B27-I27)/I27) -> 0 | M27: =IF(K27=0,0,(H27-K27)/K27) -> 0
A28: Bergen | F28: 0 | G28: 0 | H28: =IF(D28+E28=0,0,(B28+C28)/(D28+E28)) -> 0 | K28: 0 | L28: =IF(I28=0,0,(B28-I28)/I28) -> 0 | M28: =IF(K28=0,0,(H28-K28)/K28) -> 0
A29: Nordland | D29: 0 | F29: 0 | G29: 0 | H29: 0 | J29: 424816.48 | K29: 201.7651294 | L29: 0 | M29: -1
A30: Haugesund | F30: 0 | G30: 0 | H30: 0 | K30: 0 | L30: 0 | M30: 0
A31: Hamar og Omegn | F31: 0 | G31: 0 | H31: 0 | K31: 0 | L31: 0 | M31: 0
A32: Sandnes | F32: 0 | G32: 0 | H32: 0 | K32: 0 | L32: 0 | M32: 0
A33: Stavanger | F33: 0 | G33: 0 | H33: 0 | K33: 0 | L33: 0 | M33: 0
A34: Telemark | F34: 0 | G34: 0 | H34: 0 | K34: 0 | L34: 0 | M34: 0
A35: Trondheim | B35: 17862922.01 | C35: 7998067.35 | D35: 52387.64 | E35: 36941.48 | F35: 340.9758869 | G35: 216.5064137 | H35: 289.502341 | I35: 7773105.47 | J35: 3108168.08 | K35: 394.75 | L35: 1.298041893 | M35: -0.2666185155
A36: Vestfold | F36: 0 | G36: 0 | H36: 0 | K36: 0 | L36: 0 | M36: 0
A37: Østfold | C37: 0 | F37: 0 | G37: 0 | H37: 0 | J37: 0 | K37: 0 | L37: 0 | M37: 0
A38: Oslo | B38: 12307045 | C38: 1097666 | D38: 36890 | E38: 4505 | F38: 333.6146652 | G38: 243.6550499 | H38: 323.8243991 | I38: 14162110 | K38: 337.3 | L38: -0.1309878966 | M38: -0.03995138132
A39: Landet i alt | B39: =SUM(B27:B38) -> 30169967.01 | C39: =SUM(C27:C38) -> 9095733.35 | D39: =SUM(D27:D38) -> 89277.64 | E39: =SUM(E27:E38) -> 41446.48 | F39: =IF(D39=0,0,B39/D39) -> 337.9341906 | G39: =IF(E39=0,0,C39/E39) -> 219.4573182 | H39: =IF(D39+E39=0,0,(B39+C39)/(D39+E39)) -> 300.3707377 | I39: =SUM(I27:I38) -> 21935215.47 | J39: =SUM(J27:J38) -> 3532984.56 | K39: 360.07 | L39: 0.3754123843 | M39: -0.1657990455
A42: ="MÅLESTATISTIKK FOR RØRLEGGERE - GJENNOMSNITT HELE ÅRET "&FORS!$A$14 -> MÅLESTATISTIKK FOR RØRLEGGERE - GJENNOMSNITT HELE ÅRET 2022
B44: Målesum i kroner | D44: Timer | F44: ="Fortjeneste hele "&FORS!$A$14-0 -> Fortjeneste hele 2022 | I44: =" Hele året "&FORS!$A$14-1 -> Hele året 2021 | L44: Endringer i %
B45: Innmålt m/ | C45: Innmålt m/ | D45: Innmålt m/ | E45: Innmålt m/ | F45: Innmålt m/ | G45: Innmålt m/ | H45: Gjennom- | I45: Innmålt m/ | J45: Innmålt m/ | K45: Gjen.snitt | L45: Innmålt m/ | M45: Gjen.snitt
B46: overskudd | C46: underskudd | D46: overskudd | E46: underskudd | F46: overskudd | G46: underskudd | H46: snitt | I46: overskudd | J46: underskudd | K46: fortjeneste | L46: overskudd | M46: fortjeneste
A47: Agder | B47: =SUMIFS(B$7:B$19,$A$7:$A$19,$A47)+SUMIFS(B$27:B$39,$A$27:$A$39,$A47) -> 0 | C47: =SUMIFS(C$7:C$19,$A$7:$A$19,$A47)+SUMIFS(C$27:C$39,$A$27:$A$39,$A47) -> 0 | D47: 0 | E47: 0 | F47: =IF(D47=0,0,B47/D47) -> 0 | G47: =IF(E47=0,0,C27/E47) -> 0 | H47: =IF(D47+E47=0,0,(B47+C47)/(D47+E47)) -> 0 | I47: =SUMIFS(I$7:I$19,$A$7:$A$19,$A47)+SUMIFS(I$27:I$39,$A$27:$A$39,$A47) -> 0 | J47: =SUMIFS(J$7:J$19,$A$7:$A$19,$A47)+SUMIFS(J$27:J$39,$A$27:$A$39,$A47) -> 0 | K47: 0 | L47: =IF(I47=0,0,(B47-I47)/I47) -> 0 | M47: =IF(K47=0,0,(H47-K47)/K47) -> 0
A48: Bergen | B48: =SUMIFS($B$7:$B$19,$A$7:$A$19,A48)+SUMIFS($B$27:$B$39,$A$27:$A$39,A48) -> 0 | C48: 0 | D48: 0 | E48: 0 | F48: =IF(D48=0,0,B48/D48) -> 0 | G48: 0 | H48: =IF(D48+E48=0,0,(B48+C48)/(D48+E48)) -> 0 | I48: =SUMIFS(I$7:I$19,$A$7:$A$19,$A48)+SUMIFS(I$27:I$39,$A$27:$A$39,$A48) -> 0 | J48: 0 | K48: 0 | L48: =IF(I48=0,0,(B48-I48)/I48) -> 0 | M48: =IF(K48=0,0,(H48-K48)/K48) -> 0
A49: Nordland | B49: 0 | C49: 0 | D49: 0 | E49: 0 | F49: 0 | G49: 0 | H49: 0 | I49: 0 | J49: 424816.48 | K49: 201.7651294 | L49: 0 | M49: -1
A50: Haugesund | B50: 0 | C50: 0 | D50: 0 | E50: 0 | F50: 0 | G50: 0 | H50: 0 | I50: 0 | J50: 0 | K50: 0 | L50: 0 | M50: 0
A51: Hamar og Omegn | B51: 0 | C51: 0 | D51: 0 | E51: 0 | F51: 0 | G51: 0 | H51: 0 | I51: 0 | J51: 0 | K51: 0 | L51: 0 | M51: 0
A52: Sandnes | B52: 0 | C52: 0 | D52: 0 | E52: 0 | F52: =IF(D52=0,0,B52/D52) -> 0 | G52: 0 | H52: =IF(D52+E52=0,0,(B52+C52)/(D52+E52)) -> 0 | I52: 0 | J52: 0 | K52: 0 | L52: 0 | M52: 0
A53: Stavanger | B53: 0 | C53: 0 | D53: 0 | E53: 0 | F53: 0 | G53: 0 | H53: 0 | I53: 0 | J53: 0 | K53: 0 | L53: 0 | M53: 0
A54: Telemark | B54: 0 | C54: 0 | D54: 0 | E54: 0 | F54: 0 | G54: 0 | H54: 0 | I54: 0 | J54: 0 | K54: 0 | L54: 0 | M54: 0
A55: Trondheim | B55: 21796405.89 | C55: 10020796.71 | D55: 63745.74 | E55: 46027.58 | F55: 341.9272549 | G55: 217.7128737 | H55: 289.844587 | I55: 17552628.44 | J55: 7749435.59 | K55: 272.6431752 | L55: 0.2417744707 | M55: 0.06309129782
A56: Vestfold | B56: 0 | C56: 0 | D56: 0 | E56: 0 | F56: =IF(D56=0,0,B56/D56) -> 0 | G56: 0 | H56: 0 | I56: 0 | J56: 0 | K56: 0 | L56: 0 | M56: 0
A57: Østfold | B57: 0 | C57: 0 | D57: 0 | E57: =SUMIFS(E$7:E$19,$A$7:$A$19,$A57)+SUMIFS(E$27:E$39,$A$27:$A$39,$A57) -> 0 | F57: =IF(D57=0,0,B57/D57) -> 0 | G57: 0 | H57: 0 | I57: 0 | J57: 0 | K57: 0 | L57: 0 | M57: 0
A58: Oslo | B58: 50796146 | C58: 2240264 | D58: 153419 | E58: 11260 | F58: 331.0942321 | G58: 198.9577265 | H58: 322.0593397 | I58: 50760669 | J58: 1578608 | K58: 321.1601005 | L58: 0.0006989072583 | M58: 0.002799971787
A59: Landet i alt | B59: =SUM(B47:B58) -> 72592551.89 | C59: =SUM(C47:C58) -> 12261060.71 | D59: =SUM(D47:D58) -> 217164.74 | E59: =SUM(E47:E58) -> 57287.58 | F59: =IF(D59=0,0,B59/D59) -> 334.2741178 | G59: =IF(E59=0,0,C59/E59) -> 214.0265082 | H59: =IF(D59+E59=0,0,(B59+C59)/(D59+E59)) -> 309.1743316 | I59: =SUM(I47:I58) -> 68313297.44 | J59: =SUM(J47:J58) -> 9752860.07 | K59: 316.96 | L59: =IF(I59=0,0,(B59-I59)/I59) -> 0.06264160288 | M59: =IF(K59=0,0,(H59-K59)/K59) -> -0.02456356755

Sheet TAKTEKKERE
A2: ="MÅLESTATISTIKK FOR TAKTEKKERE - 1. HALVÅR "&FORS!$A$14 -> MÅLESTATISTIKK FOR TAKTEKKERE - 1. HALVÅR 2022
B4: Målesum i kroner | D4: Timer | F4: ="Fortjeneste 1. halvår "&FORS!$A$14-0 -> Fortjeneste 1. halvår 2022 | I4: =" 1. halvår "&FORS!$A$14-1 -> 1. halvår 2021 | L4: Endringer i %
B5: Innmålt m/ | C5: Innmålt m/ | D5: Innmålt m/ | E5: Innmålt m/ | F5: Innmålt m/ | G5: Innmålt m/ | H5: Gjennom- | I5: Innmålt m/ | J5: Innmålt m/ | K5: Gjen.snitt | L5: Innmålt m/ | M5: Gjen.snitt
B6: overskudd | C6: underskudd | D6: overskudd | E6: underskudd | F6: overskudd | G6: underskudd | H6: snitt | I6: overskudd | J6: underskudd | K6: fortjeneste | L6: overskudd | M6: fortjeneste
A7: Agder | B7: 0 | D7: 0 | F7: =IF(D7=0,0,B7/D7) -> 0 | G7: =IF(E7=0,0,C7/E7) -> 0 | H7: =IF(D7+E7=0,0,(B7+C7)/(D7+E7)) -> 0 | I7: 0 | K7: 0 | L7: =IF(I7=0,0,(B7-I7)/I7) -> 0 | M7: =IF(K7=0,0,(H7-K7)/K7) -> 0
A8: Bergen | B8: 1151010.56 | D8: 4226.3 | F8: =IF(D8=0,0,B8/D8) -> 272.3447365 | G8: 0 | H8: =IF(D8+E8=0,0,(B8+C8)/(D8+E8)) -> 272.3447365 | L8: =IF(I8=0,0,(B8-I8)/I8) -> 0 | M8: =IF(K8=0,0,(H8-K8)/K8) -> 0
A9: Drammen - Bærum | F9: 0 | G9: 0 | H9: 0 | K9: 0 | L9: =IF(I9=0,0,(B9-I9)/I9) -> 0 | M9: 0
A10: Haugesund | F10: 0 | G10: 0 | H10: 0 | K10: 0 | L10: 0 | M10: 0
A11: Hamar og Omegn | B11: 684546.2 | C11: 55635.68 | D11: 1642.27 | E11: 298.2 | F11: 416.8292668 | G11: 186.5716968 | H11: 381.4446397 | I11: 1319617 | J11: 130636 | K11: 343.39 | L11: -0.481253879 | M11: 0.1108204657
A12: Sandnes | F12: 0 | G12: 0 | H12: 0 | K12: 0 | L12: 0 | M12: 0
A13: Stavanger | B13: 3943115.24 | D13: 13302 | F13: 296.4302541 | G13: 0 | H13: 296.4302541 | I13: 4461131.5 | K13: 324.52 | L13: -0.1161176845 | M13: -0.08655782665
A14: Telemark | B14: 1525563.93 | D14: 4247 | F14: 359.2097787 | G14: 0 | H14: 359.2097787 | I14: 1412344.64 | J14: 51097 | K14: 373.78 | L14: 0.08016406675 | M14: -0.0389807409
A15: Trondheim | B15: 2330407.81 | C15: 793524.12 | D15: 5548.7 | E15: 5122.1 | F15: 419.9916755 | G15: 154.9216376 | H15: 292.7551758 | I15: 1940638 | J15: 112035 | K15: 374.58 | L15: 0.2008462217 | M15: -0.2184441887
A16: Vestfold | F16: 0 | G16: 0 | H16: 0 | K16: 0 | L16: 0 | M16: 0
A17: Østfold | F17: 0 | G17: 0 | H17: 0 | K17: 0 | L17: 0 | M17: 0
A18: Oslo | B18: 3850859.27 | C18: 286673.64 | D18: 9066.1 | E18: 1572 | F18: 424.7536725 | G18: 182.3623664 | H18: 388.9353277 | I18: 2870507.27 | J18: 515809.07 | K18: 340.22 | L18: 0.3415256983 | M18: 0.1431877248
A19: Landet i alt | B19: =SUM(B7:B18) -> 13485503.01 | C19: =SUM(C7:C18) -> 1135833.44 | D19: =SUM(D7:D18) -> 38032.37 | E19: =SUM(E7:E18) -> 6992.3 | F19: =IF(D19=0,0,B19/D19) -> 354.5796123 | G19: =IF(E19=0,0,C19/E19) -> 162.4406047 | H19: =IF(D19+E19=0,0,(B19+C19)/(D19+E19)) -> 324.7405578 | I19: =SUM(I7:I18) -> 12004238.41 | J19: =SUM(J7:J18) -> 809577.07 | K19: 343.36 | L19: =IF(I19=0,0,(B19-I19)/I19) -> 0.1233951334 | M19: =IF(K19=0,0,(H19-K19)/K19) -> -0.05422717327
A22: ="MÅLESTATISTIKK FOR TAKTEKKERE - 2. HALVÅR "&FORS!$A$14 -> MÅLESTATISTIKK FOR TAKTEKKERE - 2. HALVÅR 2022
B24: Målesum i kroner | D24: Timer | F24: ="Fortjeneste 2. halvår "&FORS!$A$14-0 -> Fortjeneste 2. halvår 2022 | I24: =" 2. halvår "&FORS!$A$14-1 -> 2. halvår 2021 | L24: Endringer i %
B25: Innmålt m/ | C25: Innmålt m/ | D25: Innmålt m/ | E25: Innmålt m/ | F25: Innmålt m/ | G25: Innmålt m/ | H25: Gjennom- | I25: Innmålt m/ | J25: Innmålt m/ | K25: Gjen.snitt | L25: Innmålt m/ | M25: Gjen.snitt
B26: overskudd | C26: underskudd | D26: overskudd | E26: underskudd | F26: overskudd | G26: underskudd | H26: snitt | I26: overskudd | J26: underskudd | K26: fortjeneste | L26: overskudd | M26: fortjeneste
A27: Agder | F27: =IF(D27=0,0,B27/D27) -> 0 | G27: 0 | H27: =IF(D27+E27=0,0,(B27+C27)/(D27+E27)) -> 0 | L27: =IF(I27=0,0,(B27-I27)/I27) -> 0 | M27: =IF(K27=0,0,(H27-K27)/K27) -> 0
A28: Bergen | B28: 80494.29 | D28: 181.5 | F28: 443.4947107 | G28: 0 | H28: =IF(D28+E28=0,0,(B28+C28)/(D28+E28)) -> 443.4947107 | L28: =IF(I28=0,0,(B28-I28)/I28) -> 0 | M28: =IF(K28=0,0,(H28-K28)/K28) -> 0
A29: Drammen - Bærum | F29: 0 | G29: 0 | H29: 0 | K29: 0 | L29: 0 | M29: 0
A30: Haugesund | F30: 0 | G30: 0 | H30: 0 | K30: 0 | L30: 0 | M30: 0
A31: Hamar og Omegn | B31: 442758.57 | C31: 87695 | D31: 1209.7 | E31: 522.5 | F31: 366.0069191 | G31: 167.8373206 | H31: 306.2311338 | I31: 1293233 | J31: 48476 | K31: 410.78 | L31: -0.6576343397 | M31: -0.2545130391
A32: Sandnes | F32: 0 | G32: 0 | H32: 0 | K32: 0 | L32: 0 | M32: 0
A33: Stavanger | B33: 6268303.9 | D33: 18719.5 | F33: 334.8542376 | G33: 0 | H33: 334.8542376 | I33: 4016258.4 | K33: 340.77 | L33: 0.5607322228 | M33: -0.01735998603
A34: Telemark | B34: 938808 | D34: 2375 | F34: 395.2875789 | G34: 0 | H34: 395.2875789 | I34: 1103626 | J34: 57403 | K34: 425.08 | L34: -0.1493422591 | M34: -0.07008662147
A35: Trondheim | B35: 3740090.3 | C35: 398137.69 | D35: 9705.49 | E35: 2127.5 | F35: 385.3582148 | G35: 187.1387497 | H35: 349.7195544 | I35: 1951310.22 | J35: 588691 | K35: 185.36 | L35: 0.9167071753 | M35: 0.8867045447
A36: Vestfold | F36: 0 | G36: 0 | H36: 0 | K36: 0 | L36: 0 | M36: 0
A37: Østfold | C37: 0 | F37: 0 | G37: 0 | H37: 0 | J37: 0 | K37: 0 | L37: 0 | M37: 0
A38: Oslo | B38: 3920212.96 | C38: 196117.75 | D38: 9767.4 | E38: 943.7 | F38: 401.3568565 | G38: 207.8178976 | H38: 384.305133 | I38: 4315685.46 | J38: 388594.99 | K38: 390.06 | L38: -0.09163608045 | M38: -0.01475379943
A39: Landet i alt | B39: =SUM(B27:B38) -> 15390668.02 | C39: =SUM(C27:C38) -> 681950.44 | D39: =SUM(D27:D38) -> 41958.59 | E39: =SUM(E27:E38) -> 3593.7 | F39: =IF(D39=0,0,B39/D39) -> 366.80613 | G39: =IF(E39=0,0,C39/E39) -> 189.7627626 | H39: =IF(D39+E39=0,0,(B39+C39)/(D39+E39)) -> 352.8388685 | I39: =SUM(I27:I38) -> 12680113.08 | J39: =SUM(J27:J38) -> 1083164.99 | K39: 353.14 | L39: 0.2137642561 | M39: -0.0008527256215
A42: ="MÅLESTATISTIKK FOR TAKTEKKERE - GJENNOMSNITT HELE ÅRET "&FORS!$A$14 -> MÅLESTATISTIKK FOR TAKTEKKERE - GJENNOMSNITT HELE ÅRET 2022
B44: Målesum i kroner | D44: Timer | F44: ="Fortjeneste hele "&FORS!$A$14-0 -> Fortjeneste hele 2022 | I44: =" Hele året "&FORS!$A$14-1 -> Hele året 2021 | L44: Endringer i %
B45: Innmålt m/ | C45: Innmålt m/ | D45: Innmålt m/ | E45: Innmålt m/ | F45: Innmålt m/ | G45: Innmålt m/ | H45: Gjennom- | I45: Innmålt m/ | J45: Innmålt m/ | K45: Gjen.snitt | L45: Innmålt m/ | M45: Gjen.snitt
B46: overskudd | C46: underskudd | D46: overskudd | E46: underskudd | F46: overskudd | G46: underskudd | H46: snitt | I46: overskudd | J46: underskudd | K46: fortjeneste | L46: overskudd | M46: fortjeneste
A47: Agder | B47: =SUMIFS(B$7:B$19,$A$7:$A$19,$A47)+SUMIFS(B$27:B$39,$A$27:$A$39,$A47) -> 0 | C47: =SUMIFS(C$7:C$19,$A$7:$A$19,$A47)+SUMIFS(C$27:C$39,$A$27:$A$39,$A47) -> 0 | D47: 0 | E47: 0 | F47: =IF(D47=0,0,B47/D47) -> 0 | G47: =IF(E47=0,0,C27/E47) -> 0 | H47: =IF(D47+E47=0,0,(B47+C47)/(D47+E47)) -> 0 | I47: =SUMIFS(I$7:I$19,$A$7:$A$19,$A47)+SUMIFS(I$27:I$39,$A$27:$A$39,$A47) -> 0 | J47: =SUMIFS(J$7:J$19,$A$7:$A$19,$A47)+SUMIFS(J$27:J$39,$A$27:$A$39,$A47) -> 0 | K47: 257.120075 | L47: =IF(I47=0,0,(B47-I47)/I47) -> 0 | M47: =IF(K47=0,0,(H47-K47)/K47) -> -1
A48: Bergen | B48: =SUMIFS($B$7:$B$19,$A$7:$A$19,A48)+SUMIFS($B$27:$B$39,$A$27:$A$39,A48) -> 1231504.85 | C48: 0 | D48: 4407.8 | E48: 0 | F48: =IF(D48=0,0,B48/D48) -> 279.3921798 | G48: 0 | H48: =IF(D48+E48=0,0,(B48+C48)/(D48+E48)) -> 279.3921798 | I48: =SUMIFS(I$7:I$19,$A$7:$A$19,$A48)+SUMIFS(I$27:I$39,$A$27:$A$39,$A48) -> 0 | J48: 0 | K48: 267.3218216 | L48: =IF(I48=0,0,(B48-I48)/I48) -> 0 | M48: =IF(K48=0,0,(H48-K48)/K48) -> 0.04515290988
A49: Drammen - Bærum | B49: 0 | C49: 0 | D49: 0 | E49: 0 | F49: 0 | G49: 0 | H49: 0 | I49: 0 | J49: 0 | K49: 0 | L49: 0 | M49: 0
A50: Haugesund | B50: 0 | C50: 0 | D50: 0 | E50: 0 | F50: 0 | G50: 0 | H50: 0 | I50: 0 | J50: 0 | K50: 0 | L50: 0 | M50: 0
A51: Hamar og Omegn | B51: 1127304.77 | C51: 143330.68 | D51: 2851.97 | E51: 820.7 | F51: 395.27231 | G51: 174.6444255 | H51: 345.9704929 | I51: 2612850 | J51: 179112 | K51: 378.8673408 | L51: -0.5685535833 | M51: -0.08682946352
A52: Sandnes | B52: 0 | C52: 0 | D52: 0 | E52: 0 | F52: =IF(D52=0,0,B52/D52) -> 0 | G52: 0 | H52: =IF(D52+E52=0,0,(B52+C52)/(D52+E52)) -> 0 | I52: 0 | J52: 0 | K52: 0 | L52: 0 | M52: 0
A53: Stavanger | B53: 10211419.14 | C53: 0 | D53: 32021.5 | E53: 0 | F53: 318.8925922 | G53: 0 | H53: 318.8925922 | I53: 8477389.9 | J53: 0 | K53: 298.6652856 | L53: 0.2045475389 | M53: 0.06772567015
A54: Telemark | B54: 2464371.93 | C54: 0 | D54: 6622 | E54: 0 | F54: 372.1491891 | G54: 0 | H54: 372.1491891 | I54: 2515970.64 | J54: 108500 | K54: 392.5073064 | L54: -0.02050847064 | M54: -0.05186684931
A55: Trondheim | B55: 6070498.11 | C55: 1191661.81 | D55: 15254.19 | E55: 7249.6 | F55: 397.9561098 | G55: 164.3762152 | H55: 322.7083047 | I55: 3891948.22 | J55: 700726 | K55: 263.5506368 | L55: 0.5597581897 | M55: 0.2244641432
A56: Vestfold | B56: 0 | C56: 0 | D56: 0 | E56: 0 | F56: =IF(D56=0,0,B56/D56) -> 0 | G56: 0 | H56: 0 | I56: 0 | J56: 0 | K56: 0 | L56: 0 | M56: 0
A57: Østfold | B57: 0 | C57: 0 | D57: 0 | E57: =SUMIFS(E$7:E$19,$A$7:$A$19,$A57)+SUMIFS(E$27:E$39,$A$27:$A$39,$A57) -> 0 | F57: =IF(D57=0,0,B57/D57) -> 0 | G57: 0 | H57: 0 | I57: 0 | J57: 0 | K57: 0 | L57: 0 | M57: 0
A58: Oslo | B58: 7771072.23 | C58: 482791.39 | D58: 18833.5 | E58: 2515.7 | F58: 412.6196527 | G58: 191.9113527 | H58: 386.6123143 | I58: 7186192.73 | J58: 904404.06 | K58: 350.9483245 | L58: 0.08138934231 | M58: 0.1016217696
A59: Landet i alt | B59: =SUM(B47:B58) -> 28876171.03 | C59: =SUM(C47:C58) -> 1817783.88 | D59: =SUM(D47:D58) -> 79990.96 | E59: =SUM(E47:E58) -> 10586 | F59: =IF(D59=0,0,B59/D59) -> 360.9929301 | G59: =IF(E59=0,0,C59/E59) -> 171.7158398 | H59: =IF(D59+E59=0,0,(B59+C59)/(D59+E59)) -> 338.8715509 | I59: =SUM(I47:I58) -> 24684351.49 | J59: =SUM(J47:J58) -> 1892742.06 | K59: 348.36 | L59: =IF(I59=0,0,(B59-I59)/I59) -> 0.1698168794 | M59: =IF(K59=0,0,(H59-K59)/K59) -> -0.02723748166

Sheet MURERE
A2: ="MÅLESTATISTIKK FOR MURERE - 1. HALVÅR "&FORS!$A$14 -> MÅLESTATISTIKK FOR MURERE - 1. HALVÅR 2022
B4: Målesum i kroner | D4: Timer | F4: ="Fortjeneste 1. halvår "&FORS!$A$14-0 -> Fortjeneste 1. halvår 2022 | I4: =" 1. halvår "&FORS!$A$14-1 -> 1. halvår 2021 | L4: Endringer i %
B5: Innmålt m/ | C5: Innmålt m/ | D5: Innmålt m/ | E5: Innmålt m/ | F5: Innmålt m/ | G5: Innmålt m/ | H5: Gjennom- | I5: Innmålt m/ | J5: Innmålt m/ | K5: Gjen.snitt | L5: Innmålt m/ | M5: Gjen.snitt
B6: overskudd | C6: underskudd | D6: overskudd | E6: underskudd | F6: overskudd | G6: underskudd | H6: snitt | I6: overskudd | J6: underskudd | K6: fortjeneste | L6: overskudd | M6: fortjeneste
A7: Agder | F7: =IF(D7=0,0,B7/D7) -> 0 | G7: =IF(E7=0,0,C7/E7) -> 0 | H7: =IF(D7+E7=0,0,(B7+C7)/(D7+E7)) -> 0 | K7: 0 | L7: =IF(I7=0,0,(B7-I7)/I7) -> 0 | M7: =IF(K7=0,0,(H7-K7)/K7) -> 0
A8: Bergen | F8: =IF(D8=0,0,B8/D8) -> 0 | G8: 0 | H8: =IF(D8+E8=0,0,(B8+C8)/(D8+E8)) -> 0 | K8: 0 | L8: =IF(I8=0,0,(B8-I8)/I8) -> 0 | M8: =IF(K8=0,0,(H8-K8)/K8) -> 0
A9: Drammen - Bærum | F9: 0 | G9: 0 | H9: 0 | K9: 0 | L9: 0 | M9: 0
A10: Haugesund | F10: 0 | G10: 0 | H10: 0 | K10: 0 | L10: 0 | M10: 0
A11: Hamar og Omegn | F11: 0 | G11: 0 | H11: 0 | K11: 0 | L11: 0 | M11: 0
A12: Sandnes | F12: 0 | G12: 0 | H12: 0 | K12: 0 | L12: 0 | M12: 0
A13: Stavanger | F13: 0 | G13: 0 | H13: 0 | L13: 0 | M13: 0
A14: Telemark | F14: 0 | G14: 0 | H14: 0 | K14: 0 | L14: 0 | M14: 0
A15: Trondheim | B15: 3677969.13 | C15: 251439.17 | D15: 11242.19 | E15: 1535.93 | F15: 327.1577095 | G15: 163.7048368 | H15: 307.5106745 | I15: 1941137 | J15: 586367 | K15: 271.75 | L15: 0.8947498966 | M15: 0.1315940184
A16: Vestfold | F16: 0 | G16: 0 | H16: 0 | K16: 0 | L16: 0 | M16: 0
A17: Østfold | B17: 854606 | C17: 0 | D17: 2350.5 | F17: 363.5847692 | G17: 0 | H17: 363.5847692 | I17: 407970 | J17: 0 | K17: 358.34 | L17: 1.094776577 | M17: 0.0146362929
A18: Oslo | B18: 13721474 | D18: 41655 | F18: 329.4076101 | G18: 0 | H18: 329.4076101 | I18: 16111664 | J18: 471588 | K18: 329.81 | L18: -0.1483515297 | M18: -0.001220065702
A19: Landet i alt | B19: =SUM(B7:B18) -> 18254049.13 | C19: =SUM(C7:C18) -> 251439.17 | D19: =SUM(D7:D18) -> 55247.69 | E19: =SUM(E7:E18) -> 1535.93 | F19: =IF(D19=0,0,B19/D19) -> 330.4038437 | G19: =IF(E19=0,0,C19/E19) -> 163.7048368 | H19: =IF(D19+E19=0,0,(B19+C19)/(D19+E19)) -> 325.894832 | I19: =SUM(I7:I18) -> 18460771 | J19: =SUM(J7:J18) -> 1057955 | K19: 321.45 | L19: =IF(I19=0,0,(B19-I19)/I19) -> -0.01119790013 | M19: =IF(K19=0,0,(H19-K19)/K19) -> 0.01382744438
A22: ="MÅLESTATISTIKK FOR MURERE - 2. HALVÅR "&FORS!$A$14 -> MÅLESTATISTIKK FOR MURERE - 2. HALVÅR 2022
B24: Målesum i kroner | D24: Timer | F24: ="Fortjeneste 2. halvår "&FORS!$A$14-0 -> Fortjeneste 2. halvår 2022 | I24: =" 2. halvår "&FORS!$A$14-1 -> 2. halvår 2021 | L24: Endringer i %
B25: Innmålt m/ | C25: Innmålt m/ | D25: Innmålt m/ | E25: Innmålt m/ | F25: Innmålt m/ | G25: Innmålt m/ | H25: Gjennom- | I25: Innmålt m/ | J25: Innmålt m/ | K25: Gjen.snitt | L25: Innmålt m/ | M25: Gjen.snitt
B26: overskudd | C26: underskudd | D26: overskudd | E26: underskudd | F26: overskudd | G26: underskudd | H26: snitt | I26: overskudd | J26: underskudd | K26: fortjeneste | L26: overskudd | M26: fortjeneste
A27: Agder | F27: =IF(D27=0,0,B27/D27) -> 0 | G27: 0 | H27: =IF(D27+E27=0,0,(B27+C27)/(D27+E27)) -> 0 | K27: 0 | L27: =IF(I27=0,0,(B27-I27)/I27) -> 0 | M27: =IF(K27=0,0,(H27-K27)/K27) -> 0
A28: Bergen | F28: 0 | G28: 0 | H28: =IF(D28+E28=0,0,(B28+C28)/(D28+E28)) -> 0 | L28: =IF(I28=0,0,(B28-I28)/I28) -> 0 | M28: =IF(K28=0,0,(H28-K28)/K28) -> 0
A29: Drammen - Bærum | F29: 0 | G29: 0 | H29: 0 | K29: 0 | L29: 0 | M29: 0
A30: Haugesund | F30: 0 | G30: 0 | H30: 0 | K30: 0 | L30: 0 | M30: 0
A31: Hamar og Omegn | F31: 0 | G31: 0 | H31: 0 | K31: 0 | L31: 0 | M31: 0
A32: Sandnes | F32: 0 | G32: 0 | H32: 0 | K32: 0 | L32: 0 | M32: 0
A33: Stavanger | F33: 0 | G33: 0 | H33: 0 | I33: 33164 | K33: 296.11 | L33: -1 | M33: -1
A34: Telemark | F34: 0 | G34: 0 | H34: 0 | K34: 0 | L34: 0 | M34: 0
A35: Trondheim | B35: 5752507.04 | C35: 926542.69 | D35: 18774.28 | E35: 3941.33 | F35: 306.4036032 | G35: 235.0837636 | H35: 294.0290721 | I35: 1902539.44 | K35: 311.21 | L35: 2.023594107 | M35: -0.05520686328
A36: Vestfold | F36: 0 | G36: 0 | H36: 0 | K36: 0 | L36: 0 | M36: 0
A37: Østfold | B37: 235631 | C37: 0 | D37: 718 | E37: 0 | F37: 328.1768802 | G37: 0 | H37: 328.1768802 | I37: 636207 | J37: 0 | K37: 396.76 | L37: -0.6296315507 | M37: -0.1728579488
A38: Oslo | B38: 15368624 | D38: 41473 | F38: 370.5693825 | G38: 0 | H38: 370.5693825 | I38: 12031890 | K38: 316.8 | L38: 0.2773241777 | M38: 0.1697265861
A39: Landet i alt | B39: =SUM(B27:B38) -> 21356762.04 | C39: =SUM(C27:C38) -> 926542.69 | D39: =SUM(D27:D38) -> 60965.28 | E39: =SUM(E27:E38) -> 3941.33 | F39: =IF(D39=0,0,B39/D39) -> 350.3102428 | G39: =IF(E39=0,0,C39/E39) -> 235.0837636 | H39: =IF(D39+E39=0,0,(B39+C39)/(D39+E39)) -> 343.3133348 | I39: =SUM(I27:I38) -> 14603800.44 | J39: =SUM(J27:J38) -> 0 | K39: 318.8 | L39: 0.4624112489 | M39: 0.07689251821
A42: ="MÅLESTATISTIKK FOR MURERE - GJENNOMSNITT HELE ÅRET "&FORS!$A$14 -> MÅLESTATISTIKK FOR MURERE - GJENNOMSNITT HELE ÅRET 2022
B44: Målesum i kroner | D44: Timer | F44: ="Fortjeneste hele "&FORS!$A$14-0 -> Fortjeneste hele 2022 | I44: =" Hele året "&FORS!$A$14-1 -> Hele året 2021 | L44: Endringer i %
B45: Innmålt m/ | C45: Innmålt m/ | D45: Innmålt m/ | E45: Innmålt m/ | F45: Innmålt m/ | G45: Innmålt m/ | H45: Gjennom- | I45: Innmålt m/ | J45: Innmålt m/ | K45: Gjen.snitt | L45: Innmålt m/ | M45: Gjen.snitt
B46: overskudd | C46: underskudd | D46: overskudd | E46: underskudd | F46: overskudd | G46: underskudd | H46: snitt | I46: overskudd | J46: underskudd | K46: fortjeneste | L46: overskudd | M46: fortjeneste
A47: Agder | B47: =SUMIFS(B$7:B$19,$A$7:$A$19,$A47)+SUMIFS(B$27:B$39,$A$27:$A$39,$A47) -> 0 | C47: =SUMIFS(C$7:C$19,$A$7:$A$19,$A47)+SUMIFS(C$27:C$39,$A$27:$A$39,$A47) -> 0 | D47: 0 | E47: 0 | F47: =IF(D47=0,0,B47/D47) -> 0 | G47: =IF(E47=0,0,C27/E47) -> 0 | H47: =IF(D47+E47=0,0,(B47+C47)/(D47+E47)) -> 0 | I47: =SUMIFS(I$7:I$19,$A$7:$A$19,$A47)+SUMIFS(I$27:I$39,$A$27:$A$39,$A47) -> 0 | J47: =SUMIFS(J$7:J$19,$A$7:$A$19,$A47)+SUMIFS(J$27:J$39,$A$27:$A$39,$A47) -> 0 | K47: 0 | L47: =IF(I47=0,0,(B47-I47)/I47) -> 0 | M47: =IF(K47=0,0,(H47-K47)/K47) -> 0
A48: Bergen | B48: =SUMIFS($B$7:$B$19,$A$7:$A$19,A48)+SUMIFS($B$27:$B$39,$A$27:$A$39,A48) -> 0 | C48: 0 | D48: 0 | E48: 0 | F48: =IF(D48=0,0,B48/D48) -> 0 | G48: 0 | H48: =IF(D48+E48=0,0,(B48+C48)/(D48+E48)) -> 0 | I48: =SUMIFS(I$7:I$19,$A$7:$A$19,$A48)+SUMIFS(I$27:I$39,$A$27:$A$39,$A48) -> 0 | J48: 0 | L48: =IF(I48=0,0,(B48-I48)/I48) -> 0 | M48: =IF(K48=0,0,(H48-K48)/K48) -> 0
A49: Drammen - Bærum | B49: 0 | C49: 0 | D49: 0 | E49: 0 | F49: 0 | G49: 0 | H49: 0 | I49: 0 | J49: 0 | K49: 0 | L49: 0 | M49: 0
A50: Haugesund | B50: 0 | C50: 0 | D50: 0 | E50: 0 | F50: 0 | G50: 0 | H50: 0 | I50: 0 | J50: 0 | K50: 0 | L50: 0 | M50: 0
A51: Hamar og Omegn | B51: 0 | C51: 0 | D51: 0 | E51: 0 | F51: 0 | G51: 0 | H51: 0 | I51: 0 | J51: 0 | K51: 0 | L51: 0 | M51: 0
A52: Sandnes | B52: 0 | C52: 0 | D52: 0 | E52: 0 | F52: =IF(D52=0,0,B52/D52) -> 0 | G52: 0 | H52: =IF(D52+E52=0,0,(B52+C52)/(D52+E52)) -> 0 | I52: 0 | J52: 0 | K52: 0 | L52: 0 | M52: 0
A53: Stavanger | B53: 0 | C53: 0 | D53: 0 | E53: 0 | F53: 0 | G53: 0 | H53: 0 | I53: 33164 | J53: 0 | K53: 323.4193413 | L53: -1 | M53: -1
A54: Telemark | B54: 0 | C54: 0 | D54: 0 | E54: 0 | F54: 0 | G54: 0 | H54: 0 | I54: 0 | J54: 0 | K54: 0 | L54: 0 | M54: 0
A55: Trondheim | B55: 9430476.17 | C55: 1177981.86 | D55: 30016.47 | E55: 5477.26 | F55: 314.1767226 | G55: 215.0677273 | H55: 298.8825922 | I55: 3843676.44 | J55: 586367 | K55: 294.2788641 | L55: 1.453504169 | M55: 0.01564410036
A56: Vestfold | B56: 0 | C56: 0 | D56: 0 | E56: 0 | F56: =IF(D56=0,0,B56/D56) -> 0 | G56: 0 | H56: 0 | I56: 0 | J56: 0 | K56: 0 | L56: 0 | M56: 0
A57: Østfold | B57: 1090237 | C57: 0 | D57: 3068.5 | E57: =SUMIFS(E$7:E$19,$A$7:$A$19,$A57)+SUMIFS(E$27:E$39,$A$27:$A$39,$A57) -> 0 | F57: =IF(D57=0,0,B57/D57) -> 355.2996578 | G57: 0 | H57: 355.2996578 | I57: 1044177 | J57: 0 | K57: 348.937212 | L57: 0.04411129531 | M57: 0.01823378423
A58: Oslo | B58: 29090098 | C58: 0 | D58: 83128 | E58: 0 | F58: 349.9434366 | G58: 0 | H58: 349.9434366 | I58: 28143554 | J58: 471588 | K58: 328.8173284 | L58: 0.03363271035 | M58: 0.06424876791
A59: Landet i alt | B59: =SUM(B47:B58) -> 39610811.17 | C59: =SUM(C47:C58) -> 1177981.86 | D59: =SUM(D47:D58) -> 116212.97 | E59: =SUM(E47:E58) -> 5477.26 | F59: =IF(D59=0,0,B59/D59) -> 340.8467331 | G59: =IF(E59=0,0,C59/E59) -> 215.0677273 | H59: =IF(D59+E59=0,0,(B59+C59)/(D59+E59)) -> 335.1854379 | I59: =SUM(I47:I58) -> 33064571.44 | J59: =SUM(J47:J58) -> 1057955 | K59: 320.61 | L59: =IF(I59=0,0,(B59-I59)/I59) -> 0.1979835045 | M59: =IF(K59=0,0,(H59-K59)/K59) -> 0.04546158228

Sheet Ark1

Sheet BLIKK OG VENTILASJON
A2: ="MÅLESTATISTIKK FOR BLIKK- OG VENTILASJONSARBEID - 1. HALVÅR "&FORS!$A$14 -> MÅLESTATISTIKK FOR BLIKK- OG VENTILASJONSARBEID - 1. HALVÅR 2022
B4: Målesum i kroner | D4: Timer | F4: ="Fortjeneste 1. halvår "&FORS!$A$14-0 -> Fortjeneste 1. halvår 2022 | I4: =" 1. halvår "&FORS!$A$14-1 -> 1. halvår 2021 | L4: Endringer i %
B5: Innmålt m/ | C5: Innmålt m/ | D5: Innmålt m/ | E5: Innmålt m/ | F5: Innmålt m/ | G5: Innmålt m/ | H5: Gjennom- | I5: Innmålt m/ | J5: Innmålt m/ | K5: Gjen.snitt | L5: Innmålt m/ | M5: Gjen.snitt
B6: overskudd | C6: underskudd | D6: overskudd | E6: underskudd | F6: overskudd | G6: underskudd | H6: snitt | I6: overskudd | J6: underskudd | K6: fortjeneste | L6: overskudd | M6: fortjeneste
A7: Agder | F7: =IF(D7=0,0,B7/D7) -> 0 | G7: =IF(E7=0,0,C7/E7) -> 0 | H7: =IF(D7+E7=0,0,(B7+C7)/(D7+E7)) -> 0 | K7: 0 | L7: =IF(I7=0,0,(B7-I7)/I7) -> 0 | M7: =IF(K7=0,0,(H7-K7)/K7) -> 0
A8: Bergen | F8: =IF(D8=0,0,B8/D8) -> 0 | G8: 0 | H8: =IF(D8+E8=0,0,(B8+C8)/(D8+E8)) -> 0 | K8: 0 | L8: =IF(I8=0,0,(B8-I8)/I8) -> 0 | M8: =IF(K8=0,0,(H8-K8)/K8) -> 0
A9: Drammen - Bærum | F9: 0 | G9: 0 | H9: 0 | K9: 0 | L9: 0 | M9: 0
A10: Haugesund | F10: 0 | G10: 0 | H10: 0 | K10: 0 | L10: 0 | M10: 0
A11: Hamar og Omegn | F11: 0 | G11: 0 | H11: 0 | K11: 0 | L11: 0 | M11: 0
A12: Sandnes | F12: 0 | G12: 0 | H12: 0 | K12: 0 | L12: 0 | M12: 0
A13: Stavanger | F13: 0 | G13: 0 | H13: 0 | K13: 0 | L13: 0 | M13: 0
A14: Telemark | F14: 0 | G14: 0 | H14: 0 | K14: 0 | L14: 0 | M14: 0
A15: Trondheim | B15: 588096 | C15: 0 | D15: 1656.75 | F15: 354.9696695 | G15: 0 | H15: 354.9696695 | I15: 240277.43 | J15: 0 | K15: 345.38 | L15: 1.44757071 | M15: 0.02776556122
A16: Vestfold | F16: 0 | G16: 0 | H16: 0 | K16: 0 | L16: 0 | M16: 0
A17: Østfold | F17: 0 | G17: 0 | H17: 0 | K17: 0 | L17: 0 | M17: 0
A18: Oslo | F18: 0 | G18: 0 | H18: 0 | K18: 0 | L18: 0 | M18: 0
A19: Landet i alt | B19: =SUM(B7:B18) -> 588096 | C19: =SUM(C7:C18) -> 0 | D19: =SUM(D7:D18) -> 1656.75 | E19: =SUM(E7:E18) -> 0 | F19: =IF(D19=0,0,B19/D19) -> 354.9696695 | G19: =IF(E19=0,0,C19/E19) -> 0 | H19: =IF(D19+E19=0,0,(B19+C19)/(D19+E19)) -> 354.9696695 | I19: =SUM(I7:I18) -> 240277.43 | J19: =SUM(J7:J18) -> 0 | K19: 345.38 | L19: =IF(I19=0,0,(B19-I19)/I19) -> 1.44757071 | M19: =IF(K19=0,0,(H19-K19)/K19) -> 0.02776556122
A22: ="MÅLESTATISTIKK FOR BLIKK- OG VENTILASJONSARBEID - 2. HALVÅR "&FORS!$A$14 -> MÅLESTATISTIKK FOR BLIKK- OG VENTILASJONSARBEID - 2. HALVÅR 2022
B24: Målesum i kroner | D24: Timer | F24: ="Fortjeneste 2. halvår "&FORS!$A$14-0 -> Fortjeneste 2. halvår 2022 | I24: =" 2. halvår "&FORS!$A$14-1 -> 2. halvår 2021 | L24: Endringer i %
B25: Innmålt m/ | C25: Innmålt m/ | D25: Innmålt m/ | E25: Innmålt m/ | F25: Innmålt m/ | G25: Innmålt m/ | H25: Gjennom- | I25: Innmålt m/ | J25: Innmålt m/ | K25: Gjen.snitt | L25: Innmålt m/ | M25: Gjen.snitt
B26: overskudd | C26: underskudd | D26: overskudd | E26: underskudd | F26: overskudd | G26: underskudd | H26: snitt | I26: overskudd | J26: underskudd | K26: fortjeneste | L26: overskudd | M26: fortjeneste
A27: Agder | F27: =IF(D27=0,0,B27/D27) -> 0 | G27: 0 | H27: =IF(D27+E27=0,0,(B27+C27)/(D27+E27)) -> 0 | K27: 0 | L27: =IF(I27=0,0,(B27-I27)/I27) -> 0 | M27: =IF(K27=0,0,(H27-K27)/K27) -> 0
A28: Bergen | F28: 0 | G28: 0 | H28: =IF(D28+E28=0,0,(B28+C28)/(D28+E28)) -> 0 | K28: 0 | L28: =IF(I28=0,0,(B28-I28)/I28) -> 0 | M28: =IF(K28=0,0,(H28-K28)/K28) -> 0
A29: Drammen - Bærum | F29: 0 | G29: 0 | H29: 0 | K29: 0 | L29: 0 | M29: 0
A30: Haugesund | F30: 0 | G30: 0 | H30: 0 | K30: 0 | L30: 0 | M30: 0
A31: Hamar og Omegn | F31: 0 | G31: 0 | H31: 0 | K31: 0 | L31: 0 | M31: 0
A32: Sandnes | F32: 0 | G32: 0 | H32: 0 | K32: 0 | L32: 0 | M32: 0
A33: Stavanger | F33: 0 | G33: 0 | H33: 0 | K33: 0 | L33: 0 | M33: 0
A34: Telemark | F34: 0 | G34: 0 | H34: 0 | K34: 0 | L34: 0 | M34: 0
A35: Trondheim | B35: 275376.85 | D35: 715.6 | F35: 384.8195221 | G35: 0 | H35: 384.8195221 | I35: 1242552.87 | J35: 0 | K35: 420.34 | L35: -0.7783781627 | M35: -0.08450415835
A36: Vestfold | F36: 0 | G36: 0 | H36: 0 | K36: 0 | L36: 0 | M36: 0
A37: Østfold | C37: 0 | F37: 0 | G37: 0 | H37: 0 | J37: 0 | K37: 0 | L37: 0 | M37: 0
A38: Oslo | F38: 0 | G38: 0 | H38: 0 | K38: 0 | L38: 0 | M38: 0
A39: Landet i alt | B39: =SUM(B27:B38) -> 275376.85 | C39: =SUM(C27:C38) -> 0 | D39: =SUM(D27:D38) -> 715.6 | E39: =SUM(E27:E38) -> 0 | F39: =IF(D39=0,0,B39/D39) -> 384.8195221 | G39: =IF(E39=0,0,C39/E39) -> 0 | H39: =IF(D39+E39=0,0,(B39+C39)/(D39+E39)) -> 384.8195221 | I39: =SUM(I27:I38) -> 1242552.87 | J39: =SUM(J27:J38) -> 0 | K39: 420.34 | L39: -0.7783781627 | M39: -0.08450415835
A42: ="MÅLESTATISTIKK FOR BLIKK- OG VENTILASJONSARBEID - GJENNOMSNITT HELE ÅRET "&FORS!$A$14 -> MÅLESTATISTIKK FOR BLIKK- OG VENTILASJONSARBEID - GJENNOMSNITT HELE ÅRET 2022
B44: Målesum i kroner | D44: Timer | F44: ="Fortjeneste hele "&FORS!$A$14-0 -> Fortjeneste hele 2022 | I44: =" Hele året "&FORS!$A$14-1 -> Hele året 2021 | L44: Endringer i %
B45: Innmålt m/ | C45: Innmålt m/ | D45: Innmålt m/ | E45: Innmålt m/ | F45: Innmålt m/ | G45: Innmålt m/ | H45: Gjennom- | I45: Innmålt m/ | J45: Innmålt m/ | K45: Gjen.snitt | L45: Innmålt m/ | M45: Gjen.snitt
B46: overskudd | C46: underskudd | D46: overskudd | E46: underskudd | F46: overskudd | G46: underskudd | H46: snitt | I46: overskudd | J46: underskudd | K46: fortjeneste | L46: overskudd | M46: fortjeneste
A47: Agder | B47: =SUMIFS(B$7:B$19,$A$7:$A$19,$A47)+SUMIFS(B$27:B$39,$A$27:$A$39,$A47) -> 0 | C47: =SUMIFS(C$7:C$19,$A$7:$A$19,$A47)+SUMIFS(C$27:C$39,$A$27:$A$39,$A47) -> 0 | D47: 0 | E47: 0 | F47: =IF(D47=0,0,B47/D47) -> 0 | G47: =IF(E47=0,0,C27/E47) -> 0 | H47: =IF(D47+E47=0,0,(B47+C47)/(D47+E47)) -> 0 | I47: =SUMIFS(I$7:I$19,$A$7:$A$19,$A47)+SUMIFS(I$27:I$39,$A$27:$A$39,$A47) -> 0 | J47: =SUMIFS(J$7:J$19,$A$7:$A$19,$A47)+SUMIFS(J$27:J$39,$A$27:$A$39,$A47) -> 0 | K47: 0 | L47: =IF(I47=0,0,(B47-I47)/I47) -> 0 | M47: =IF(K47=0,0,(H47-K47)/K47) -> 0
A48: Bergen | B48: =SUMIFS($B$7:$B$19,$A$7:$A$19,A48)+SUMIFS($B$27:$B$39,$A$27:$A$39,A48) -> 0 | C48: 0 | D48: 0 | E48: 0 | F48: =IF(D48=0,0,B48/D48) -> 0 | G48: 0 | H48: =IF(D48+E48=0,0,(B48+C48)/(D48+E48)) -> 0 | I48: =SUMIFS(I$7:I$19,$A$7:$A$19,$A48)+SUMIFS(I$27:I$39,$A$27:$A$39,$A48) -> 0 | J48: 0 | K48: 0 | L48: =IF(I48=0,0,(B48-I48)/I48) -> 0 | M48: =IF(K48=0,0,(H48-K48)/K48) -> 0
A49: Drammen - Bærum | B49: 0 | C49: 0 | D49: 0 | E49: 0 | F49: 0 | G49: 0 | H49: 0 | I49: 0 | J49: 0 | K49: 0 | L49: 0 | M49: 0
A50: Haugesund | B50: 0 | C50: 0 | D50: 0 | E50: 0 | F50: 0 | G50: 0 | H50: 0 | I50: 0 | J50: 0 | K50: 0 | L50: 0 | M50: 0
A51: Hamar og Omegn | B51: 0 | C51: 0 | D51: 0 | E51: 0 | F51: 0 | G51: 0 | H51: 0 | I51: 0 | J51: 0 | K51: 0 | L51: 0 | M51: 0
A52: Sandnes | B52: 0 | C52: 0 | D52: 0 | E52: 0 | F52: =IF(D52=0,0,B52/D52) -> 0 | G52: 0 | H52: =IF(D52+E52=0,0,(B52+C52)/(D52+E52)) -> 0 | I52: 0 | J52: 0 | K52: 0 | L52: 0 | M52: 0
A53: Stavanger | B53: 0 | C53: 0 | D53: 0 | E53: 0 | F53: 0 | G53: 0 | H53: 0 | I53: 0 | J53: 0 | K53: 0 | L53: 0 | M53: 0
A54: Telemark | B54: 0 | C54: 0 | D54: 0 | E54: 0 | F54: 0 | G54: 0 | H54: 0 | I54: 0 | J54: 0 | K54: 0 | L54: 0 | M54: 0
A55: Trondheim | B55: 863472.85 | C55: 0 | D55: 2372.35 | E55: 0 | F55: 363.9736337 | G55: 0 | H55: 363.9736337 | I55: 1482830.3 | J55: 0 | K55: 406.05 | L55: -0.4176859955 | M55: -0.1036236086
A56: Vestfold | B56: 0 | C56: 0 | D56: 0 | E56: 0 | F56: =IF(D56=0,0,B56/D56) -> 0 | G56: 0 | H56: 0 | I56: 0 | J56: 0 | K56: 0 | L56: 0 | M56: 0
A57: Østfold | B57: 0 | C57: 0 | D57: 0 | E57: =SUMIFS(E$7:E$19,$A$7:$A$19,$A57)+SUMIFS(E$27:E$39,$A$27:$A$39,$A57) -> 0 | F57: =IF(D57=0,0,B57/D57) -> 0 | G57: 0 | H57: 0 | I57: 0 | J57: 0 | K57: 0 | L57: 0 | M57: 0
A58: Oslo | B58: 0 | C58: 0 | D58: 0 | E58: 0 | F58: 0 | G58: 0 | H58: 0 | I58: 0 | J58: 0 | K58: 0 | L58: 0 | M58: 0
A59: Landet i alt | B59: =SUM(B47:B58) -> 863472.85 | C59: =SUM(C47:C58) -> 0 | D59: =SUM(D47:D58) -> 2372.35 | E59: =SUM(E47:E58) -> 0 | F59: =IF(D59=0,0,B59/D59) -> 363.9736337 | G59: =IF(E59=0,0,C59/E59) -> 0 | H59: =IF(D59+E59=0,0,(B59+C59)/(D59+E59)) -> 363.9736337 | I59: =SUM(I47:I58) -> 1482830.3 | J59: =SUM(J47:J58) -> 0 | K59: 406.05 | L59: =IF(I59=0,0,(B59-I59)/I59) -> -0.4176859955 | M59: =IF(K59=0,0,(H59-K59)/K59) -> -0.1036236086

Sheet ISOLATØR
A2: ="MÅLESTATISTIKK FOR ISOLATØRER - 1. HALVÅR "&FORS!$A$14 -> MÅLESTATISTIKK FOR ISOLATØRER - 1. HALVÅR 2022
B4: Målesum i kroner | D4: Timer | F4: ="Fortjeneste 1. halvår "&FORS!$A$14-0 -> Fortjeneste 1. halvår 2022 | I4: =" 1. halvår "&FORS!$A$14-1 -> 1. halvår 2021 | L4: Endringer i %
B5: Innmålt m/ | C5: Innmålt m/ | D5: Innmålt m/ | E5: Innmålt m/ | F5: Innmålt m/ | G5: Innmålt m/ | H5: Gjennom- | I5: Innmålt m/ | J5: Innmålt m/ | K5: Gjen.snitt | L5: Innmålt m/ | M5: Gjen.snitt
B6: overskudd | C6: underskudd | D6: overskudd | E6: underskudd | F6: overskudd | G6: underskudd | H6: snitt | I6: overskudd | J6: underskudd | K6: fortjeneste | L6: overskudd | M6: fortjeneste
A7: Agder | B7: Murere | F7: =IF(D7=0,0,B7/D7) -> 0 | G7: =IF(E7=0,0,C7/E7) -> 0 | H7: =IF(D7+E7=0,0,(B7+C7)/(D7+E7)) -> 0 | L7: =IF(I7=0,0,(B7-I7)/I7) -> 0 | M7: =IF(K7=0,0,(H7-K7)/K7) -> 0
A8: Bergen | F8: =IF(D8=0,0,B8/D8) -> 0 | G8: 0 | H8: =IF(D8+E8=0,0,(B8+C8)/(D8+E8)) -> 0 | L8: =IF(I8=0,0,(B8-I8)/I8) -> 0 | M8: =IF(K8=0,0,(H8-K8)/K8) -> 0
A9: Drammen - Bærum | F9: 0 | G9: 0 | H9: 0 | L9: 0 | M9: 0
A10: Haugesund | F10: 0 | G10: 0 | H10: 0 | L10: 0 | M10: 0
A11: Hamar og Omegn | F11: 0 | G11: 0 | H11: 0 | L11: 0 | M11: 0
A12: Sandnes | F12: 0 | G12: 0 | H12: 0 | L12: 0 | M12: 0
A13: Stavanger | F13: 0 | G13: 0 | H13: 0 | L13: 0 | M13: 0
A14: Telemark | F14: 0 | G14: 0 | H14: 0 | L14: 0 | M14: 0
A15: Trondheim | F15: 0 | G15: 0 | H15: 0 | L15: 0 | M15: 0
A16: Vestfold | F16: 0 | G16: 0 | H16: 0 | L16: 0 | M16: 0
A17: Østfold | F17: 0 | G17: 0 | H17: 0 | L17: 0 | M17: 0
A18: Oslo | F18: 0 | G18: 0 | H18: 0 | L18: 0 | M18: 0
A19: Landet i alt | B19: =SUM(B7:B18) -> 0 | C19: =SUM(C7:C18) -> 0 | D19: =SUM(D7:D18) -> 0 | E19: =SUM(E7:E18) -> 0 | F19: =IF(D19=0,0,B19/D19) -> 0 | G19: =IF(E19=0,0,C19/E19) -> 0 | H19: =IF(D19+E19=0,0,(B19+C19)/(D19+E19)) -> 0 | I19: =SUM(I7:I18) -> 0 | J19: =SUM(J7:J18) -> 0 | L19: =IF(I19=0,0,(B19-I19)/I19) -> 0 | M19: =IF(K19=0,0,(H19-K19)/K19) -> 0
A22: ="MÅLESTATISTIKK FOR ISOLATØRER - 2. HALVÅR "&FORS!$A$14 -> MÅLESTATISTIKK FOR ISOLATØRER - 2. HALVÅR 2022
B24: Målesum i kroner | D24: Timer | F24: ="Fortjeneste 2. halvår "&FORS!$A$14-0 -> Fortjeneste 2. halvår 2022 | I24: =" 2. halvår "&FORS!$A$14-1 -> 2. halvår 2021 | L24: Endringer i %
B25: Innmålt m/ | C25: Innmålt m/ | D25: Innmålt m/ | E25: Innmålt m/ | F25: Innmålt m/ | G25: Innmålt m/ | H25: Gjennom- | I25: Innmålt m/ | J25: Innmålt m/ | K25: Gjen.snitt | L25: Innmålt m/ | M25: Gjen.snitt
B26: overskudd | C26: underskudd | D26: overskudd | E26: underskudd | F26: overskudd | G26: underskudd | H26: snitt | I26: overskudd | J26: underskudd | K26: fortjeneste | L26: overskudd | M26: fortjeneste
A27: Agder | F27: =IF(D27=0,0,B27/D27) -> 0 | G27: 0 | H27: =IF(D27+E27=0,0,(B27+C27)/(D27+E27)) -> 0 | L27: =IF(I27=0,0,(B27-I27)/I27) -> 0 | M27: =IF(K27=0,0,(H27-K27)/K27) -> 0
A28: Bergen | F28: 0 | G28: 0 | H28: =IF(D28+E28=0,0,(B28+C28)/(D28+E28)) -> 0 | L28: =IF(I28=0,0,(B28-I28)/I28) -> 0 | M28: =IF(K28=0,0,(H28-K28)/K28) -> 0
A29: Drammen - Bærum | F29: 0 | G29: 0 | H29: 0 | L29: 0 | M29: 0
A30: Haugesund | F30: 0 | G30: 0 | H30: 0 | L30: 0 | M30: 0
A31: Hamar og Omegn | F31: 0 | G31: 0 | H31: 0 | L31: 0 | M31: 0
A32: Sandnes | F32: 0 | G32: 0 | H32: 0 | L32: 0 | M32: 0
A33: Stavanger | F33: 0 | G33: 0 | H33: 0 | L33: 0 | M33: 0
A34: Telemark | F34: 0 | G34: 0 | H34: 0 | L34: 0 | M34: 0
A35: Trondheim | F35: 0 | G35: 0 | H35: 0 | L35: 0 | M35: 0
A36: Vestfold | F36: 0 | G36: 0 | H36: 0 | L36: 0 | M36: 0
A37: Østfold | C37: 0 | F37: 0 | G37: 0 | H37: 0 | L37: 0 | M37: 0
A38: Oslo | F38: 0 | G38: 0 | H38: 0 | L38: 0 | M38: 0
A39: Landet i alt | B39: =SUM(B27:B38) -> 0 | C39: =SUM(C27:C38) -> 0 | D39: =SUM(D27:D38) -> 0 | E39: =SUM(E27:E38) -> 0 | F39: =IF(D39=0,0,B39/D39) -> 0 | G39: =IF(E39=0,0,C39/E39) -> 0 | H39: =IF(D39+E39=0,0,(B39+C39)/(D39+E39)) -> 0 | I39: =SUM(I27:I38) -> 0 | J39: =SUM(J27:J38) -> 0 | L39: 0 | M39: 0
A42: ="MÅLESTATISTIKK FOR ISOLATØRER - GJENNOMSNITT HELE ÅRET "&FORS!$A$14 -> MÅLESTATISTIKK FOR ISOLATØRER - GJENNOMSNITT HELE ÅRET 2022
B44: Målesum i kroner | D44: Timer | F44: ="Fortjeneste hele "&FORS!$A$14-0 -> Fortjeneste hele 2022 | I44: =" Hele året "&FORS!$A$14-1 -> Hele året 2021 | L44: Endringer i %
B45: Innmålt m/ | C45: Innmålt m/ | D45: Innmålt m/ | E45: Innmålt m/ | F45: Innmålt m/ | G45: Innmålt m/ | H45: Gjennom- | I45: Innmålt m/ | J45: Innmålt m/ | K45: Gjen.snitt | L45: Innmålt m/ | M45: Gjen.snitt
B46: overskudd | C46: underskudd | D46: overskudd | E46: underskudd | F46: overskudd | G46: underskudd | H46: snitt | I46: overskudd | J46: underskudd | K46: fortjeneste | L46: overskudd | M46: fortjeneste
A47: Agder | B47: =SUMIFS(B$7:B$19,$A$7:$A$19,$A47)+SUMIFS(B$27:B$39,$A$27:$A$39,$A47) -> 0 | C47: =SUMIFS(C$7:C$19,$A$7:$A$19,$A47)+SUMIFS(C$27:C$39,$A$27:$A$39,$A47) -> 0 | D47: 0 | E47: 0 | F47: =IF(D47=0,0,B47/D47) -> 0 | G47: =IF(E47=0,0,C27/E47) -> 0 | H47: =IF(D47+E47=0,0,(B47+C47)/(D47+E47)) -> 0 | I47: =SUMIFS(I$7:I$19,$A$7:$A$19,$A47)+SUMIFS(I$27:I$39,$A$27:$A$39,$A47) -> 0 | J47: =SUMIFS(J$7:J$19,$A$7:$A$19,$A47)+SUMIFS(J$27:J$39,$A$27:$A$39,$A47) -> 0 | L47: =IF(I47=0,0,(B47-I47)/I47) -> 0 | M47: =IF(K47=0,0,(H47-K47)/K47) -> 0
A48: Bergen | B48: =SUMIFS($B$7:$B$19,$A$7:$A$19,A48)+SUMIFS($B$27:$B$39,$A$27:$A$39,A48) -> 0 | C48: 0 | D48: 0 | E48: 0 | F48: =IF(D48=0,0,B48/D48) -> 0 | G48: 0 | H48: =IF(D48+E48=0,0,(B48+C48)/(D48+E48)) -> 0 | I48: =SUMIFS(I$7:I$19,$A$7:$A$19,$A48)+SUMIFS(I$27:I$39,$A$27:$A$39,$A48) -> 0 | J48: 0 | L48: =IF(I48=0,0,(B48-I48)/I48) -> 0 | M48: =IF(K48=0,0,(H48-K48)/K48) -> 0
A49: Drammen - Bærum | B49: 0 | C49: 0 | D49: 0 | E49: 0 | F49: 0 | G49: 0 | H49: 0 | I49: 0 | J49: 0 | L49: 0 | M49: 0
A50: Haugesund | B50: 0 | C50: 0 | D50: 0 | E50: 0 | F50: 0 | G50: 0 | H50: 0 | I50: 0 | J50: 0 | L50: 0 | M50: 0
A51: Hamar og Omegn | B51: 0 | C51: 0 | D51: 0 | E51: 0 | F51: 0 | G51: 0 | H51: 0 | I51: 0 | J51: 0 | L51: 0 | M51: 0
A52: Sandnes | B52: 0 | C52: 0 | D52: 0 | E52: 0 | F52: =IF(D52=0,0,B52/D52) -> 0 | G52: 0 | H52: =IF(D52+E52=0,0,(B52+C52)/(D52+E52)) -> 0 | I52: 0 | J52: 0 | L52: 0 | M52: 0
A53: Stavanger | B53: 0 | C53: 0 | D53: 0 | E53: 0 | F53: 0 | G53: 0 | H53: 0 | I53: 0 | J53: 0 | L53: 0 | M53: 0
A54: Telemark | B54: 0 | C54: 0 | D54: 0 | E54: 0 | F54: 0 | G54: 0 | H54: 0 | I54: 0 | J54: 0 | L54: 0 | M54: 0
A55: Trondheim | B55: 0 | C55: 0 | D55: 0 | E55: 0 | F55: 0 | G55: 0 | H55: 0 | I55: 0 | J55: 0 | L55: 0 | M55: 0
A56: Vestfold | B56: 0 | C56: 0 | D56: 0 | E56: 0 | F56: =IF(D56=0,0,B56/D56) -> 0 | G56: 0 | H56: 0 | I56: 0 | J56: 0 | L56: 0 | M56: 0
A57: Østfold | B57: 0 | C57: 0 | D57: 0 | E57: =SUMIFS(E$7:E$19,$A$7:$A$19,$A57)+SUMIFS(E$27:E$39,$A$27:$A$39,$A57) -> 0 | F57: =IF(D57=0,0,B57/D57) -> 0 | G57: 0 | H57: 0 | I57: 0 | J57: 0 | L57: 0 | M57: 0
A58: Oslo | B58: 0 | C58: 0 | D58: 0 | E58: 0 | F58: 0 | G58: 0 | H58: 0 | I58: 0 | J58: 0 | L58: 0 | M58: 0
A59: Landet i alt | B59: =SUM(B47:B58) -> 0 | C59: =SUM(C47:C58) -> 0 | D59: =SUM(D47:D58) -> 0 | E59: =SUM(E47:E58) -> 0 | F59: =IF(D59=0,0,B59/D59) -> 0 | G59: =IF(E59=0,0,C59/E59) -> 0 | H59: =IF(D59+E59=0,0,(B59+C59)/(D59+E59)) -> 0 | I59: =SUM(I47:I58) -> 0 | J59: =SUM(J47:J58) -> 0 | L59: =IF(I59=0,0,(B59-I59)/I59) -> 0 | M59: =IF(K59=0,0,(H59-K59)/K59) -> 0
